Department,Entity, Transaction Date, Expense Type, Expense Area, Supplier Name,Transaction number, Amount, Invoice Description
DFID,DFID,16/12/2015,Air fares ,East and Central Africa ,Corporate Travel Provider ,100016-107 ,"1,408.69",
DFID,DFID,16/12/2015,Air fares ,East and Central Africa ,Corporate Travel Provider ,100016-107 ,"1,009.40",
DFID,DFID,07/12/2015,Air fares ,East and Central Africa ,Corporate Travel Provider ,100016-107 ,"2,228.60",
DFID,DFID,29/12/2015,Air fares ,Research and Evidence Division ,Corporate Travel Provider ,100039-108 ,"1,882.25",
DFID,DFID,29/12/2015,Air fares ,Research and Evidence Division ,Corporate Travel Provider ,100039-110 ,930.17,
DFID,DFID,16/12/2015,Air fares ,Research and Evidence Division ,Corporate Travel Provider ,100039-110 ,"1,028.95",
DFID,DFID,07/12/2015,Air fares ,Policy Division ,Corporate Travel Provider ,100045-101 ,940.65,
DFID,DFID,29/12/2015,Air fares ,Asia  Caribbean and Overseas Territories ,Corporate Travel Provider ,100084-101 ,"2,329.46",
DFID,DFID,07/12/2015,Air fares ,Asia  Caribbean and Overseas Territories ,Corporate Travel Provider ,100084-101 ,780.36,
DFID,DFID,29/12/2015,Project delivery costs – supplier services ,Asia  Caribbean and Overseas Territories ,Foreign & Commonwealth Office ,100114-101 ,"1,804.54",
DFID,DFID,07/12/2015,Air fares ,Internal Audit ,Corporate Travel Provider ,100121-101 ,521.35,
DFID,DFID,07/12/2015,Air fares ,Internal Audit ,Corporate Travel Provider ,100121-101 ,521.35,
DFID,DFID,07/12/2015,Air fares ,Internal Audit ,Corporate Travel Provider ,100121-101 ,521.35,
DFID,DFID,07/12/2015,Air fares ,Internal Audit ,Corporate Travel Provider ,100121-101 ,724.63,
DFID,DFID,07/12/2015,Air fares ,Internal Audit ,Corporate Travel Provider ,100121-101 ,724.63,
DFID,DFID,07/12/2015,Air fares ,Internal Audit ,Corporate Travel Provider ,100121-101 ,724.63,
DFID,DFID,07/12/2015,Air fares ,Internal Audit ,Corporate Travel Provider ,100121-101 ,666.65,
DFID,DFID,29/12/2015,Air fares ,Internal Audit ,Corporate Travel Provider ,100121-101 ,744.53,
DFID,DFID,29/12/2015,Air fares ,Internal Audit ,Corporate Travel Provider ,100121-101 ,567.74,
DFID,DFID,29/12/2015,Air fares ,Internal Audit ,Corporate Travel Provider ,100121-101 ,567.74,
DFID,DFID,16/12/2015,Air fares ,Global Funds ,Corporate Travel Provider ,100098-101 ,"1,112.11",
DFID,DFID,29/12/2015,Air fares ,Global Funds ,Corporate Travel Provider ,100098-101 ,556.65,
DFID,DFID,16/12/2015,Air fares ,Top Management Group ,Corporate Travel Provider ,100232-102 ,639.64,
DFID,DFID,16/12/2015,Air fares ,Top Management Group ,Corporate Travel Provider ,100232-102 ,639.64,
DFID,DFID,07/12/2015,Air fares ,Top Management Group ,Corporate Travel Provider ,100232-102 ,"1,049.40",
DFID,DFID,29/12/2015,Air fares ,Top Management Group ,Corporate Travel Provider ,100232-102 ,"1,021.40",
DFID,DFID,29/12/2015,Air fares ,Top Management Group ,Corporate Travel Provider ,100232-102 ,632.60,
DFID,DFID,29/12/2015,Air fares ,Top Management Group ,Corporate Travel Provider ,100232-102 ,"1,021.40",
DFID,DFID,16/12/2015,Air fares ,Top Management Group ,Corporate Travel Provider ,100232-103 ,"1,449.96",
DFID,DFID,07/12/2015,Air fares ,Top Management Group ,Corporate Travel Provider ,100232-104 ,"3,409.06",
DFID,DFID,07/12/2015,Air fares ,Top Management Group ,Corporate Travel Provider ,100232-104 ,"3,409.06",
DFID,DFID,16/12/2015,Air fares ,Top Management Group ,Corporate Travel Provider ,100232-105 ,"2,506.46",
DFID,DFID,29/12/2015,Air fares ,Top Management Group ,Corporate Travel Provider ,100232-105 ,"2,826.36",
DFID,DFID,29/12/2015,Air fares ,Finance and Corporate Performance Division ,Corporate Travel Provider ,100201-101 ,609.93,
DFID,DFID,16/12/2015,Air fares ,Top Management Group ,Corporate Travel Provider ,100232-108 ,"2,359.96",
DFID,DFID,16/12/2015,Air fares ,Top Management Group ,Corporate Travel Provider ,100232-108 ,"2,132.96",
DFID,DFID,16/12/2015,Air fares ,Top Management Group ,Corporate Travel Provider ,100232-108 ,"1,449.96",
DFID,DFID,07/12/2015,Hotels - Accommodation only ,Group Operations ,Corporate Travel Provider ,100264-101 ,535.65,
DFID,DFID,16/12/2015,Hotels - Accommodation only ,Human Resources ,Corporate Travel Provider ,100266-102 ,530.71,
DFID,DFID,16/12/2015,Hotels - Accommodation only ,Human Resources ,Corporate Travel Provider ,100261-101 ,570.62,
DFID,DFID,29/12/2015,Air fares ,Western Asia Division ,Corporate Travel Provider ,101601-110 ,678.60,
DFID,DFID,29/12/2015,Air fares ,Western Asia Division ,Corporate Travel Provider ,101601-110 ,550.20,
DFID,DFID,29/12/2015,Air fares ,Western Asia Division ,Corporate Travel Provider ,101601-110 ,"1,594.06",
DFID,DFID,29/12/2015,Air fares ,Western Asia Division ,Corporate Travel Provider ,101601-110 ,"1,166.10",
DFID,DFID,29/12/2015,Air fares ,Western Asia Division ,Corporate Travel Provider ,101601-110 ,624.24,
DFID,DFID,29/12/2015,Air fares ,Western Asia Division ,Corporate Travel Provider ,101601-110 ,882.59,
DFID,DFID,29/12/2015,Air fares ,Western Asia Division ,Corporate Travel Provider ,101601-110 ,"2,371.35",
DFID,DFID,16/12/2015,Air fares ,Western Asia Division ,Corporate Travel Provider ,101601-110 ,"1,717.66",
DFID,DFID,07/12/2015,Air fares ,Western Asia Division ,Corporate Travel Provider ,101601-110 ,"1,569.78",
DFID,DFID,07/12/2015,Air fares ,Western Asia Division ,Corporate Travel Provider ,101601-110 ,921.50,
DFID,DFID,07/12/2015,Air fares ,Western Asia Division ,Corporate Travel Provider ,101601-110 ,"1,728.86",
DFID,DFID,07/12/2015,Air fares ,Western Asia Division ,Corporate Travel Provider ,101601-110 ,825.29,
DFID,DFID,07/12/2015,Air fares ,Western Asia Division ,Corporate Travel Provider ,101601-110 ,"1,660.88",
DFID,DFID,29/12/2015,Air fares ,Policy Division ,Corporate Travel Provider ,100277-101 ,696.93,
DFID,DFID,07/12/2015,Air fares ,West and Southern Africa ,Corporate Travel Provider ,101610-101 ,549.20,
DFID,DFID,07/12/2015,Air fares ,West and Southern Africa ,Corporate Travel Provider ,101610-101 ,605.66,
DFID,DFID,07/12/2015,Air fares ,West and Southern Africa ,Corporate Travel Provider ,101610-101 ,685.01,
DFID,DFID,29/12/2015,Air fares ,West and Southern Africa ,Corporate Travel Provider ,101610-101 ,609.93,
DFID,DFID,29/12/2015,Air fares ,West and Southern Africa ,Corporate Travel Provider ,101610-101 ,"1,876.53",
DFID,DFID,29/12/2015,Air fares ,West and Southern Africa ,Corporate Travel Provider ,101610-101 ,"2,356.38",
DFID,DFID,29/12/2015,Air fares ,West and Southern Africa ,Corporate Travel Provider ,101610-101 ,"2,356.38",
DFID,DFID,29/12/2015,Air fares ,West and Southern Africa ,Corporate Travel Provider ,101610-101 ,"1,876.53",
DFID,DFID,16/12/2015,Air fares ,East and Central Africa ,Corporate Travel Provider ,101612-101 ,621.48,
DFID,DFID,29/12/2015,Air fares ,West and Southern Africa ,Corporate Travel Provider ,101618-101 ,743.55,
DFID,DFID,07/12/2015,Other passenger transport ,West and Southern Africa ,Corporate Travel Provider ,101622-105 ,522.98,
DFID,DFID,16/12/2015,Air fares ,Western Asia Division ,Corporate Travel Provider ,101624-101 ,"1,482.84",
DFID,DFID,07/12/2015,Air fares ,Western Asia Division ,Corporate Travel Provider ,101624-101 ,518.00,
DFID,DFID,16/12/2015,Air fares ,East and Central Africa ,Corporate Travel Provider ,101630-101 ,506.80,
DFID,DFID,07/12/2015,Air fares ,East and Central Africa ,Corporate Travel Provider ,101630-101 ,899.50,
DFID,DFID,07/12/2015,Air fares ,East and Central Africa ,Corporate Travel Provider ,101630-101 ,968.36,
DFID,DFID,07/12/2015,Air fares ,West and Southern Africa ,Corporate Travel Provider ,101637-101 ,"1,014.26",
DFID,DFID,07/12/2015,Air fares ,Business Solutions Division Level ,Corporate Travel Provider ,200001-101 ,"1,182.55",
DFID,DFID,07/12/2015,Air fares ,Business Solutions Division Level ,Corporate Travel Provider ,200001-101 ,"1,182.55",
DFID,DFID,29/12/2015,Air fares ,Western Asia Division ,Corporate Travel Provider ,201111-101 ,"1,711.60",
DFID,DFID,16/12/2015,Air fares ,Western Asia Division ,Corporate Travel Provider ,201111-101 ,996.90,
DFID,DFID,16/12/2015,Air fares ,Group Operations ,Corporate Travel Provider ,201157-104 ,532.26,
DFID,DFID,16/12/2015,Air fares ,Middle East  Humanitarian & Conflict Division ,Corporate Travel Provider ,201701-101 ,558.35,
DFID,DFID,29/12/2015,Air fares ,Research and Evidence Division ,Corporate Travel Provider ,202348-101 ,811.02,
DFID,DFID,16/12/2015,Air fares ,Research and Evidence Division ,Corporate Travel Provider ,202392-105 ,812.77,
DFID,DFID,29/12/2015,Air fares ,Research and Evidence Division ,Corporate Travel Provider ,202392-106 ,981.31,
DFID,DFID,29/12/2015,Air fares ,Policy Division ,Corporate Travel Provider ,202402-107 ,787.25,
DFID,DFID,29/12/2015,Air fares ,Policy Division ,Corporate Travel Provider ,202402-107 ,916.21,
DFID,DFID,29/12/2015,Air fares ,Policy Division ,Corporate Travel Provider ,202419-101 ,651.36,
DFID,DFID,07/12/2015,Air fares ,Policy Division ,Corporate Travel Provider ,202419-101 ,953.65,
DFID,DFID,07/12/2015,Other passenger transport ,Policy Division ,Corporate Travel Provider ,202419-101 ,534.76,
DFID,DFID,07/12/2015,Air fares ,Policy Division ,Corporate Travel Provider ,202419-101 ,590.22,
DFID,DFID,16/12/2015,Air fares ,East and Central Africa ,Corporate Travel Provider ,202594-101 ,558.77,
DFID,DFID,16/12/2015,Air fares ,East and Central Africa ,Corporate Travel Provider ,202594-101 ,839.40,
DFID,DFID,16/12/2015,Air fares ,East and Central Africa ,Corporate Travel Provider ,202594-101 ,599.10,
DFID,DFID,07/12/2015,Air fares ,East and Central Africa ,Corporate Travel Provider ,202594-101 ,"1,001.55",
DFID,DFID,07/12/2015,Air fares ,East and Central Africa ,Corporate Travel Provider ,202594-101 ,621.27,
DFID,DFID,29/12/2015,Air fares ,East and Central Africa ,Corporate Travel Provider ,202594-101 ,"1,249.20",
DFID,DFID,29/12/2015,Air fares ,East and Central Africa ,Corporate Travel Provider ,202594-101 ,694.60,
DFID,DFID,29/12/2015,Air fares ,East and Central Africa ,Corporate Travel Provider ,202594-101 ,723.17,
DFID,DFID,07/12/2015,Air fares ,East and Central Africa ,Corporate Travel Provider ,202586-101 ,"1,022.96",
DFID,DFID,16/12/2015,Air fares ,West and Southern Africa ,Corporate Travel Provider ,203882-102 ,"1,260.68",
DFID,DFID,16/12/2015,Air fares ,West and Southern Africa ,Corporate Travel Provider ,203882-102 ,"1,049.40",
DFID,DFID,07/12/2015,Air fares ,Asia  Caribbean and Overseas Territories ,Corporate Travel Provider ,204053-101 ,787.36,
DFID,DFID,07/12/2015,Air fares ,Middle East  Humanitarian & Conflict Division ,Corporate Travel Provider ,204055-101 ,627.01,
DFID,DFID,07/12/2015,Air fares ,Western Asia Division ,Corporate Travel Provider ,204619-102 ,571.06,
DFID,DFID,29/12/2015,Hotels - Accommodation only ,Western Asia Division ,Corporate Travel Provider ,204619-102 ,555.71,
DFID,DFID,29/12/2015,Air fares ,Finance and Corporate Performance Division ,Corporate Travel Provider ,204662-101 ,777.71,
DFID,DFID,07/12/2015,Air fares ,Regional Directorate ,Corporate Travel Provider ,204891-101 ,577.05,
DFID,DFID,16/12/2015,Air fares ,Regional Directorate ,Corporate Travel Provider ,204892-101 ,750.01,
DFID,DFID,16/12/2015,Air fares ,Regional Directorate ,Corporate Travel Provider ,204892-101 ,"1,513.65",
DFID,DFID,07/12/2015,Air fares ,Regional Directorate ,Corporate Travel Provider ,204892-101 ,856.30,
DFID,DFID,07/12/2015,Air fares ,Regional Directorate ,Corporate Travel Provider ,204892-101 ,653.56,
DFID,DFID,07/12/2015,Air fares ,Regional Directorate ,Corporate Travel Provider ,204892-101 ,630.60,
DFID,DFID,07/12/2015,Air fares ,Regional Directorate ,Corporate Travel Provider ,204892-101 ,510.06,
DFID,DFID,29/12/2015,Air fares ,Regional Directorate ,Corporate Travel Provider ,204892-101 ,730.60,
DFID,DFID,29/12/2015,Air fares ,Regional Directorate ,Corporate Travel Provider ,204892-101 ,698.82,
DFID,DFID,29/12/2015,Air fares ,Regional Directorate ,Corporate Travel Provider ,204892-101 ,739.46,
DFID,DFID,29/12/2015,Air fares ,Regional Directorate ,Corporate Travel Provider ,204892-101 ,897.56,
DFID,DFID,29/12/2015,Air fares ,Regional Directorate ,Corporate Travel Provider ,204892-101 ,960.90,
DFID,DFID,29/12/2015,Air fares ,Regional Directorate ,Corporate Travel Provider ,204892-101 ,928.21,
DFID,DFID,29/12/2015,Air fares ,Regional Directorate ,Corporate Travel Provider ,204892-101 ,"1,037.71",
DFID,DFID,29/12/2015,Air fares ,Regional Directorate ,Corporate Travel Provider ,204892-101 ,714.98,
DFID,DFID,29/12/2015,Air fares ,PGP Directorate ,Corporate Travel Provider ,205044-101 ,608.95,
DFID,DFID,07/12/2015,Air fares ,PGP Directorate ,Corporate Travel Provider ,205044-101 ,677.48,
DFID,DFID,16/12/2015,Air fares ,PGP Directorate ,Corporate Travel Provider ,205044-101 ,861.95,
DFID,DFID,29/12/2015,Air fares ,Western Asia Division ,Corporate Travel Provider ,205093-102 ,562.14,
DFID,DFID,09/12/2015,Aid Programme - Partnership Programme Arrangements ,Policy Division ,ACTIONAID ,202663-101 ,"1,029,752.00",
DFID,DFID,18/12/2015,Project delivery costs – supplier services ,West and Southern Africa ,ADAM SMITH INTERNATIONAL  LTD ,202539-106 ,"1,245,000.00",
DFID,DFID,18/12/2015,Project delivery costs – supplier services ,West and Southern Africa ,ADAM SMITH INTERNATIONAL  LTD ,202539-106 ,"21,547.00",
DFID,DFID,04/12/2015,Project delivery costs – supplier services ,West and Southern Africa ,ADAM SMITH INTERNATIONAL  LTD ,202539-106 ,"108,351.40",
DFID,DFID,04/12/2015,Project delivery costs – supplier services ,West and Southern Africa ,ADAM SMITH INTERNATIONAL  LTD ,202539-106 ,"187,020.21",
DFID,DFID,04/12/2015,Project delivery costs – supplier services ,West and Southern Africa ,ADAM SMITH INTERNATIONAL  LTD ,202539-106 ,"36,698.69",
DFID,DFID,18/12/2015,Project delivery costs – supplier services ,West and Southern Africa ,ADAM SMITH INTERNATIONAL  LTD ,202539-108 ,"83,840.61",
DFID,DFID,09/12/2015,Project delivery costs – supplier services ,West and Southern Africa ,ADAM SMITH INTERNATIONAL  LTD ,202539-108 ,"80,159.60",
DFID,DFID,09/12/2015,Project delivery costs – supplier services ,West and Southern Africa ,ADAM SMITH INTERNATIONAL  LTD ,202539-108 ,"21,857.00",
DFID,DFID,17/12/2015,Project delivery costs – supplier services ,West and Southern Africa ,ADAM SMITH INTERNATIONAL  LTD ,202584-106 ,"171,412.50",
DFID,DFID,16/12/2015,Project delivery costs – supplier services ,West and Southern Africa ,ADAM SMITH INTERNATIONAL  LTD ,202584-106 ,"89,075.75",
DFID,DFID,16/12/2015,Project delivery costs – supplier services ,Western Asia Division ,ADAM SMITH INTERNATIONAL  LTD ,202697-105 ,"143,938.00",
DFID,DFID,17/12/2015,Project delivery costs – supplier services ,Western Asia Division ,Supplier Name withheld ,202311-102 ,"542,067.74",
DFID,DFID,21/12/2015,Project delivery costs – supplier services ,Western Asia Division ,Supplier Name withheld ,202112-102 ,"145,720.07",
DFID,DFID,08/12/2015,Research and development costs - supplier services ,Research and Evidence Division ,ADAM SMITH INTERNATIONAL  LTD ,203778-104 ,"158,000.00",
DFID,DFID,07/12/2015,Project delivery costs – supplier services ,West and Southern Africa ,ADAM SMITH INTERNATIONAL  LTD ,203824-103 ,"168,165.40",
DFID,DFID,17/12/2015,Project delivery costs – supplier services ,West and Southern Africa ,ADAM SMITH INTERNATIONAL  LTD ,203824-103 ,"169,799.33",
DFID,DFID,08/12/2015,Project delivery costs – supplier services ,West and Southern Africa ,ADAM SMITH INTERNATIONAL  LTD ,203839-101 ,"137,479.00",
DFID,DFID,21/12/2015,Project delivery costs – supplier services ,West and Southern Africa ,ADAM SMITH INTERNATIONAL  LTD ,203839-101 ,"150,234.87",
DFID,DFID,10/12/2015,Project delivery costs – supplier services ,West and Southern Africa ,ADAM SMITH INTERNATIONAL  LTD ,203674-102 ,"11,481.47",
DFID,DFID,10/12/2015,Project delivery costs – supplier services ,West and Southern Africa ,ADAM SMITH INTERNATIONAL  LTD ,203674-102 ,"225,000.00",
DFID,DFID,10/12/2015,Project delivery costs – supplier services ,West and Southern Africa ,ADAM SMITH INTERNATIONAL  LTD ,203674-103 ,"176,638.00",
DFID,DFID,02/12/2015,Project delivery costs – supplier services ,East and Central Africa ,ADAM SMITH INTERNATIONAL  LTD ,203153-103 ,"139,668.59",
DFID,DFID,15/12/2015,Project delivery costs – supplier services ,West and Southern Africa ,ADAM SMITH INTERNATIONAL  LTD ,203161-103 ,"581,222.51",
DFID,DFID,10/12/2015,Project delivery costs – supplier services ,Western Asia Division ,Supplier Name withheld ,203309-101 ,"104,744.59",
DFID,DFID,03/12/2015,Aid Programme - Accountable Grant Payments ,Policy Division ,ACTION AGAINST HUNGER UK ,202197-101 ,"122,477.46",
DFID,DFID,03/12/2015,Project delivery costs – supplier services ,Research and Evidence Division ,CHRISTOPHER ADAM ,204153-104 ,"4,605.74",
DFID,DFID,03/12/2015,Contract & Agency Staff ,Business Solutions Division Level ,ALLEGIS GROUP LIMITED ,200001-101 ,"2,250.00",
DFID,DFID,10/12/2015,Project delivery costs – supplier services ,West and Southern Africa ,ATOS IT Services UK Ltd ,200452-101 ,"604,035.00",
DFID,DFID,02/12/2015,Aid Programme - Partnership Programme Arrangements ,Policy Division ,ARTICLE 19 ,202556-101 ,"135,671.75",
DFID,DFID,22/12/2015,Computer software maintenance ,Business Solutions Division Level ,Unit 4 ,200002-107 ,"65,074.28",Quarterly maintenance and support costs for DFID  Finance systems databases for period January - March 2016 
DFID,DFID,31/12/2015,Aid Programme - Core contributions ,East and Central Africa ,FOUNDATION AFRICA PROGRESS PANEL ,205174-101 ,"200,000.00",
DFID,DFID,07/12/2015,Telephone Usage & services ,Asia  Caribbean and Overseas Territories ,Supplier Name withheld ,100025-101 ,794.88,
DFID,DFID,10/12/2015,Project delivery costs – supplier services ,West and Southern Africa ,Supplier Name withheld ,114161-101 ,"834,302.56",
DFID,DFID,10/12/2015,Project delivery costs – supplier services ,West and Southern Africa ,Supplier Name withheld ,114161-106 ,"7,100.00",
DFID,DFID,04/12/2015,Aid Programme - Accountable Grant Payments ,Policy Division ,Supplier Name withheld ,205033-101 ,"841,684.00",
DFID,DFID,03/12/2015,Aid Programme - Partnership Programme Arrangements ,Policy Division ,Supplier Name withheld ,202786-101 ,"409,498.75",
DFID,DFID,10/12/2015,Aid Programme - Voluntary contributions ,Middle East  Humanitarian & Conflict Division ,Supplier Name withheld ,205059-101 ,"1,000,000.00",
DFID,DFID,16/12/2015,Project delivery costs – supplier services ,Regional Directorate ,Supplier Name withheld ,204893-101 ,"975,712.00",
DFID,DFID,17/12/2015,Computer software maintenance ,Finance and Corporate Performance Division ,REAL ASSET MANAGEMENT PLC ,100008-101 ,"1,818.00",
DFID,DFID,29/12/2015,Aid Programme - Accountable Grant Payments ,Policy Division ,BBC Media Action ,202629-101 ,"2,300,000.00",
DFID,DFID,04/12/2015,Data Network - land lines ,Business Solutions Division Level ,BT BACS PAYMENTS ,200002-130 ,"1,582.43",
DFID,DFID,18/12/2015,Project delivery costs – supplier services ,Middle East  Humanitarian & Conflict Division ,BRITISH COUNCIL ,202886-102 ,"113,206.31",
DFID,DFID,10/12/2015,Project delivery costs – supplier services ,West and Southern Africa ,BRITISH COUNCIL ,201625-109 ,"261,331.30",
DFID,DFID,10/12/2015,Project delivery costs – supplier services ,West and Southern Africa ,BRITISH COUNCIL ,201625-101 ,"414,765.67",
DFID,DFID,21/12/2015,Project delivery costs – supplier services ,Policy Division ,BRITISH COUNCIL ,204864-102 ,"166,997.93",
DFID,DFID,21/12/2015,Aid Programme - Accountable Grant Payments ,East and Central Africa ,BRITISH COUNCIL ,205144-101 ,"100,000.00",
DFID,DFID,18/12/2015,Project delivery costs – supplier services ,Middle East  Humanitarian & Conflict Division ,BRITISH COUNCIL ,203726-101 ,"189,813.82",
DFID,DFID,17/12/2015,Project delivery costs – supplier services ,West and Southern Africa ,BRITISH COUNCIL ,203816-102 ,"625,000.00",
DFID,DFID,15/12/2015,Project delivery costs – supplier services ,East and Central Africa ,BRITISH COUNCIL ,203468-103 ,"325,244.85",
DFID,DFID,02/12/2015,Project delivery costs – supplier services ,Policy Division ,CHRISTIAN AID ,204333-104 ,"107,975.22",
DFID,DFID,09/12/2015,Aid Programme - Accountable Grant Payments ,West and Southern Africa ,CHRISTIAN AID ,201196-112 ,"730,355.76",
DFID,DFID,03/12/2015,Aid Programme - Partnership Programme Arrangements ,Policy Division ,CHRISTIAN AID ,202651-101 ,"1,813,981.00",
DFID,DFID,17/12/2015,Project delivery costs – supplier services ,Asia  Caribbean and Overseas Territories ,CHRISTIAN AID ,113311-101 ,"799,772.59",
DFID,DFID,16/12/2015,Project delivery costs – supplier services ,Asia  Caribbean and Overseas Territories ,CHRISTIAN AID ,113311-101 ,"95,728.56",
DFID,DFID,01/12/2015,Project delivery costs – supplier services ,Asia  Caribbean and Overseas Territories ,CHRISTIAN AID ,113311-101 ,"315,575.72",
DFID,DFID,02/12/2015,Project delivery costs – supplier services ,Asia  Caribbean and Overseas Territories ,CHRISTIAN AID ,113311-101 ,"680,333.76",
DFID,DFID,14/12/2015,Project delivery costs – supplier services ,Asia  Caribbean and Overseas Territories ,CHRISTIAN AID ,113311-101 ,"378,113.39",
DFID,DFID,18/12/2015,DFID Purchased Relief Supplies ,West and Southern Africa ,Supplier Name withheld ,104229-102 ,"6,931.23",
DFID,DFID,17/12/2015,DFID Purchased Relief Supplies ,West and Southern Africa ,Supplier Name withheld ,104229-102 ,"99,863.97",
DFID,DFID,16/12/2015,DFID Purchased Relief Supplies ,West and Southern Africa ,Supplier Name withheld ,104229-102 ,"2,083.54",
DFID,DFID,16/12/2015,DFID Purchased Relief Supplies ,West and Southern Africa ,Supplier Name withheld ,104229-102 ,"2,086.23",
DFID,DFID,16/12/2015,DFID Purchased Relief Supplies ,West and Southern Africa ,Supplier Name withheld ,104229-102 ,"25,856.61",
DFID,DFID,17/12/2015,DFID Purchased Relief Supplies ,West and Southern Africa ,Supplier Name withheld ,104229-102 ,"1,676.92",
DFID,DFID,03/12/2015,DFID Purchased Relief Supplies ,West and Southern Africa ,Supplier Name withheld ,104229-102 ,702.55,
DFID,DFID,03/12/2015,DFID Purchased Relief Supplies ,West and Southern Africa ,Supplier Name withheld ,104229-102 ,"7,455.54",
DFID,DFID,03/12/2015,DFID Purchased Relief Supplies ,West and Southern Africa ,Supplier Name withheld ,104229-102 ,"64,875.82",
DFID,DFID,03/12/2015,DFID Purchased Relief Supplies ,West and Southern Africa ,Supplier Name withheld ,104229-102 ,"11,670.77",
DFID,DFID,03/12/2015,DFID Purchased Relief Supplies ,West and Southern Africa ,Supplier Name withheld ,104229-102 ,"1,848.27",
DFID,DFID,03/12/2015,DFID Purchased Relief Supplies ,West and Southern Africa ,Supplier Name withheld ,104229-102 ,"9,885.39",
DFID,DFID,03/12/2015,DFID Purchased Relief Supplies ,West and Southern Africa ,Supplier Name withheld ,104229-102 ,989.35,
DFID,DFID,15/12/2015,DFID Purchased Relief Supplies ,West and Southern Africa ,Supplier Name withheld ,104229-102 ,"1,502.75",
DFID,DFID,15/12/2015,DFID Purchased Relief Supplies ,West and Southern Africa ,Supplier Name withheld ,104229-102 ,"1,348.88",
DFID,DFID,15/12/2015,DFID Purchased Relief Supplies ,West and Southern Africa ,Supplier Name withheld ,104229-102 ,"2,119.15",
DFID,DFID,17/12/2015,DFID Purchased Relief Supplies ,West and Southern Africa ,Supplier Name withheld ,104229-102 ,"3,589.18",
DFID,DFID,07/12/2015,DFID Purchased Relief Supplies ,West and Southern Africa ,Supplier Name withheld ,104200-102 ,"26,962.62",
DFID,DFID,07/12/2015,Project delivery costs – supplier services ,West and Southern Africa ,Supplier Name withheld ,104200-102 ,"1,011.10",
DFID,DFID,21/12/2015,DFID Purchased Relief Supplies ,West and Southern Africa ,Supplier Name withheld ,104223-102 ,"24,209.05",
DFID,DFID,17/12/2015,Project delivery costs – supplier services ,Middle East  Humanitarian & Conflict Division ,Supplier Name withheld ,202564-103 ,"9,460.00",
DFID,DFID,02/12/2015,Fund monies to be managed and dispersed by the supplier ,West and Southern Africa ,Supplier Name withheld ,202531-104 ,"119,965.49",
DFID,DFID,15/12/2015,DFID Purchased Relief Supplies ,East and Central Africa ,Supplier Name withheld ,202843-103 ,"32,255.33",
DFID,DFID,10/12/2015,DFID Purchased Relief Supplies ,East and Central Africa ,Supplier Name withheld ,202900-107 ,"40,744.70",
DFID,DFID,01/12/2015,DFID Purchased Relief Supplies ,East and Central Africa ,Supplier Name withheld ,202900-107 ,"4,189.84",
DFID,DFID,07/12/2015,DFID Purchased Relief Supplies ,West and Southern Africa ,Supplier Name withheld ,202694-103 ,"132,404.61",
DFID,DFID,15/12/2015,DFID Purchased Relief Supplies ,West and Southern Africa ,Supplier Name withheld ,202694-103 ,"9,663.64",
DFID,DFID,29/12/2015,Project delivery costs – supplier services ,Policy Division ,Supplier Name withheld ,200706-102 ,790.88,
DFID,DFID,29/12/2015,Project delivery costs – supplier services ,Policy Division ,Supplier Name withheld ,200706-102 ,"34,185.75",
DFID,DFID,29/12/2015,Project delivery costs – supplier services ,Policy Division ,Supplier Name withheld ,200706-102 ,"32,137.97",
DFID,DFID,04/12/2015,Project delivery costs – supplier services ,West and Southern Africa ,Supplier Name withheld ,202098-103 ,"28,950.22",
DFID,DFID,10/12/2015,Project delivery costs – supplier services ,Economic Development Division ,Supplier Name withheld ,202089-101 ,"15,321.82",
DFID,DFID,15/12/2015,Fund monies to be managed and dispersed by the supplier ,Economic Development Division ,Supplier Name withheld ,202089-102 ,"288,101.28",
DFID,DFID,10/12/2015,DFID Purchased Relief Supplies ,West and Southern Africa ,Supplier Name withheld ,202352-104 ,"7,774.93",
DFID,DFID,10/12/2015,Project delivery costs – supplier services ,Asia  Caribbean and Overseas Territories ,Supplier Name withheld ,202393-108 ,"521,915.20",
DFID,DFID,11/12/2015,Project delivery costs – supplier services ,Asia  Caribbean and Overseas Territories ,Supplier Name withheld ,202393-103 ,"243,506.77",
DFID,DFID,11/12/2015,Project delivery costs – supplier services ,Asia  Caribbean and Overseas Territories ,Supplier Name withheld ,202393-103 ,"25,571.56",
DFID,DFID,16/12/2015,Project delivery costs – supplier services ,West and Southern Africa ,Supplier Name withheld ,202416-103 ,"11,025.00",
DFID,DFID,29/12/2015,Project delivery costs – supplier services ,West and Southern Africa ,Supplier Name withheld ,202416-103 ,"9,450.00",
DFID,DFID,29/12/2015,Project delivery costs – supplier services ,West and Southern Africa ,Supplier Name withheld ,202416-103 ,"11,359.88",
DFID,DFID,21/12/2015,Project delivery costs – supplier services ,East and Central Africa ,Supplier Name withheld ,204400-101 ,"2,249.99",
DFID,DFID,22/12/2015,DFID Purchased Relief Supplies ,East and Central Africa ,Supplier Name withheld ,204266-103 ,"162,906.65",
DFID,DFID,15/12/2015,Project delivery costs – supplier services ,Middle East  Humanitarian & Conflict Division ,Supplier Name withheld ,204267-101 ,937.46,
DFID,DFID,10/12/2015,Bank Charges/Services ,Group Operations ,Supplier Name withheld ,204664-101 ,"3,000.00",
DFID,DFID,29/12/2015,Aid Programme - Accountable Grant Payments ,Asia  Caribbean and Overseas Territories ,Supplier Name withheld ,204623-108 ,"21,299.00",
DFID,DFID,16/12/2015,Aid Programme - Humanitarian Material Relief Assistance and Services ,Middle East  Humanitarian & Conflict Division ,Supplier Name withheld ,204516-102 ,"34,293.60",
DFID,DFID,10/12/2015,Aid Programme - Humanitarian Material Relief Assistance and Services ,Middle East  Humanitarian & Conflict Division ,Supplier Name withheld ,204516-102 ,"27,058.80",
DFID,DFID,01/12/2015,Aid Programme - Humanitarian Material Relief Assistance and Services ,Middle East  Humanitarian & Conflict Division ,Supplier Name withheld ,204516-102 ,"4,080.00",
DFID,DFID,01/12/2015,Aid Programme - Humanitarian Material Relief Assistance and Services ,Middle East  Humanitarian & Conflict Division ,Supplier Name withheld ,204516-102 ,"14,387.66",
DFID,DFID,11/12/2015,Aid Programme - Humanitarian Material Relief Assistance and Services ,Middle East  Humanitarian & Conflict Division ,Supplier Name withheld ,204516-102 ,"8,982.00",
DFID,DFID,11/12/2015,Aid Programme - Humanitarian Material Relief Assistance and Services ,Middle East  Humanitarian & Conflict Division ,Supplier Name withheld ,204516-102 ,"19,080.77",
DFID,DFID,11/12/2015,Aid Programme - Humanitarian Material Relief Assistance and Services ,Middle East  Humanitarian & Conflict Division ,Supplier Name withheld ,204516-102 ,"35,776.80",
DFID,DFID,17/12/2015,Aid Programme - Humanitarian Material Relief Assistance and Services ,Middle East  Humanitarian & Conflict Division ,Supplier Name withheld ,204516-102 ,"4,696.04",
DFID,DFID,18/12/2015,Aid Programme - Humanitarian Material Relief Assistance and Services ,Middle East  Humanitarian & Conflict Division ,Supplier Name withheld ,204516-102 ,"17,287.49",
DFID,DFID,14/12/2015,Aid Programme - Humanitarian Material Relief Assistance and Services ,Middle East  Humanitarian & Conflict Division ,Supplier Name withheld ,204516-103 ,"1,138.39",
DFID,DFID,08/12/2015,Project delivery costs – supplier services ,East and Central Africa ,Supplier Name withheld ,204439-103 ,687.60,
DFID,DFID,01/12/2015,Project delivery costs – supplier services ,East and Central Africa ,Supplier Name withheld ,204439-103 ,"12,283.64",
DFID,DFID,10/12/2015,Project delivery costs – supplier services ,East and Central Africa ,Supplier Name withheld ,204852-109 ,"12,412.80",
DFID,DFID,10/12/2015,Project delivery costs – supplier services ,East and Central Africa ,Supplier Name withheld ,204852-109 ,"9,263.89",
DFID,DFID,15/12/2015,Project delivery costs – supplier services ,West and Southern Africa ,Supplier Name withheld ,204883-102 ,"11,707.20",
DFID,DFID,15/12/2015,Project delivery costs – supplier services ,West and Southern Africa ,Supplier Name withheld ,204883-102 ,"1,649.96",
DFID,DFID,15/12/2015,Project delivery costs – supplier services ,East and Central Africa ,Supplier Name withheld ,204851-105 ,"1,496.42",
DFID,DFID,11/12/2015,Project delivery costs – supplier services ,Regional Directorate ,Supplier Name withheld ,204902-103 ,"63,115.20",
DFID,DFID,16/12/2015,Project delivery costs – supplier services ,Regional Directorate ,Supplier Name withheld ,204902-103 ,"14,023.68",
DFID,DFID,18/12/2015,Project delivery costs – supplier services ,Regional Directorate ,Supplier Name withheld ,204902-103 ,"35,581.20",
DFID,DFID,18/12/2015,Project delivery costs – supplier services ,Regional Directorate ,Supplier Name withheld ,204902-103 ,948.72,
DFID,DFID,07/12/2015,Project delivery costs – supplier services ,Regional Directorate ,Supplier Name withheld ,204902-105 ,"40,824.00",
DFID,DFID,04/12/2015,Project delivery costs – supplier services ,Regional Directorate ,Supplier Name withheld ,204902-105 ,"11,970.00",
DFID,DFID,04/12/2015,Project delivery costs – supplier services ,Regional Directorate ,Supplier Name withheld ,204902-105 ,"15,649.20",
DFID,DFID,04/12/2015,Project delivery costs – supplier services ,Regional Directorate ,Supplier Name withheld ,204902-105 ,"15,709.20",
DFID,DFID,16/12/2015,Project delivery costs – supplier services ,Regional Directorate ,Supplier Name withheld ,204902-105 ,"1,499.26",
DFID,DFID,10/12/2015,Project delivery costs – supplier services ,Regional Directorate ,Supplier Name withheld ,204902-105 ,"30,263.00",
DFID,DFID,21/12/2015,Project delivery costs – supplier services ,West and Southern Africa ,Supplier Name withheld ,205122-101 ,"13,726.80",
DFID,DFID,15/12/2015,Project delivery costs – supplier services ,East and Central Africa ,Supplier Name withheld ,205064-106 ,"4,625.42",
DFID,DFID,30/12/2015,Project delivery costs – supplier services ,Western Asia Division ,Supplier Name withheld ,204973-104 ,"11,974.80",
DFID,DFID,11/12/2015,Aid Programme - Humanitarian Material Relief Assistance and Services ,Western Asia Division ,Supplier Name withheld ,204973-104 ,"4,082.40",
DFID,DFID,30/12/2015,Project delivery costs – supplier services ,Regional Directorate ,Supplier Name withheld ,204967-106 ,"3,820.95",
DFID,DFID,15/12/2015,Project delivery costs – supplier services ,Regional Directorate ,Supplier Name withheld ,204967-106 ,"12,192.00",
DFID,DFID,11/12/2015,Aid Programme - Humanitarian Material Relief Assistance and Services ,Middle East  Humanitarian & Conflict Division ,Supplier Name withheld ,204968-103 ,"6,812.05",
DFID,DFID,10/12/2015,Project delivery costs – supplier services ,Middle East  Humanitarian & Conflict Division ,Supplier Name withheld ,204016-103 ,841.55,
DFID,DFID,11/12/2015,Project delivery costs – supplier services ,Middle East  Humanitarian & Conflict Division ,Supplier Name withheld ,204016-103 ,"3,282.60",
DFID,DFID,11/12/2015,Project delivery costs – supplier services ,Middle East  Humanitarian & Conflict Division ,Supplier Name withheld ,204016-103 ,"24,980.40",
DFID,DFID,09/12/2015,Aid Programme - Humanitarian Material Relief Assistance and Services ,Middle East  Humanitarian & Conflict Division ,Supplier Name withheld ,204016-104 ,"16,938.66",
DFID,DFID,09/12/2015,Aid Programme - Humanitarian Material Relief Assistance and Services ,Middle East  Humanitarian & Conflict Division ,Supplier Name withheld ,204016-104 ,"5,366.04",
DFID,DFID,17/12/2015,Project delivery costs – supplier services ,Economic Development Division ,Supplier Name withheld ,203375-101 ,"602,604.00",
DFID,DFID,04/12/2015,Project delivery costs – supplier services ,Economic Development Division ,Supplier Name withheld ,203375-101 ,"220,025.00",
DFID,DFID,14/12/2015,Project delivery costs – supplier services ,Economic Development Division ,Supplier Name withheld ,203375-102 ,"25,255.00",
DFID,DFID,15/12/2015,Project delivery costs – supplier services ,Western Asia Division ,Supplier Name withheld ,203264-103 ,"3,822.00",
DFID,DFID,14/12/2015,Project delivery costs – supplier services ,East and Central Africa ,Supplier Name withheld ,203109-106 ,"1,527,268.00",
DFID,DFID,14/12/2015,Project delivery costs – supplier services ,East and Central Africa ,Supplier Name withheld ,203109-106 ,"844,915.00",
DFID,DFID,14/12/2015,Project delivery costs – supplier services ,East and Central Africa ,Supplier Name withheld ,203109-106 ,"875,354.06",
DFID,DFID,14/12/2015,Project delivery costs – supplier services ,East and Central Africa ,Supplier Name withheld ,203109-106 ,"179,745.00",
DFID,DFID,14/12/2015,Project delivery costs – supplier services ,East and Central Africa ,Supplier Name withheld ,203109-106 ,"400,143.02",
DFID,DFID,14/12/2015,Project delivery costs – supplier services ,East and Central Africa ,Supplier Name withheld ,203109-106 ,"284,521.00",
DFID,DFID,14/12/2015,Project delivery costs – supplier services ,East and Central Africa ,Supplier Name withheld ,203109-106 ,"1,905,514.00",
DFID,DFID,15/12/2015,Project delivery costs – supplier services ,East and Central Africa ,Supplier Name withheld ,203109-106 ,"301,236.79",
DFID,DFID,17/12/2015,Project delivery costs – supplier services ,East and Central Africa ,Supplier Name withheld ,203109-106 ,"401,586.08",
DFID,DFID,04/12/2015,Project delivery costs – supplier services ,West and Southern Africa ,Supplier Name withheld ,202978-106 ,"12,756.46",
DFID,DFID,04/12/2015,Project delivery costs – supplier services ,West and Southern Africa ,Supplier Name withheld ,202978-106 ,945.04,
DFID,DFID,11/12/2015,Project delivery costs – supplier services ,West and Southern Africa ,Supplier Name withheld ,202978-106 ,"15,167.89",
DFID,DFID,04/12/2015,DFID Purchased Relief Supplies ,West and Southern Africa ,Supplier Name withheld ,202992-102 ,"321,853.09",
DFID,DFID,17/12/2015,DFID Purchased Relief Supplies ,West and Southern Africa ,Supplier Name withheld ,202992-102 ,"140,490.74",
DFID,DFID,31/12/2015,DFID Purchased Relief Supplies ,West and Southern Africa ,Supplier Name withheld ,202992-102 ,"6,096.37",
DFID,DFID,09/12/2015,Fund monies to be managed and dispersed by the supplier ,East and Central Africa ,Supplier Name withheld ,202946-103 ,"60,739.68",
DFID,DFID,09/12/2015,Fund monies to be managed and dispersed by the supplier ,East and Central Africa ,Supplier Name withheld ,202946-108 ,"15,376.96",
DFID,DFID,21/12/2015,Fund monies to be managed and dispersed by the supplier ,East and Central Africa ,Supplier Name withheld ,202974-101 ,"150,372.37",
DFID,DFID,01/12/2015,Aid Programme - Accountable Grant Payments ,Policy Division ,CONCERN WORLDWIDE ,203559-120 ,"506,759.00",
DFID,DFID,10/12/2015,Aid Programme - Accountable Grant Payments ,East and Central Africa ,CONCERN WORLDWIDE ,202619-114 ,"440,815.42",
DFID,DFID,02/12/2015,Aid Programme - Partnership Programme Arrangements ,Policy Division ,Conciliation Resources ,202702-101 ,"250,644.25",
DFID,DFID,03/12/2015,Aid Programme - Accountable Grant Payments ,Research and Evidence Division ,CENTRE FOR ECONOMIC POLICY RESEARCH ,202835-101 ,"809,832.77",
DFID,DFID,16/12/2015,Project delivery costs – supplier services ,Research and Evidence Division ,CAB INTERNATIONAL ,112152-102 ,"19,874.88",
DFID,DFID,04/12/2015,Aid Programme - Accountable Grant Payments ,Policy Division ,COMIC RELIEF ,203873-101 ,"30,000.00",
DFID,DFID,03/12/2015,Property rates ,Group Operations ,CITY OF WESTMINSTER ,203717-101 ,"127,224.00",One tenth of the 2015/16 Whitehall headquarters rateable value (ninth December instalment)  
DFID,DFID,01/12/2015,DFID Purchased Relief Supplies ,West and Southern Africa ,CHARLES KENDALL & PARTNERS LIMITED (PROCUREMENT) ,202524-107 ,"102,172.00",
DFID,DFID,21/12/2015,DFID Purchased Relief Supplies ,West and Southern Africa ,CHARLES KENDALL & PARTNERS LIMITED (PROCUREMENT) ,202524-107 ,"2,309.76",
DFID,DFID,14/12/2015,DFID Purchased Relief Supplies ,West and Southern Africa ,CHARLES KENDALL & PARTNERS LIMITED (PROCUREMENT) ,202524-114 ,"48,163.92",
DFID,DFID,14/12/2015,Project delivery costs – supplier services ,West and Southern Africa ,CHARLES KENDALL & PARTNERS LIMITED (PROCUREMENT) ,202524-115 ,953.33,
DFID,DFID,07/12/2015,DFID Purchased Relief Supplies ,East and Central Africa ,CHARLES KENDALL & PARTNERS LIMITED (PROCUREMENT) ,202547-103 ,"655,530.42",
DFID,DFID,10/12/2015,DFID Purchased Relief Supplies ,East and Central Africa ,CHARLES KENDALL & PARTNERS LIMITED (PROCUREMENT) ,202547-103 ,"655,538.02",
DFID,DFID,10/12/2015,DFID Purchased Relief Supplies ,West and Southern Africa ,CHARLES KENDALL & PARTNERS LIMITED (PROCUREMENT) ,202214-106 ,"22,329.12",
DFID,DFID,21/12/2015,Project delivery costs – supplier services ,Asia  Caribbean and Overseas Territories ,Supplier Name withheld ,114506-101 ,"119,427.19",
DFID,DFID,22/12/2015,Project delivery costs – supplier services ,Asia  Caribbean and Overseas Territories ,Supplier Name withheld ,114506-101 ,"119,427.19",
DFID,DFID,22/12/2015,Project delivery costs – supplier services ,Asia  Caribbean and Overseas Territories ,Supplier Name withheld ,114506-101 ,"161,268.96",
DFID,DFID,07/12/2015,Project delivery costs – supplier services ,Asia  Caribbean and Overseas Territories ,Supplier Name withheld ,114506-101 ,"286,561.14",
DFID,DFID,17/12/2015,Project delivery costs – supplier services ,Asia  Caribbean and Overseas Territories ,Supplier Name withheld ,114506-101 ,"161,268.34",
DFID,DFID,18/12/2015,Project delivery costs – supplier services ,Asia  Caribbean and Overseas Territories ,Supplier Name withheld ,114506-101 ,"119,427.19",
DFID,DFID,09/12/2015,Project delivery costs – supplier services ,Asia  Caribbean and Overseas Territories ,Supplier Name withheld ,114506-101 ,"119,427.19",
DFID,DFID,09/12/2015,Project delivery costs – supplier services ,Asia  Caribbean and Overseas Territories ,Supplier Name withheld ,114506-101 ,"41,138.95",
DFID,DFID,18/12/2015,Project delivery costs – supplier services ,Asia  Caribbean and Overseas Territories ,Supplier Name withheld ,114506-101 ,"117,593.46",
DFID,DFID,18/12/2015,Project delivery costs – supplier services ,Asia  Caribbean and Overseas Territories ,Supplier Name withheld ,114506-101 ,"257,338.31",
DFID,DFID,04/12/2015,Project delivery costs – supplier services ,Asia  Caribbean and Overseas Territories ,Supplier Name withheld ,114506-101 ,"151,210.08",
DFID,DFID,15/12/2015,Project delivery costs – supplier services ,Asia  Caribbean and Overseas Territories ,Supplier Name withheld ,114506-101 ,"161,268.96",
DFID,DFID,03/12/2015,Project delivery costs – supplier services ,Asia  Caribbean and Overseas Territories ,Supplier Name withheld ,114506-101 ,"119,427.19",
DFID,DFID,03/12/2015,Project delivery costs – supplier services ,Asia  Caribbean and Overseas Territories ,Supplier Name withheld ,114506-101 ,"267,493.82",
DFID,DFID,03/12/2015,Project delivery costs – supplier services ,Asia  Caribbean and Overseas Territories ,Supplier Name withheld ,114506-101 ,"583,946.66",
DFID,DFID,03/12/2015,Project delivery costs – supplier services ,Asia  Caribbean and Overseas Territories ,Supplier Name withheld ,114506-101 ,"177,404.94",
DFID,DFID,03/12/2015,Project delivery costs – supplier services ,Asia  Caribbean and Overseas Territories ,Supplier Name withheld ,114506-101 ,"160,879.78",
DFID,DFID,03/12/2015,Project delivery costs – supplier services ,Asia  Caribbean and Overseas Territories ,Supplier Name withheld ,114506-101 ,"81,346.42",
DFID,DFID,03/12/2015,Project delivery costs – supplier services ,Asia  Caribbean and Overseas Territories ,Supplier Name withheld ,114506-101 ,"177,404.94",
DFID,DFID,11/12/2015,Project delivery costs – supplier services ,Asia  Caribbean and Overseas Territories ,Supplier Name withheld ,114506-101 ,"667,226.48",
DFID,DFID,11/12/2015,Project delivery costs – supplier services ,Asia  Caribbean and Overseas Territories ,Supplier Name withheld ,114506-101 ,"177,833.43",
DFID,DFID,11/12/2015,Project delivery costs – supplier services ,Asia  Caribbean and Overseas Territories ,Supplier Name withheld ,114506-101 ,"161,268.34",
DFID,DFID,11/12/2015,Project delivery costs – supplier services ,Asia  Caribbean and Overseas Territories ,Supplier Name withheld ,114506-101 ,"119,427.19",
DFID,DFID,11/12/2015,Project delivery costs – supplier services ,Asia  Caribbean and Overseas Territories ,Supplier Name withheld ,114506-101 ,"119,427.19",
DFID,DFID,17/12/2015,Training - Course Fees ,Human Resources ,Capita  Business Services ,100269-153 ,618.29,
DFID,DFID,22/12/2015,Training - Course Fees ,Human Resources ,Capita  Business Services ,100269-153 ,"1,149.39",
DFID,DFID,02/12/2015,Training - Course Fees ,Human Resources ,Capita  Business Services ,100269-155 ,"2,639.50",
DFID,DFID,11/12/2015,Training Providers/Facilitation Services ,Human Resources ,Capita  Business Services ,100269-158 ,792.68,
DFID,DFID,04/12/2015,Training - Course Fees ,Human Resources ,Capita  Business Services ,100269-158 ,"2,473.18",
DFID,DFID,01/12/2015,Training - Course Fees ,Group Operations ,Capita  Business Services ,204284-101 ,963.00,
DFID,DFID,17/12/2015,Aid Programme - Accountable Grant Payments ,West and Southern Africa ,CONCERN WORLDWIDE ,203445-104 ,"743,986.00",
DFID,DFID,01/12/2015,Research and development costs - supplier services ,Research and Evidence Division ,DEVELOPMENT INITIATIVES ,203706-103 ,"24,000.00",
DFID,DFID,15/12/2015,Project delivery costs – supplier services ,East and Central Africa ,Supplier Name withheld ,202549-107 ,"3,598.50",
DFID,DFID,17/12/2015,Project delivery costs – supplier services ,East and Central Africa ,Supplier Name withheld ,202501-106 ,"2,650.00",
DFID,DFID,02/12/2015,Project delivery costs – supplier services ,East and Central Africa ,Supplier Name withheld ,202514-104 ,"16,269.46",
DFID,DFID,15/12/2015,Project delivery costs – supplier services ,Policy Division ,Supplier Name withheld ,202194-102 ,"1,051.49",
DFID,DFID,04/12/2015,Project delivery costs – supplier services ,West and Southern Africa ,Supplier Name withheld ,202455-104 ,"15,474.16",
DFID,DFID,15/12/2015,Project delivery costs – supplier services ,West and Southern Africa ,Supplier Name withheld ,202455-104 ,"12,297.22",
DFID,DFID,04/12/2015,Project delivery costs – supplier services ,Asia  Caribbean and Overseas Territories ,Supplier Name withheld ,202393-107 ,"20,111.93",
DFID,DFID,16/12/2015,Project delivery costs – supplier services ,West and Southern Africa ,Supplier Name withheld ,201629-103 ,"9,742.10",
DFID,DFID,01/12/2015,Project delivery costs – supplier services ,West and Southern Africa ,Supplier Name withheld ,203881-101 ,"130,011.17",
DFID,DFID,11/12/2015,Project delivery costs – supplier services ,West and Southern Africa ,Supplier Name withheld ,203824-101 ,"43,230.06",
DFID,DFID,15/12/2015,Project delivery costs – supplier services ,West and Southern Africa ,Supplier Name withheld ,203824-101 ,"6,155.07",
DFID,DFID,01/12/2015,Project delivery costs – supplier services ,East and Central Africa ,Supplier Name withheld ,203766-106 ,"351,513.94",
DFID,DFID,16/12/2015,Project delivery costs – supplier services ,East and Central Africa ,Supplier Name withheld ,202995-105 ,"11,434.61",
DFID,DFID,15/12/2015,Project delivery costs – supplier services ,Research and Evidence Division ,Supplier Name withheld ,203193-101 ,"34,497.34",
DFID,DFID,11/12/2015,Project delivery costs – supplier services ,Research and Evidence Division ,Supplier Name withheld ,203193-101 ,"5,926.38",
DFID,DFID,04/12/2015,Project delivery costs – supplier services ,East and Central Africa ,Supplier Name withheld ,204882-104 ,"18,500.00",
DFID,DFID,08/12/2015,Project delivery costs – supplier services ,East and Central Africa ,Supplier Name withheld ,204882-105 ,"11,344.00",
DFID,DFID,08/12/2015,Project delivery costs – supplier services ,East and Central Africa ,Supplier Name withheld ,204882-105 ,"4,035.33",
DFID,DFID,21/12/2015,Project delivery costs – supplier services ,East and Central Africa ,Supplier Name withheld ,204788-104 ,"83,918.80",
DFID,DFID,08/12/2015,Project delivery costs – supplier services ,East and Central Africa ,Supplier Name withheld ,204736-107 ,"9,667.95",
DFID,DFID,01/12/2015,Project delivery costs – supplier services ,East and Central Africa ,Supplier Name withheld ,204745-101 ,"54,127.22",
DFID,DFID,09/12/2015,Project delivery costs – supplier services ,Western Asia Division ,Supplier Name withheld ,204952-101 ,"450,000.00",
DFID,DFID,10/12/2015,Project delivery costs – supplier services ,Western Asia Division ,Supplier Name withheld ,204977-101 ,"19,671.96",
DFID,DFID,21/12/2015,Project delivery costs – supplier services ,Research and Evidence Division ,ENTERPRISE LSE LTD ,203199-105 ,"10,474.36",
DFID,DFID,01/12/2015,Aid Programme - Accountable Grant Payments ,Policy Division ,EMERGENCY NUTRITION NETWORK ,204954-104 ,"218,868.00",
DFID,DFID,14/12/2015,Project delivery costs – supplier services ,Research and Evidence Division ,ECONOMIC AND SOCIAL RESEARCH COUNCIL ,204806-102 ,"40,000.00",
DFID,DFID,10/12/2015,Research and development costs - supplier services ,Research and Evidence Division ,ECONOMIC AND SOCIAL RESEARCH COUNCIL ,203545-103 ,"882,941.13",
DFID,DFID,10/12/2015,Research and development costs - supplier services ,Research and Evidence Division ,ECONOMIC AND SOCIAL RESEARCH COUNCIL ,203545-103 ,"33,082.70",
DFID,DFID,09/12/2015,Research and development costs - supplier services ,Research and Evidence Division ,ECONOMIC AND SOCIAL RESEARCH COUNCIL ,200461-101 ,"414,682.60",
DFID,DFID,09/12/2015,Research and development costs - supplier services ,Research and Evidence Division ,ECONOMIC AND SOCIAL RESEARCH COUNCIL ,200461-101 ,"5,847.31",
DFID,DFID,15/12/2015,Aid Programme - Accountable Grant Payments ,Research and Evidence Division ,ECONOMIC AND SOCIAL RESEARCH COUNCIL ,202168-101 ,"662,764.01",
DFID,DFID,15/12/2015,Aid Programme - Accountable Grant Payments ,Research and Evidence Division ,ECONOMIC AND SOCIAL RESEARCH COUNCIL ,202168-101 ,"18,000.00",
DFID,DFID,04/12/2015,Aid Programme - Partnership Programme Arrangements ,Policy Division ,FARM-Africa ,202624-101 ,"769,567.50",
DFID,DFID,14/12/2015,Postage Costs ,Group Operations ,FCO SERVICES ,201157-101 ,"2,628.50",
DFID,DFID,17/12/2015,Courier & Bag Services ,Business Solutions Division Level ,FCO SERVICES ,200001-101 ,982.57,
DFID,DFID,02/12/2015,Office Supplies ,Business Solutions Division Level ,FCO SERVICES ,200001-101 ,"4,944.36",
DFID,DFID,07/12/2015,Government Car Scheme UK ,Top Management Group ,FCO SERVICES ,100232-108 ,"2,474.76",
DFID,DFID,07/12/2015,Government Car Scheme UK ,Top Management Group ,FCO SERVICES ,100232-108 ,795.60,
DFID,DFID,07/12/2015,Government Car Scheme UK ,Top Management Group ,FCO SERVICES ,100232-106 ,795.60,
DFID,DFID,07/12/2015,Government Car Scheme UK ,Top Management Group ,FCO SERVICES ,100232-106 ,"2,474.76",
DFID,DFID,07/12/2015,Government Car Scheme UK ,Top Management Group ,FCO SERVICES ,100232-107 ,795.60,
DFID,DFID,07/12/2015,Government Car Scheme UK ,Top Management Group ,FCO SERVICES ,100232-107 ,"2,474.73",
DFID,DFID,07/12/2015,Government Car Scheme UK ,Top Management Group ,FCO SERVICES ,100232-102 ,"2,474.76",
DFID,DFID,07/12/2015,Government Car Scheme UK ,Top Management Group ,FCO SERVICES ,100232-102 ,795.62,
DFID,DFID,17/12/2015,FCO shared service charges ,Group Operations ,FCO SERVICES ,203717-101 ,789.21,
DFID,DFID,02/12/2015,Project delivery costs – supplier services ,Economic Development Division ,GBRW LIMITED ,100111-101 ,"1,835.30",
DFID,DFID,15/12/2015,Project delivery costs – supplier services ,West and Southern Africa ,PALLADIUM ,114230-101 ,"469,635.00",
DFID,DFID,14/12/2015,Project delivery costs – supplier services ,West and Southern Africa ,PALLADIUM ,202352-102 ,"339,905.74",
DFID,DFID,10/12/2015,Project delivery costs – supplier services ,West and Southern Africa ,PALLADIUM ,202370-102 ,"548,226.16",
DFID,DFID,18/12/2015,Project delivery costs – supplier services ,West and Southern Africa ,PALLADIUM ,202098-101 ,"424,396.82",
DFID,DFID,14/12/2015,Project delivery costs – supplier services ,West and Southern Africa ,PALLADIUM ,202098-101 ,"354,682.15",
DFID,DFID,02/12/2015,Project delivery costs – supplier services ,East and Central Africa ,PALLADIUM ,203539-102 ,"357,465.27",
DFID,DFID,02/12/2015,Fund monies to be managed and dispersed by the supplier ,East and Central Africa ,PALLADIUM ,203539-102 ,"892,831.00",
DFID,DFID,17/12/2015,Project delivery costs – supplier services ,East and Central Africa ,PALLADIUM ,203539-102 ,"61,372.29",
DFID,DFID,17/12/2015,Fund monies to be managed and dispersed by the supplier ,East and Central Africa ,PALLADIUM ,203539-102 ,"1,219,902.00",
DFID,DFID,01/12/2015,Project delivery costs – supplier services ,East and Central Africa ,PALLADIUM ,205123-101 ,"11,670.00",
DFID,DFID,01/12/2015,Project delivery costs – supplier services ,East and Central Africa ,PALLADIUM ,205123-101 ,"1,334.06",
DFID,DFID,22/12/2015,Project delivery costs – supplier services ,Asia  Caribbean and Overseas Territories ,ICF CONSULTING SERVICES LTD. ,114168-101 ,"17,685.00",
DFID,DFID,22/12/2015,Project delivery costs – supplier services ,Asia  Caribbean and Overseas Territories ,ICF CONSULTING SERVICES LTD. ,114168-101 ,"59,874.00",
DFID,DFID,18/12/2015,Project delivery costs – supplier services ,Asia  Caribbean and Overseas Territories ,ICF CONSULTING SERVICES LTD. ,114168-101 ,"53,215.00",
DFID,DFID,04/12/2015,Project delivery costs – supplier services ,Asia  Caribbean and Overseas Territories ,ICF CONSULTING SERVICES LTD. ,114168-101 ,"40,767.00",
DFID,DFID,24/12/2015,Project delivery costs – supplier services ,Asia  Caribbean and Overseas Territories ,ICF Consulting Services Ltd ,107891-102 ,"38,952.00",
DFID,DFID,24/12/2015,Project delivery costs – supplier services ,Asia  Caribbean and Overseas Territories ,ICF Consulting Services Ltd ,107891-102 ,"6,301.00",
DFID,DFID,22/12/2015,Project delivery costs – supplier services ,Asia  Caribbean and Overseas Territories ,ICF Consulting Services Ltd ,107891-102 ,"35,729.00",
DFID,DFID,22/12/2015,Project delivery costs – supplier services ,Asia  Caribbean and Overseas Territories ,ICF Consulting Services Ltd ,107891-102 ,"23,819.00",
DFID,DFID,22/12/2015,Project delivery costs – supplier services ,Asia  Caribbean and Overseas Territories ,ICF Consulting Services Ltd ,107891-102 ,"23,819.00",
DFID,DFID,22/12/2015,Project delivery costs – supplier services ,Asia  Caribbean and Overseas Territories ,ICF Consulting Services Ltd ,107891-102 ,"23,819.00",
DFID,DFID,22/12/2015,Project delivery costs – supplier services ,Asia  Caribbean and Overseas Territories ,ICF Consulting Services Ltd ,107891-102 ,"17,864.00",
DFID,DFID,22/12/2015,Project delivery costs – supplier services ,Asia  Caribbean and Overseas Territories ,ICF Consulting Services Ltd ,107891-102 ,"23,819.00",
DFID,DFID,21/12/2015,Project delivery costs – supplier services ,Asia  Caribbean and Overseas Territories ,ICF Consulting Services Ltd ,107891-102 ,"23,819.00",
DFID,DFID,21/12/2015,Project delivery costs – supplier services ,Asia  Caribbean and Overseas Territories ,ICF Consulting Services Ltd ,107891-102 ,"23,819.00",
DFID,DFID,21/12/2015,Project delivery costs – supplier services ,Asia  Caribbean and Overseas Territories ,ICF Consulting Services Ltd ,107891-102 ,"23,819.00",
DFID,DFID,21/12/2015,Project delivery costs – supplier services ,Asia  Caribbean and Overseas Territories ,ICF Consulting Services Ltd ,107891-102 ,"11,909.00",
DFID,DFID,21/12/2015,Project delivery costs – supplier services ,Asia  Caribbean and Overseas Territories ,ICF Consulting Services Ltd ,107891-102 ,"23,819.00",
DFID,DFID,21/12/2015,Project delivery costs – supplier services ,Asia  Caribbean and Overseas Territories ,ICF Consulting Services Ltd ,107891-102 ,"23,819.00",
DFID,DFID,21/12/2015,Project delivery costs – supplier services ,Asia  Caribbean and Overseas Territories ,ICF Consulting Services Ltd ,107891-102 ,"23,819.00",
DFID,DFID,22/12/2015,Project delivery costs – supplier services ,Asia  Caribbean and Overseas Territories ,ICF Consulting Services Ltd ,107891-102 ,"23,819.00",
DFID,DFID,22/12/2015,Project delivery costs – supplier services ,Asia  Caribbean and Overseas Territories ,ICF Consulting Services Ltd ,107891-102 ,"29,775.00",
DFID,DFID,04/12/2015,Project delivery costs – supplier services ,Asia  Caribbean and Overseas Territories ,ICF Consulting Services Ltd ,107891-102 ,"6,839.00",
DFID,DFID,10/12/2015,Project delivery costs – supplier services ,Asia  Caribbean and Overseas Territories ,ICF Consulting Services Ltd ,107891-102 ,"35,401.00",
DFID,DFID,10/12/2015,Project delivery costs – supplier services ,Asia  Caribbean and Overseas Territories ,ICF Consulting Services Ltd ,107891-102 ,"35,576.00",
DFID,DFID,10/12/2015,Project delivery costs – supplier services ,Asia  Caribbean and Overseas Territories ,ICF Consulting Services Ltd ,107891-102 ,"11,326.00",
DFID,DFID,10/12/2015,Project delivery costs – supplier services ,Asia  Caribbean and Overseas Territories ,ICF Consulting Services Ltd ,107891-102 ,"5,899.00",
DFID,DFID,18/12/2015,Project delivery costs – supplier services ,Asia  Caribbean and Overseas Territories ,ICF Consulting Services Ltd ,107891-102 ,"5,514.00",
DFID,DFID,23/12/2015,Project delivery costs – supplier services ,Asia  Caribbean and Overseas Territories ,ICF Consulting Services Ltd ,107891-102 ,"11,909.00",
DFID,DFID,23/12/2015,Project delivery costs – supplier services ,Asia  Caribbean and Overseas Territories ,ICF Consulting Services Ltd ,107891-102 ,"17,864.00",
DFID,DFID,23/12/2015,Project delivery costs – supplier services ,Asia  Caribbean and Overseas Territories ,ICF Consulting Services Ltd ,107891-102 ,"24,675.00",
DFID,DFID,11/12/2015,Project delivery costs – supplier services ,Asia  Caribbean and Overseas Territories ,ICF Consulting Services Ltd ,202744-101 ,"107,794.50",
DFID,DFID,11/12/2015,Project delivery costs – supplier services ,Asia  Caribbean and Overseas Territories ,ICF Consulting Services Ltd ,202744-101 ,"2,545.86",
DFID,DFID,23/12/2015,Project delivery costs – supplier services ,Asia  Caribbean and Overseas Territories ,ICF Consulting Services Ltd ,203484-101 ,"3,724.00",
DFID,DFID,23/12/2015,Project delivery costs – supplier services ,Asia  Caribbean and Overseas Territories ,ICF Consulting Services Ltd ,203484-101 ,540.00,
DFID,DFID,23/12/2015,Project delivery costs – supplier services ,Asia  Caribbean and Overseas Territories ,ICF Consulting Services Ltd ,203484-101 ,"6,692.00",
DFID,DFID,23/12/2015,Project delivery costs – supplier services ,Asia  Caribbean and Overseas Territories ,ICF Consulting Services Ltd ,203484-101 ,970.00,
DFID,DFID,22/12/2015,Project delivery costs – supplier services ,Asia  Caribbean and Overseas Territories ,ICF Consulting Services Ltd ,203484-101 ,"13,562.00",
DFID,DFID,22/12/2015,Project delivery costs – supplier services ,Asia  Caribbean and Overseas Territories ,ICF Consulting Services Ltd ,203484-101 ,"2,841.00",
DFID,DFID,22/12/2015,Project delivery costs – supplier services ,Asia  Caribbean and Overseas Territories ,ICF Consulting Services Ltd ,203484-101 ,"2,857.00",
DFID,DFID,22/12/2015,Project delivery costs – supplier services ,Asia  Caribbean and Overseas Territories ,ICF Consulting Services Ltd ,203484-101 ,"17,417.00",
DFID,DFID,22/12/2015,Project delivery costs – supplier services ,Asia  Caribbean and Overseas Territories ,ICF Consulting Services Ltd ,203484-101 ,"2,613.00",
DFID,DFID,24/12/2015,Project delivery costs – supplier services ,Asia  Caribbean and Overseas Territories ,ICF Consulting Services Ltd ,203484-101 ,"13,941.00",
DFID,DFID,24/12/2015,Project delivery costs – supplier services ,Asia  Caribbean and Overseas Territories ,ICF Consulting Services Ltd ,203484-101 ,"13,829.00",
DFID,DFID,09/12/2015,Project delivery costs – supplier services ,Asia  Caribbean and Overseas Territories ,ICF Consulting Services Ltd ,203484-101 ,"16,974.00",
DFID,DFID,09/12/2015,Project delivery costs – supplier services ,Asia  Caribbean and Overseas Territories ,ICF Consulting Services Ltd ,203484-101 ,"35,716.00",
DFID,DFID,15/12/2015,Project delivery costs – supplier services ,Asia  Caribbean and Overseas Territories ,ICF Consulting Services Ltd ,203484-101 ,"111,295.00",
DFID,DFID,14/12/2015,Project delivery costs – supplier services ,Asia  Caribbean and Overseas Territories ,ICF Consulting Services Ltd ,203484-101 ,"35,780.00",
DFID,DFID,09/12/2015,Project delivery costs – supplier services ,Asia  Caribbean and Overseas Territories ,ICF Consulting Services Ltd ,203484-101 ,"3,425.00",
DFID,DFID,09/12/2015,Project delivery costs – supplier services ,Asia  Caribbean and Overseas Territories ,ICF Consulting Services Ltd ,203484-101 ,"36,177.00",
DFID,DFID,22/12/2015,Project delivery costs – supplier services ,Asia  Caribbean and Overseas Territories ,ICF Consulting Services Ltd ,203484-101 ,"12,189.00",
DFID,DFID,22/12/2015,Project delivery costs – supplier services ,Asia  Caribbean and Overseas Territories ,ICF Consulting Services Ltd ,203484-101 ,"12,486.00",
DFID,DFID,22/12/2015,Project delivery costs – supplier services ,Asia  Caribbean and Overseas Territories ,ICF Consulting Services Ltd ,203484-101 ,"12,803.00",
DFID,DFID,22/12/2015,Project delivery costs – supplier services ,Asia  Caribbean and Overseas Territories ,ICF Consulting Services Ltd ,203484-101 ,"13,516.00",
DFID,DFID,22/12/2015,Project delivery costs – supplier services ,Asia  Caribbean and Overseas Territories ,ICF Consulting Services Ltd ,203484-101 ,"2,909.00",
DFID,DFID,22/12/2015,Project delivery costs – supplier services ,Asia  Caribbean and Overseas Territories ,ICF Consulting Services Ltd ,203484-101 ,"24,639.00",
DFID,DFID,22/12/2015,Project delivery costs – supplier services ,Asia  Caribbean and Overseas Territories ,ICF Consulting Services Ltd ,203484-101 ,"3,138.00",
DFID,DFID,22/12/2015,Project delivery costs – supplier services ,Asia  Caribbean and Overseas Territories ,ICF Consulting Services Ltd ,203484-101 ,"37,736.00",
DFID,DFID,22/12/2015,Project delivery costs – supplier services ,Asia  Caribbean and Overseas Territories ,ICF Consulting Services Ltd ,203484-101 ,"8,798.00",
DFID,DFID,22/12/2015,Project delivery costs – supplier services ,Asia  Caribbean and Overseas Territories ,ICF Consulting Services Ltd ,203484-101 ,"8,912.00",
DFID,DFID,29/12/2015,Project delivery costs – supplier services ,Asia  Caribbean and Overseas Territories ,ICF Consulting Services Ltd ,203484-101 ,"14,484.00",
DFID,DFID,29/12/2015,Project delivery costs – supplier services ,Asia  Caribbean and Overseas Territories ,ICF Consulting Services Ltd ,203484-101 ,"14,873.00",
DFID,DFID,29/12/2015,Project delivery costs – supplier services ,Asia  Caribbean and Overseas Territories ,ICF Consulting Services Ltd ,203484-101 ,"16,406.00",
DFID,DFID,29/12/2015,Project delivery costs – supplier services ,Asia  Caribbean and Overseas Territories ,ICF Consulting Services Ltd ,203484-101 ,"16,606.00",
DFID,DFID,21/12/2015,Project delivery costs – supplier services ,Asia  Caribbean and Overseas Territories ,ICF Consulting Services Ltd ,203484-101 ,"11,470.00",
DFID,DFID,21/12/2015,Project delivery costs – supplier services ,Asia  Caribbean and Overseas Territories ,ICF Consulting Services Ltd ,203484-101 ,"11,306.00",
DFID,DFID,21/12/2015,Project delivery costs – supplier services ,Asia  Caribbean and Overseas Territories ,ICF Consulting Services Ltd ,203484-101 ,"11,220.00",
DFID,DFID,21/12/2015,Project delivery costs – supplier services ,Asia  Caribbean and Overseas Territories ,ICF Consulting Services Ltd ,203484-101 ,"10,963.00",
DFID,DFID,21/12/2015,Project delivery costs – supplier services ,Asia  Caribbean and Overseas Territories ,ICF Consulting Services Ltd ,203484-101 ,"10,250.00",
DFID,DFID,10/12/2015,Aid Programme - Accountable Grant Payments ,Regional Directorate ,Supplier Name withheld ,204838-108 ,"2,700,000.00",
DFID,DFID,08/12/2015,Aid Programme - Partnership Programme Arrangements ,Policy Division ,HELPAGE INTERNATIONAL ,202566-101 ,"667,565.00",
DFID,DFID,14/12/2015,Project delivery costs – supplier services ,West and Southern Africa ,HEALTH PARTNERS INTERNATIONAL ,202694-101 ,"222,343.08",
DFID,DFID,11/12/2015,Project delivery costs – supplier services ,East and Central Africa ,HTSPE LTD ,202900-102 ,"1,709,764.40",
DFID,DFID,09/12/2015,Project delivery costs – supplier services ,East and Central Africa ,HTSPE LTD ,202900-105 ,"4,987.00",
DFID,DFID,09/12/2015,Project delivery costs – supplier services ,East and Central Africa ,HTSPE LTD ,202900-105 ,"8,903.83",
DFID,DFID,10/12/2015,Project delivery costs – supplier services ,East and Central Africa ,HTSPE LTD ,202579-110 ,"10,875.00",
DFID,DFID,17/12/2015,Project delivery costs – supplier services ,East and Central Africa ,HTSPE LTD ,202619-112 ,"35,386.46",
DFID,DFID,17/12/2015,Project delivery costs – supplier services ,East and Central Africa ,HTSPE LTD ,202619-112 ,"29,420.96",
DFID,DFID,02/12/2015,Project delivery costs – supplier services ,West and Southern Africa ,HTSPE LTD ,201944-104 ,"81,681.93",
DFID,DFID,14/12/2015,Project delivery costs – supplier services ,West and Southern Africa ,HTSPE LTD ,201944-104 ,"77,871.41",
DFID,DFID,10/12/2015,Project delivery costs – supplier services ,West and Southern Africa ,HTSPE LTD ,104189-101 ,"855,082.37",
DFID,DFID,07/12/2015,Project delivery costs – supplier services ,Research and Evidence Division ,HTSPE LTD ,203193-101 ,"28,783.68",
DFID,DFID,07/12/2015,Project delivery costs – supplier services ,Research and Evidence Division ,HTSPE LTD ,203193-101 ,"28,783.68",
DFID,DFID,21/12/2015,Project delivery costs – supplier services ,East and Central Africa ,HTSPE LTD ,203439-102 ,"83,486.00",
DFID,DFID,01/12/2015,Project delivery costs – supplier services ,Asia  Caribbean and Overseas Territories ,HTSPE LTD ,203185-101 ,"6,814.59",
DFID,DFID,01/12/2015,Project delivery costs – supplier services ,West and Southern Africa ,HTSPE LTD ,203164-103 ,"87,258.06",
DFID,DFID,18/12/2015,Project delivery costs – supplier services ,Policy Division ,HTSPE LTD ,202948-127 ,"74,648.35",
DFID,DFID,07/12/2015,Project delivery costs – supplier services ,East and Central Africa ,HTSPE LTD ,203574-103 ,"16,283.95",
DFID,DFID,07/12/2015,Research and development costs - supplier services ,Research and Evidence Division ,HTSPE LTD ,204046-101 ,"9,616.00",
DFID,DFID,16/12/2015,Project delivery costs – supplier services ,Asia  Caribbean and Overseas Territories ,HTSPE LTD ,203891-103 ,"4,775.00",
DFID,DFID,18/12/2015,Project delivery costs – supplier services ,Asia  Caribbean and Overseas Territories ,HTSPE LTD ,203891-103 ,"76,985.00",
DFID,DFID,17/12/2015,Project delivery costs – supplier services ,Policy Division ,HTSPE LTD ,204789-102 ,"6,704.17",
DFID,DFID,04/12/2015,Project delivery costs – supplier services ,Economic Development Division ,HTSPE LTD ,204252-110 ,"41,271.56",
DFID,DFID,29/12/2015,Contract & Agency Staff ,Finance and Corporate Performance Division ,Hays Specialist Recruitment Ltd ,100201-101 ,"1,157.16",
DFID,DFID,30/12/2015,Contract & Agency Staff ,Finance and Corporate Performance Division ,Hays Specialist Recruitment Ltd ,100201-101 ,595.28,
DFID,DFID,30/12/2015,Contract & Agency Staff ,Finance and Corporate Performance Division ,Hays Specialist Recruitment Ltd ,100201-101 ,669.69,
DFID,DFID,30/12/2015,Contract & Agency Staff ,Finance and Corporate Performance Division ,Hays Specialist Recruitment Ltd ,100201-101 ,925.73,
DFID,DFID,10/12/2015,Contract & Agency Staff ,Finance and Corporate Performance Division ,Hays Specialist Recruitment Ltd ,100201-101 ,925.73,
DFID,DFID,10/12/2015,Contract & Agency Staff ,Finance and Corporate Performance Division ,Hays Specialist Recruitment Ltd ,100201-101 ,744.10,
DFID,DFID,01/12/2015,Contract & Agency Staff ,Finance and Corporate Performance Division ,Hays Specialist Recruitment Ltd ,100201-101 ,744.10,
DFID,DFID,01/12/2015,Contract & Agency Staff ,Finance and Corporate Performance Division ,Hays Specialist Recruitment Ltd ,100201-101 ,744.10,
DFID,DFID,01/12/2015,Contract & Agency Staff ,Finance and Corporate Performance Division ,Hays Specialist Recruitment Ltd ,100201-101 ,595.28,
DFID,DFID,01/12/2015,Contract & Agency Staff ,Finance and Corporate Performance Division ,Hays Specialist Recruitment Ltd ,100201-101 ,744.10,
DFID,DFID,04/12/2015,Contract & Agency Staff ,Finance and Corporate Performance Division ,Hays Specialist Recruitment Ltd ,100201-101 ,744.10,
DFID,DFID,04/12/2015,Contract & Agency Staff ,Finance and Corporate Performance Division ,Hays Specialist Recruitment Ltd ,100201-101 ,925.73,
DFID,DFID,18/12/2015,Contract & Agency Staff ,Finance and Corporate Performance Division ,Hays Specialist Recruitment Ltd ,100201-101 ,595.28,
DFID,DFID,30/12/2015,Aid Programme - Partnership Programme Arrangements ,Policy Division ,International Planned Parent ,114146-101 ,"2,150,000.00",
DFID,DFID,16/12/2015,Project delivery costs – supplier services ,West and Southern Africa ,ITAD LTD ,202482-102 ,"40,815.00",
DFID,DFID,18/12/2015,Aid Programme - Accountable Grant Payments ,Research and Evidence Division ,INSTITUTE OF DEV  STUDIES UNIVER ,204451-101 ,"187,796.00",
DFID,DFID,01/12/2015,Project delivery costs – supplier services ,Research and Evidence Division ,INTERNATIONAL HIV/AIDS ALLIANCE ,204772-101 ,"9,551.44",
DFID,DFID,03/12/2015,Aid Programme - Partnership Programme Arrangements ,Policy Division ,INTERNATIONAL HIV/AIDS ALLIANCE ,202557-101 ,"972,905.75",
DFID,DFID,02/12/2015,Aid Programme - Core contributions ,Research and Evidence Division ,INTERNATIONAL CENTRE FOR DIARRO ,202767-101 ,"1,250,000.00",
DFID,DFID,10/12/2015,Aid Programme - Accountable Grant Payments ,Asia  Caribbean and Overseas Territories ,INTERNATIONAL CENTRE FOR DIARRO ,204131-103 ,"417,166.00",
DFID,DFID,21/12/2015,Aid Programme - Accountable Grant Payments ,Research and Evidence Division ,INASP ,203962-101 ,"336,760.00",
DFID,DFID,03/12/2015,Aid Programme - Partnership Programme Arrangements ,Policy Division ,INTERNATIONAL ALERT ,202687-101 ,"434,790.00",
DFID,DFID,09/12/2015,Training - Course Fees ,Internal Audit ,INSTITUTE OF INTERNAL AUDITORS-UK ,100121-101 ,"1,215.00",
DFID,DFID,09/12/2015,Research and development costs - supplier services ,Research and Evidence Division ,THE UNIVERSITY OF MANCHESTER ,201010-101 ,"180,190.99",
DFID,DFID,18/12/2015,Aid Programme - Accountable Grant Payments ,West and Southern Africa ,INTERNATIONAL RESCUE COMMITTEE UK ,202909-101 ,"480,475.00",
DFID,DFID,30/12/2015,Aid Programme - Accountable Grant Payments ,West and Southern Africa ,INTERNATIONAL RESCUE COMMITTEE UK ,105862-103 ,"2,116,637.00",
DFID,DFID,18/12/2015,Aid Programme - Humanitarian Material Relief Assistance and Services ,Western Asia Division ,INTERNATIONAL RESCUE COMMITTEE UK ,204603-105 ,"129,393.00",
DFID,DFID,29/12/2015,Research and development costs - supplier services ,Research and Evidence Division ,INSTITUTE OF DEVELOPMENT STUDIES ,201097-101 ,"89,973.21",
DFID,DFID,11/12/2015,Aid Programme - Trust Funds contributions ,West and Southern Africa ,IBRD HSBC T ,202854-101 ,"700,000.00",
DFID,DFID,11/12/2015,Aid Programme - Trust Funds contributions ,West and Southern Africa ,IBRD HSBC T ,202854-103 ,"200,000.00",
DFID,DFID,02/12/2015,Aid Programme - Trust Funds contributions ,Asia  Caribbean and Overseas Territories ,IBRD HSBC T ,202775-103 ,"1,000,000.00",
DFID,DFID,21/12/2015,Aid Programme - Trust Funds contributions ,Western Asia Division ,IBRD HSBC T ,202495-104 ,"1,141,887.00",
DFID,DFID,02/12/2015,Aid Programme - Voluntary contributions ,Research and Evidence Division ,IBRD HSBC T ,202630-101 ,"217,000.00",
DFID,DFID,10/12/2015,Aid Programme - Trust Funds contributions ,East and Central Africa ,IBRD HSBC T ,202597-105 ,"250,000.00",
DFID,DFID,10/12/2015,Aid Programme - Trust Funds contributions ,East and Central Africa ,IBRD HSBC T ,202597-106 ,"325,000.00",
DFID,DFID,21/12/2015,Aid Programme - Voluntary contributions ,Western Asia Division ,IBRD HSBC T ,205101-101 ,"693,060.00",
DFID,DFID,16/12/2015,Aid Programme - Trust Funds contributions ,Asia  Caribbean and Overseas Territories ,IBRD HSBC T ,204672-101 ,"1,204,500.00",
DFID,DFID,11/12/2015,Aid Programme - Trust Funds contributions ,East and Central Africa ,IBRD HSBC T ,204788-107 ,"400,000.00",
DFID,DFID,30/12/2015,Aid Programme - Trust Funds contributions ,Research and Evidence Division ,IBRD HSBC T ,204933-104 ,"500,000.00",
DFID,DFID,17/12/2015,Aid Programme - Trust Funds contributions ,Research and Evidence Division ,IBRD HSBC T ,204151-101 ,"2,366,400.00",
DFID,DFID,14/12/2015,Aid Programme - Trust Funds contributions ,Research and Evidence Division ,IBRD HSBC T ,204151-102 ,"300,000.00",
DFID,DFID,17/12/2015,Aid Programme - Trust Funds contributions ,Research and Evidence Division ,IBRD HSBC T ,204151-103 ,"517,597.00",
DFID,DFID,22/12/2015,Aid Programme - Trust Funds contributions ,Western Asia Division ,Supplier Name withheld ,204158-105 ,"3,000,000.00",
DFID,DFID,22/12/2015,Aid Programme - Trust Funds contributions ,Western Asia Division ,Supplier Name withheld ,204158-105 ,"12,000,000.00",
DFID,DFID,16/12/2015,Aid Programme - Trust Funds contributions ,Research and Evidence Division ,IBRD HSBC T ,204022-101 ,"1,100,000.00",
DFID,DFID,09/12/2015,Aid Programme - Core contributions ,Economic Development Division ,IBRD HSBC T ,203808-105 ,"950,000.00",
DFID,DFID,10/12/2015,Aid Programme - Trust Funds contributions ,Policy Division ,IBRD HSBC T ,203034-102 ,"1,200,000.00",
DFID,DFID,17/12/2015,Aid Programme - Trust Funds contributions ,Asia  Caribbean and Overseas Territories ,IBRD HSBC T ,203035-103 ,"250,000.00",
DFID,DFID,02/12/2015,Aid Programme - Pooled/Basket funding ,Research and Evidence Division ,IBRD HSBC T ,203052-101 ,"1,360,000.00",
DFID,DFID,16/12/2015,Aid Programme - Core contributions ,Policy Division ,IBRD HSBC T ,203211-101 ,"67,300.00",
DFID,DFID,16/12/2015,Aid Programme - Trust Funds contributions ,Middle East  Humanitarian & Conflict Division ,IBRD HSBC T ,203397-101 ,"46,000.00",
DFID,DFID,09/12/2015,Aid Programme - Core contributions ,Economic Development Division ,IBRD (HSBC)  C/O THE WORLD BANK ,203232-101 ,"2,500,000.00",
DFID,DFID,08/12/2015,Aid Programme - Trust Funds contributions ,Asia  Caribbean and Overseas Territories ,IBRD (HSBC)  C/O THE WORLD BANK ,203035-102 ,"331,000.00",
DFID,DFID,30/12/2015,Aid Programme - Trust Funds contributions ,East and Central Africa ,IBRD (HSBC)  C/O THE WORLD BANK ,203597-104 ,"475,000.00",
DFID,DFID,17/12/2015,Aid Programme - Voluntary contributions ,Western Asia Division ,IBRD (HSBC)  C/O THE WORLD BANK ,204792-102 ,"500,000.00",
DFID,DFID,08/12/2015,Aid Programme - Trust Funds contributions ,East and Central Africa ,IBRD (HSBC)  C/O THE WORLD BANK ,204313-103 ,"742,489.00",
DFID,DFID,21/12/2015,Aid Programme - Trust Funds contributions ,Policy Division ,IBRD (HSBC)  C/O THE WORLD BANK ,202884-102 ,"1,250,000.00",
DFID,DFID,22/12/2015,Aid Programme - Trust Funds contributions ,Economic Development Division ,IBRD (HSBC)  C/O THE WORLD BANK ,202935-101 ,"6,374,999.95",
DFID,DFID,03/12/2015,Aid Programme - Trust Funds contributions ,Asia  Caribbean and Overseas Territories ,IBRD (HSBC)  C/O THE WORLD BANK ,201093-103 ,"1,500,000.00",
DFID,DFID,16/12/2015,Aid Programme - Trust Funds contributions ,Asia  Caribbean and Overseas Territories ,IBRD (HSBC)  C/O THE WORLD BANK ,202114-102 ,"499,837.09",
DFID,DFID,15/12/2015,Aid Programme - Trust Funds contributions ,Asia  Caribbean and Overseas Territories ,INTERNATIONAL TRADE CENTRE ,204735-101 ,"465,761.00",
DFID,DFID,15/12/2015,Project delivery costs – supplier services ,Policy Division ,IMPERIAL COLLEGE LONDON ,200706-101 ,"245,797.65",
DFID,DFID,15/12/2015,Project delivery costs – supplier services ,Policy Division ,IMPERIAL COLLEGE LONDON ,200706-101 ,"64,362.79",
DFID,DFID,16/12/2015,Aid Programme - Accountable Grant Payments ,Policy Division ,LIVERPOOL SCHOOL OF TROPICAL MEDICINE ,201177-101 ,"1,282,431.00",
DFID,DFID,14/12/2015,Research and development costs - supplier services ,Research and Evidence Division ,LIVERPOOL SCHOOL OF TROPICAL MEDICINE ,201400-101 ,"111,384.03",
DFID,DFID,17/12/2015,Aid Programme - Accountable Grant Payments ,East and Central Africa ,LIVERPOOL SCHOOL OF TROPICAL MEDICINE ,202549-104 ,"1,652,826.98",
DFID,DFID,18/12/2015,Research and development costs - supplier services ,Research and Evidence Division ,LIVERPOOL SCHOOL OF TROPICAL MEDICINE ,203089-101 ,"451,554.37",
DFID,DFID,10/12/2015,Project delivery costs – supplier services ,Asia  Caribbean and Overseas Territories ,London School of Hygiene and Tropical Medicine ,203857-102 ,"415,788.00",
DFID,DFID,17/12/2015,Research and development costs - supplier services ,Research and Evidence Division ,London School of Hygiene and Tropical Medicine ,201447-101 ,"248,973.78",
DFID,DFID,22/12/2015,Project delivery costs – supplier services ,East and Central Africa ,London School of Hygiene and Tropical Medicine ,201518-104 ,"200,000.00",
DFID,DFID,17/12/2015,Aid Programme - Accountable Grant Payments ,Research and Evidence Division ,LONDON SCHOOL OF ECONOMICS ,114151-104 ,"94,179.07",
DFID,DFID,08/12/2015,Electricity ,Group Operations ,EDF ENERGY ,203717-101 ,"8,377.74",
DFID,DFID,09/12/2015,Electricity ,Group Operations ,EDF ENERGY ,203717-101 ,"13,621.48",
DFID,DFID,14/12/2015,Computer software maintenance ,Business Solutions Division Level ,LEGAL ESCROW ARBITRATION SERVICES ,200002-115 ,624.00,
DFID,DFID,14/12/2015,Computer software maintenance ,Business Solutions Division Level ,LEGAL ESCROW ARBITRATION SERVICES ,200002-115 ,624.00,
DFID,DFID,16/12/2015,Aid Programme - Core contributions ,Research and Evidence Division ,MEDICAL RESEARCH COUNCIL ,201267-101 ,"2,077,669.62",
DFID,DFID,16/12/2015,Aid Programme - Core contributions ,Research and Evidence Division ,MEDICAL RESEARCH COUNCIL ,201267-102 ,"1,359,014.72",
DFID,DFID,03/12/2015,Aid Programme - Joint programme contribution ,Research and Evidence Division ,MEDICAL RESEARCH COUNCIL ,202766-103 ,"525,947.64",
DFID,DFID,17/12/2015,Aid Programme - Core contributions ,Research and Evidence Division ,MEDICAL RESEARCH COUNCIL ,203093-101 ,"174,090.29",
DFID,DFID,15/12/2015,Project delivery costs – supplier services ,Policy Division ,Supplier Name withheld ,203148-101 ,"356,901.14",
DFID,DFID,16/12/2015,Project delivery costs – supplier services ,East and Central Africa ,Supplier Name withheld ,203363-103 ,"716,557.39",
DFID,DFID,03/12/2015,Project delivery costs – supplier services ,Research and Evidence Division ,Supplier Name withheld ,203778-110 ,"45,299.89",
DFID,DFID,03/12/2015,Project delivery costs – supplier services ,Research and Evidence Division ,Supplier Name withheld ,203778-110 ,"2,244.20",
DFID,DFID,03/12/2015,Project delivery costs – supplier services ,East and Central Africa ,Supplier Name withheld ,202893-102 ,"31,387.00",
DFID,DFID,17/12/2015,Project delivery costs – supplier services ,West and Southern Africa ,Supplier Name withheld ,202942-102 ,"2,399,094.67",
DFID,DFID,16/12/2015,Project delivery costs – supplier services ,Asia  Caribbean and Overseas Territories ,Supplier Name withheld ,201388-102 ,"1,209,067.68",
DFID,DFID,07/12/2015,Project delivery costs – supplier services ,Asia  Caribbean and Overseas Territories ,Supplier Name withheld ,201388-102 ,"828,398.16",
DFID,DFID,14/12/2015,Project delivery costs – supplier services ,Asia  Caribbean and Overseas Territories ,Supplier Name withheld ,201388-102 ,"423,444.32",
DFID,DFID,04/12/2015,Data Network - land lines ,Business Solutions Division Level ,VODAFONE LIMITED ,200002-172 ,"2,005.00",
DFID,DFID,22/12/2015,Telephone Usage & services ,Business Solutions Division Level ,VODAFONE LIMITED ,200002-172 ,"1,194.00",
DFID,DFID,29/12/2015,Telephone Usage & services ,Business Solutions Division Level ,VODAFONE LIMITED ,200002-172 ,"2,940.54",
DFID,DFID,22/12/2015,Data Network - land lines ,Business Solutions Division Level ,VODAFONE LIMITED ,200002-185 ,"2,219.22",
DFID,DFID,04/12/2015,Data Network - land lines ,Business Solutions Division Level ,VODAFONE LIMITED ,200002-185 ,"7,029.43",
DFID,DFID,22/12/2015,Data Network - land lines ,Business Solutions Division Level ,VODAFONE LIMITED ,200002-185 ,"7,029.21",
DFID,DFID,22/12/2015,Telephone Usage & services ,Business Solutions Division Level ,VODAFONE LIMITED ,200002-185 ,"7,320.51",
DFID,DFID,04/12/2015,Telephone Usage & services ,Business Solutions Division Level ,VODAFONE LIMITED ,200002-185 ,"7,363.53",
DFID,DFID,04/12/2015,Data Network - land lines ,Business Solutions Division Level ,VODAFONE LIMITED ,200002-185 ,"2,147.63",
DFID,DFID,04/12/2015,Telephone Usage & services ,Business Solutions Division Level ,VODAFONE LIMITED ,200002-185 ,"8,467.96",
DFID,DFID,02/12/2015,Data Network - land lines ,Business Solutions Division Level ,VODAFONE LIMITED ,200002-185 ,"2,219.22",
DFID,DFID,30/12/2015,Telephone Usage & services ,Business Solutions Division Level ,VODAFONE LIMITED ,200002-168 ,"10,512.44",
DFID,DFID,30/12/2015,Telephone Sys -hardware ,Business Solutions Division Level ,VODAFONE LIMITED ,200002-168 ,"6,591.90",
DFID,DFID,04/12/2015,Telephone Usage & services ,Business Solutions Division Level ,VODAFONE LIMITED ,200002-168 ,"10,151.14",
DFID,DFID,04/12/2015,Telephone Sys -hardware ,Business Solutions Division Level ,VODAFONE LIMITED ,200002-168 ,"6,379.26",
DFID,DFID,02/12/2015,Data Network - land lines ,Business Solutions Division Level ,VODAFONE LIMITED ,203329-103 ,"2,219.22",
DFID,DFID,04/12/2015,Telephone Usage & services ,Business Solutions Division Level ,VODAFONE LIMITED ,203329-103 ,"8,467.97",
DFID,DFID,04/12/2015,Data Network - land lines ,Business Solutions Division Level ,VODAFONE LIMITED ,203329-103 ,"2,147.63",
DFID,DFID,04/12/2015,Telephone Usage & services ,Business Solutions Division Level ,VODAFONE LIMITED ,203329-103 ,"7,363.52",
DFID,DFID,22/12/2015,Data Network - land lines ,Business Solutions Division Level ,VODAFONE LIMITED ,203329-103 ,"2,219.22",
DFID,DFID,22/12/2015,Telephone Usage & services ,Business Solutions Division Level ,VODAFONE LIMITED ,203329-103 ,"7,320.51",
DFID,DFID,22/12/2015,Data Network - land lines ,Business Solutions Division Level ,VODAFONE LIMITED ,203329-103 ,"7,029.21",
DFID,DFID,04/12/2015,Data Network - land lines ,Business Solutions Division Level ,VODAFONE LIMITED ,203329-103 ,"7,029.43",
DFID,DFID,22/12/2015,Project delivery costs – supplier services ,Asia  Caribbean and Overseas Territories ,MET OFFICE ,204880-102 ,"9,181.42",
DFID,DFID,22/12/2015,Project delivery costs – supplier services ,Asia  Caribbean and Overseas Territories ,MET OFFICE ,204880-102 ,"26,883.42",
DFID,DFID,22/12/2015,Project delivery costs – supplier services ,Asia  Caribbean and Overseas Territories ,MET OFFICE ,204880-102 ,"50,000.00",
DFID,DFID,22/12/2015,Project delivery costs – supplier services ,Asia  Caribbean and Overseas Territories ,MET OFFICE ,204880-102 ,"100,000.00",
DFID,DFID,16/12/2015,Cleaning Costs ,Group Operations ,MITIE Technical Facilities Management Ltd ,203717-101 ,"20,665.50",
DFID,DFID,30/12/2015,Project delivery costs – supplier services ,Asia  Caribbean and Overseas Territories ,MARIE STOPES INTERNATIONAL ,201518-103 ,"819,120.00",
DFID,DFID,17/12/2015,Project delivery costs – supplier services ,West and Southern Africa ,MALARIA CONSORTIUM ,104223-101 ,"504,409.00",
DFID,DFID,10/12/2015,Project delivery costs – supplier services ,West and Southern Africa ,MALARIA CONSORTIUM ,104223-101 ,"19,939.00",
DFID,DFID,31/12/2015,Project delivery costs – supplier services ,West and Southern Africa ,MALARIA CONSORTIUM ,104223-101 ,"19,939.00",
DFID,DFID,30/12/2015,Project delivery costs – supplier services ,West and Southern Africa ,MALARIA CONSORTIUM ,104223-101 ,"967,750.00",
DFID,DFID,13/12/2015,Aid Programme - Accountable Grant Payments ,Regional Directorate ,Supplier Name withheld ,204890-106 ,"307,507.00",
DFID,DFID,21/12/2015,Aid Programme - Accountable Grant Payments ,East and Central Africa ,Supplier Name withheld ,204400-104 ,"1,617,706.18",
DFID,DFID,21/12/2015,Project delivery costs – supplier services ,Economic Development Division ,NATURAL RESOURCES INSTITUTE ,203535-104 ,"30,000.00",
DFID,DFID,15/12/2015,Aid Programme - Accountable Grant Payments ,Regional Directorate ,MAPACTION ,204838-113 ,"18,456.00",
DFID,DFID,02/12/2015,Aid Programme - Partnership Programme Arrangements ,Policy Division ,MAPACTION ,202793-101 ,"37,789.50",
DFID,DFID,08/12/2015,Research and development costs - supplier services ,Research and Evidence Division ,ODI ,204584-111 ,"50,935.50",
DFID,DFID,30/12/2015,Aid Programme - Refugee Relief Payments ,East and Central Africa ,OXFAM INSTITUTIONAL INCOME ACCOUNT ,205064-104 ,"303,948.46",
DFID,DFID,15/12/2015,Project delivery costs – supplier services ,Policy Division ,OXFAM INSTITUTIONAL INCOME ACCOUNT ,203572-101 ,"3,530,006.00",
DFID,DFID,01/12/2015,Aid Programme - Accountable Grant Payments ,Middle East  Humanitarian & Conflict Division ,OXFAM INSTITUTIONAL INCOME ACCOUNT ,203847-102 ,"2,313,436.00",
DFID,DFID,15/12/2015,Aid Programme - Accountable Grant Payments ,West and Southern Africa ,OXFAM INSTITUTIONAL INCOME ACCOUNT ,203445-107 ,"264,331.00",
DFID,DFID,10/12/2015,Aid Programme - Accountable Grant Payments ,East and Central Africa ,OXFAM INSTITUTIONAL INCOME ACCOUNT ,202619-108 ,"298,589.00",
DFID,DFID,17/12/2015,Aid Programme - Accountable Grant Payments ,East and Central Africa ,OXFAM INSTITUTIONAL INCOME ACCOUNT ,113401-102 ,"94,606.00",
DFID,DFID,03/12/2015,Project delivery costs – supplier services ,East and Central Africa ,Supplier Name withheld ,203099-102 ,"100,000.00",
DFID,DFID,04/12/2015,Computer Software Licenses ,Business Solutions Division Level ,ORACLE CORPORATION UK LIMITED ,200002-102 ,"43,512.92",Annual oracle database support and maintenance contract for electronic and document records management system  for  2015/2016
DFID,DFID,29/12/2015,Project delivery costs – supplier services ,West and Southern Africa ,OXFORD POLICY MANAGEMENT ,101629-101 ,"24,983.94",
DFID,DFID,14/12/2015,Project delivery costs – supplier services ,East and Central Africa ,OXFORD POLICY MANAGEMENT ,202549-107 ,"13,826.09",
DFID,DFID,29/12/2015,Project delivery costs – supplier services ,East and Central Africa ,OXFORD POLICY MANAGEMENT ,202580-103 ,"7,480.00",
DFID,DFID,29/12/2015,Project delivery costs – supplier services ,Policy Division ,OXFORD POLICY MANAGEMENT ,202779-103 ,"16,722.00",
DFID,DFID,18/12/2015,Project delivery costs – supplier services ,West and Southern Africa ,OXFORD POLICY MANAGEMENT ,202819-108 ,"364,200.00",
DFID,DFID,30/12/2015,Project delivery costs – supplier services ,East and Central Africa ,OXFORD POLICY MANAGEMENT ,201512-103 ,"12,881.78",
DFID,DFID,15/12/2015,Project delivery costs – supplier services ,West and Southern Africa ,OXFORD POLICY MANAGEMENT ,201874-103 ,"108,442.34",
DFID,DFID,22/12/2015,Project delivery costs – supplier services ,West and Southern Africa ,OXFORD POLICY MANAGEMENT ,200341-101 ,"224,544.81",
DFID,DFID,22/12/2015,Project delivery costs – supplier services ,Policy Division ,OXFORD POLICY MANAGEMENT ,203572-102 ,"296,984.40",
DFID,DFID,02/12/2015,Research and development costs - supplier services ,Research and Evidence Division ,OXFORD POLICY MANAGEMENT ,203705-102 ,"227,990.00",
DFID,DFID,18/12/2015,Project delivery costs – supplier services ,Research and Evidence Division ,OXFORD POLICY MANAGEMENT ,203051-101 ,"77,000.00",
DFID,DFID,02/12/2015,Project delivery costs – supplier services ,Research and Evidence Division ,OXFORD POLICY MANAGEMENT ,203051-101 ,"106,000.00",
DFID,DFID,17/12/2015,Project delivery costs – supplier services ,Research and Evidence Division ,OXFORD POLICY MANAGEMENT ,203051-101 ,"176,000.00",
DFID,DFID,22/12/2015,Project delivery costs – supplier services ,East and Central Africa ,OXFORD POLICY MANAGEMENT ,203109-108 ,"173,867.16",
DFID,DFID,23/12/2015,Project delivery costs – supplier services ,Asia  Caribbean and Overseas Territories ,OXFORD POLICY MANAGEMENT ,203123-101 ,"88,370.09",
DFID,DFID,31/12/2015,Project delivery costs – supplier services ,Asia  Caribbean and Overseas Territories ,OXFORD POLICY MANAGEMENT ,203180-102 ,"1,029,245.00",
DFID,DFID,02/12/2015,Project delivery costs – supplier services ,Asia  Caribbean and Overseas Territories ,OXFORD POLICY MANAGEMENT ,203180-102 ,"343,068.36",
DFID,DFID,01/12/2015,Project delivery costs – supplier services ,Asia  Caribbean and Overseas Territories ,OXFORD POLICY MANAGEMENT ,203180-102 ,"605,219.00",
DFID,DFID,01/12/2015,Project delivery costs – supplier services ,Asia  Caribbean and Overseas Territories ,OXFORD POLICY MANAGEMENT ,203180-102 ,"637,824.00",
DFID,DFID,01/12/2015,Project delivery costs – supplier services ,Research and Evidence Division ,OXFORD POLICY MANAGEMENT ,203193-101 ,"6,385.99",
DFID,DFID,17/12/2015,Project delivery costs – supplier services ,Research and Evidence Division ,OXFORD POLICY MANAGEMENT ,203193-101 ,"41,911.77",
DFID,DFID,29/12/2015,Project delivery costs – supplier services ,Research and Evidence Division ,OXFORD POLICY MANAGEMENT ,203193-101 ,"24,658.14",
DFID,DFID,01/12/2015,Project delivery costs – supplier services ,Research and Evidence Division ,OXFORD POLICY MANAGEMENT ,203193-101 ,"20,812.00",
DFID,DFID,22/12/2015,Project delivery costs – supplier services ,Research and Evidence Division ,OXFORD POLICY MANAGEMENT ,203193-101 ,"20,812.00",
DFID,DFID,22/12/2015,Project delivery costs – supplier services ,Research and Evidence Division ,OXFORD POLICY MANAGEMENT ,203193-101 ,"11,149.52",
DFID,DFID,14/12/2015,Project delivery costs – supplier services ,East and Central Africa ,OXFORD POLICY MANAGEMENT ,203016-102 ,"10,788.00",
DFID,DFID,02/12/2015,Project delivery costs – supplier services ,East and Central Africa ,OXFORD POLICY MANAGEMENT ,202989-102 ,"14,996.95",
DFID,DFID,15/12/2015,Project delivery costs – supplier services ,Policy Division ,OXFORD POLICY MANAGEMENT ,203324-101 ,"66,574.80",
DFID,DFID,18/12/2015,Project delivery costs – supplier services ,West and Southern Africa ,OXFORD POLICY MANAGEMENT ,205066-101 ,"97,306.69",
DFID,DFID,18/12/2015,Project delivery costs – supplier services ,West and Southern Africa ,OXFORD POLICY MANAGEMENT ,205066-101 ,"421,517.45",
DFID,DFID,04/12/2015,Project delivery costs – supplier services ,West and Southern Africa ,OXFORD POLICY MANAGEMENT ,205066-101 ,"189,265.99",
DFID,DFID,17/12/2015,Project delivery costs – supplier services ,Regional Directorate ,OXFORD POLICY MANAGEMENT ,204967-101 ,"20,490.67",
DFID,DFID,10/12/2015,Project delivery costs – supplier services ,East and Central Africa ,OXFORD POLICY MANAGEMENT ,204258-102 ,"24,576.91",
DFID,DFID,10/12/2015,Project delivery costs – supplier services ,East and Central Africa ,OXFORD POLICY MANAGEMENT ,204258-102 ,"44,690.27",
DFID,DFID,10/12/2015,Project delivery costs – supplier services ,East and Central Africa ,OXFORD POLICY MANAGEMENT ,204258-102 ,"55,037.45",
DFID,DFID,10/12/2015,Project delivery costs – supplier services ,East and Central Africa ,OXFORD POLICY MANAGEMENT ,204258-102 ,"70,801.66",
DFID,DFID,22/12/2015,Aid Programme - Voluntary contributions ,Policy Division ,ORGANISATION FOR ECONOMIC CO-OP & DE ,203295-101 ,"50,000.00",
DFID,DFID,15/12/2015,Project delivery costs – supplier services ,Asia  Caribbean and Overseas Territories ,OPTIONS CONSULTANCY SERVICES LIMITED ,203390-104 ,"30,917.00",
DFID,DFID,29/12/2015,Project delivery costs – supplier services ,East and Central Africa ,OPTIONS CONSULTANCY SERVICES LIMITED ,203024-103 ,"46,483.00",
DFID,DFID,29/12/2015,Project delivery costs – supplier services ,East and Central Africa ,OPTIONS CONSULTANCY SERVICES LIMITED ,203024-103 ,"46,483.00",
DFID,DFID,29/12/2015,Project delivery costs – supplier services ,East and Central Africa ,OPTIONS CONSULTANCY SERVICES LIMITED ,203024-103 ,"46,483.00",
DFID,DFID,09/12/2015,Project delivery costs – supplier services ,West and Southern Africa ,OPTIONS CONSULTANCY SERVICES LIMITED ,202214-103 ,"107,245.00",
DFID,DFID,08/12/2015,Project delivery costs – supplier services ,West and Southern Africa ,OPTIONS CONSULTANCY SERVICES LIMITED ,202214-103 ,"102,021.00",
DFID,DFID,08/12/2015,Project delivery costs – supplier services ,West and Southern Africa ,OPTIONS CONSULTANCY SERVICES LIMITED ,202214-103 ,"107,245.00",
DFID,DFID,10/12/2015,Project delivery costs – supplier services ,West and Southern Africa ,OPTIONS CONSULTANCY SERVICES LIMITED ,202214-103 ,"152,950.00",
DFID,DFID,22/12/2015,Project delivery costs – supplier services ,Asia  Caribbean and Overseas Territories ,OPTIONS CONSULTANCY SERVICES LIMITED ,202871-101 ,"105,154.00",
DFID,DFID,22/12/2015,Project delivery costs – supplier services ,Asia  Caribbean and Overseas Territories ,OPTIONS CONSULTANCY SERVICES LIMITED ,202871-101 ,"77,291.49",
DFID,DFID,22/12/2015,Project delivery costs – supplier services ,Asia  Caribbean and Overseas Territories ,OPTIONS CONSULTANCY SERVICES LIMITED ,202871-101 ,"99,374.77",
DFID,DFID,22/12/2015,Project delivery costs – supplier services ,Asia  Caribbean and Overseas Territories ,OPTIONS CONSULTANCY SERVICES LIMITED ,202871-101 ,"99,374.77",
DFID,DFID,02/12/2015,Project delivery costs – supplier services ,Asia  Caribbean and Overseas Territories ,OPTIONS CONSULTANCY SERVICES LIMITED ,202871-101 ,"132,068.67",
DFID,DFID,07/12/2015,Project delivery costs – supplier services ,Asia  Caribbean and Overseas Territories ,OPTIONS CONSULTANCY SERVICES LIMITED ,202871-101 ,"105,154.66",
DFID,DFID,18/12/2015,Project delivery costs – supplier services ,Asia  Caribbean and Overseas Territories ,OPTIONS CONSULTANCY SERVICES LIMITED ,202871-101 ,"10,208.50",
DFID,DFID,18/12/2015,Project delivery costs – supplier services ,Asia  Caribbean and Overseas Territories ,OPTIONS CONSULTANCY SERVICES LIMITED ,202871-101 ,"105,155.07",
DFID,DFID,18/12/2015,Project delivery costs – supplier services ,Asia  Caribbean and Overseas Territories ,OPTIONS CONSULTANCY SERVICES LIMITED ,202871-101 ,"36,101.99",
DFID,DFID,17/12/2015,Project delivery costs – supplier services ,Asia  Caribbean and Overseas Territories ,OPTIONS CONSULTANCY SERVICES LIMITED ,202871-101 ,"77,291.49",
DFID,DFID,21/12/2015,Project delivery costs – supplier services ,Asia  Caribbean and Overseas Territories ,OPTIONS CONSULTANCY SERVICES LIMITED ,202871-101 ,"93,005.98",
DFID,DFID,18/12/2015,Project delivery costs – supplier services ,Asia  Caribbean and Overseas Territories ,OPTIONS CONSULTANCY SERVICES LIMITED ,202871-101 ,"132,499.00",
DFID,DFID,18/12/2015,Project delivery costs – supplier services ,Asia  Caribbean and Overseas Territories ,OPTIONS CONSULTANCY SERVICES LIMITED ,202871-101 ,"231,470.33",
DFID,DFID,22/12/2015,Project delivery costs – supplier services ,West and Southern Africa ,OPTIONS CONSULTANCY SERVICES LIMITED ,202721-104 ,"61,961.00",
DFID,DFID,22/12/2015,Project delivery costs – supplier services ,West and Southern Africa ,OPTIONS CONSULTANCY SERVICES LIMITED ,202721-104 ,"61,961.00",
DFID,DFID,22/12/2015,Project delivery costs – supplier services ,West and Southern Africa ,OPTIONS CONSULTANCY SERVICES LIMITED ,202721-104 ,"61,961.00",
DFID,DFID,29/12/2015,Project delivery costs – supplier services ,Policy Division ,CENTRE FOR GLOBAL EDUCATION live ,201469-104 ,"11,164.26",
DFID,DFID,30/12/2015,Aid Programme - Partnership Programme Arrangements ,Policy Division ,Supplier Name withheld ,202758-101 ,"2,792,759.00",
DFID,DFID,21/12/2015,Aid Programme - Accountable Grant Payments ,East and Central Africa ,Supplier Name withheld ,202501-103 ,"293,108.00",
DFID,DFID,14/12/2015,Aid Programme - Accountable Grant Payments ,East and Central Africa ,Supplier Name withheld ,202501-103 ,"604,397.00",
DFID,DFID,03/12/2015,Aid Programme - Partnership Programme Arrangements ,Policy Division ,PLAN INTERNATIONAL UK ,202755-101 ,"1,025,263.75",
DFID,DFID,15/12/2015,Project delivery costs – supplier services ,Policy Division ,PLAN INTERNATIONAL UK ,203572-101 ,"4,565,031.01",
DFID,DFID,02/12/2015,Aid Programme - Partnership Programme Arrangements ,Policy Division ,PENAL REFORM INTERNATIONAL ,202590-101 ,"270,344.25",
DFID,DFID,07/12/2015,Project delivery costs – supplier services ,Economic Development Division ,PRICEWATERHOUSECOOPERS ,202648-102 ,"31,174.80",
DFID,DFID,03/12/2015,Project delivery costs – supplier services ,Economic Development Division ,PRICEWATERHOUSECOOPERS ,202648-102 ,"54,985.60",
DFID,DFID,10/12/2015,Project delivery costs – supplier services ,Economic Development Division ,PRICEWATERHOUSECOOPERS ,202939-101 ,"627,534.00",
DFID,DFID,23/12/2015,Project delivery costs – supplier services ,Economic Development Division ,PRICEWATERHOUSECOOPERS ,202939-103 ,"50,443.54",
DFID,DFID,17/12/2015,Project delivery costs – supplier services ,Economic Development Division ,PRICEWATERHOUSECOOPERS ,202939-103 ,"37,399.74",
DFID,DFID,23/12/2015,Project delivery costs – supplier services ,Economic Development Division ,PRICEWATERHOUSECOOPERS ,202939-105 ,"24,752.00",
DFID,DFID,01/12/2015,Project delivery costs – supplier services ,Economic Development Division ,PRICEWATERHOUSECOOPERS ,202939-105 ,"14,567.90",
DFID,DFID,17/12/2015,Project delivery costs – supplier services ,Economic Development Division ,PRICEWATERHOUSECOOPERS ,202939-106 ,"55,087.52",
DFID,DFID,02/12/2015,Project delivery costs – supplier services ,Economic Development Division ,PRICEWATERHOUSECOOPERS ,114178-104 ,"232,739.90",
DFID,DFID,30/12/2015,Project delivery costs – supplier services ,Economic Development Division ,PRICEWATERHOUSECOOPERS ,114178-104 ,"122,938.08",
DFID,DFID,17/12/2015,Project delivery costs – supplier services ,Policy Division ,PRICEWATERHOUSECOOPERS ,114370-104 ,"1,132,283.37",
DFID,DFID,17/12/2015,Project delivery costs – supplier services ,Policy Division ,PRICEWATERHOUSECOOPERS ,114370-104 ,"51,082.34",
DFID,DFID,17/12/2015,Project delivery costs – supplier services ,Policy Division ,PRICEWATERHOUSECOOPERS ,114370-105 ,"21,943.74",
DFID,DFID,16/12/2015,Project delivery costs – supplier services ,Policy Division ,PRICEWATERHOUSECOOPERS ,114370-105 ,"568,286.39",
DFID,DFID,02/12/2015,Project delivery costs – supplier services ,West and Southern Africa ,PRICEWATERHOUSECOOPERS ,203824-104 ,"50,000.00",
DFID,DFID,30/12/2015,Project delivery costs – supplier services ,West and Southern Africa ,PRICEWATERHOUSECOOPERS ,203824-104 ,"58,000.00",
DFID,DFID,02/12/2015,Project delivery costs – supplier services ,Asia  Caribbean and Overseas Territories ,PRICEWATERHOUSECOOPERS ,203964-101 ,"88,027.59",
DFID,DFID,30/12/2015,Project delivery costs – supplier services ,Asia  Caribbean and Overseas Territories ,PRICEWATERHOUSECOOPERS ,203964-101 ,"166,779.16",
DFID,DFID,15/12/2015,Project delivery costs – supplier services ,West and Southern Africa ,PRICEWATERHOUSECOOPERS ,203161-104 ,"243,808.86",
DFID,DFID,09/12/2015,Project delivery costs – supplier services ,Asia  Caribbean and Overseas Territories ,PRICEWATERHOUSECOOPERS ,203281-101 ,"113,813.05",
DFID,DFID,22/12/2015,Project delivery costs – supplier services ,Asia  Caribbean and Overseas Territories ,PRICEWATERHOUSECOOPERS ,203281-101 ,"101,288.03",
DFID,DFID,03/12/2015,Project delivery costs – supplier services ,Western Asia Division ,PRICEWATERHOUSECOOPERS ,204792-101 ,"153,745.00",
DFID,DFID,08/12/2015,Storage & Distribution costs ,Middle East  Humanitarian & Conflict Division ,PICKFORDS LTD ,204981-101 ,590.06,
DFID,DFID,07/12/2015,Storage & Distribution costs ,East and Central Africa ,PICKFORDS LTD ,203382-112 ,"4,189.97",
DFID,DFID,10/12/2015,Storage & Distribution costs ,Research and Evidence Division ,PICKFORDS LTD ,203874-102 ,"5,277.14",
DFID,DFID,03/12/2015,Storage & Distribution costs ,Research and Evidence Division ,PICKFORDS LTD ,203874-102 ,"1,633.97",
DFID,DFID,03/12/2015,Storage & Distribution costs ,West and Southern Africa ,PICKFORDS LTD ,101637-101 ,"7,060.65",
DFID,DFID,02/12/2015,Storage & Distribution costs ,West and Southern Africa ,PICKFORDS LTD ,101637-101 ,"4,944.43",
DFID,DFID,07/12/2015,Storage & Distribution costs ,East and Central Africa ,PICKFORDS LTD ,101634-101 ,"2,712.15",
DFID,DFID,10/12/2015,Storage & Distribution costs ,East and Central Africa ,PICKFORDS LTD ,101634-101 ,"5,113.92",
DFID,DFID,02/12/2015,Storage & Distribution costs ,West and Southern Africa ,PICKFORDS LTD ,101629-101 ,"6,263.91",
DFID,DFID,02/12/2015,Storage & Distribution costs ,East and Central Africa ,PICKFORDS LTD ,101630-101 ,880.00,
DFID,DFID,02/12/2015,Storage & Distribution costs ,East and Central Africa ,PICKFORDS LTD ,101630-101 ,"1,047.06",
DFID,DFID,09/12/2015,Storage & Distribution costs ,West and Southern Africa ,PICKFORDS LTD ,101622-106 ,"5,835.80",
DFID,DFID,09/12/2015,Storage & Distribution costs ,Western Asia Division ,PICKFORDS LTD ,101624-101 ,"6,769.22",
DFID,DFID,08/12/2015,Storage & Distribution costs ,Western Asia Division ,PICKFORDS LTD ,101624-101 ,"5,606.77",
DFID,DFID,07/12/2015,Storage & Distribution costs ,Western Asia Division ,PICKFORDS LTD ,101624-101 ,"4,324.40",
DFID,DFID,07/12/2015,Storage & Distribution costs ,Western Asia Division ,PICKFORDS LTD ,101624-101 ,"10,000.00",
DFID,DFID,07/12/2015,Storage & Distribution costs ,Western Asia Division ,PICKFORDS LTD ,101624-101 ,"3,848.43",
DFID,DFID,09/12/2015,Storage & Distribution costs ,Western Asia Division ,PICKFORDS LTD ,101624-101 ,"5,681.03",
DFID,DFID,15/12/2015,Storage & Distribution costs ,Western Asia Division ,PICKFORDS LTD ,101624-101 ,"1,199.13",
DFID,DFID,02/12/2015,Storage & Distribution costs ,West and Southern Africa ,PICKFORDS LTD ,101613-101 ,"1,701.77",
DFID,DFID,02/12/2015,Storage & Distribution costs ,West and Southern Africa ,PICKFORDS LTD ,101613-101 ,"11,947.15",
DFID,DFID,07/12/2015,Storage & Distribution costs ,West and Southern Africa ,PICKFORDS LTD ,101613-101 ,734.24,
DFID,DFID,16/12/2015,Storage & Distribution costs ,East and Central Africa ,PICKFORDS LTD ,101612-101 ,"1,259.60",
DFID,DFID,16/12/2015,Storage & Distribution costs ,East and Central Africa ,PICKFORDS LTD ,101612-101 ,"1,037.38",
DFID,DFID,14/12/2015,Storage & Distribution costs ,Middle East  Humanitarian & Conflict Division ,PICKFORDS LTD ,100303-101 ,"1,407.36",
DFID,DFID,13/12/2015,Storage & Distribution costs ,Western Asia Division ,Supplier Name withheld ,101601-110 ,"2,183.14",
DFID,DFID,13/12/2015,Storage & Distribution costs ,Western Asia Division ,Supplier Name withheld ,101601-110 ,"3,949.07",
DFID,DFID,08/12/2015,Storage & Distribution costs ,Western Asia Division ,Supplier Name withheld ,101601-110 ,764.92,
DFID,DFID,06/12/2015,Storage & Distribution costs ,Western Asia Division ,Supplier Name withheld ,101601-110 ,"3,936.95",
DFID,DFID,15/12/2015,Storage & Distribution costs ,Western Asia Division ,Supplier Name withheld ,101601-110 ,"1,569.82",
DFID,DFID,04/12/2015,Storage & Distribution costs ,Asia  Caribbean and Overseas Territories ,PICKFORDS LTD ,101605-101 ,"5,857.88",
DFID,DFID,15/12/2015,Relocation costs ,Asia  Caribbean and Overseas Territories ,PICKFORDS LTD ,101605-101 ,"6,661.20",
DFID,DFID,03/12/2015,Storage & Distribution costs ,Asia  Caribbean and Overseas Territories ,PICKFORDS LTD ,101605-101 ,"1,776.91",
DFID,DFID,07/12/2015,Storage & Distribution costs ,West and Southern Africa ,PICKFORDS LTD ,101610-101 ,"9,242.32",
DFID,DFID,07/12/2015,Storage & Distribution costs ,West and Southern Africa ,PICKFORDS LTD ,101610-101 ,"12,391.68",
DFID,DFID,09/12/2015,Storage & Distribution costs ,West and Southern Africa ,PICKFORDS LTD ,101610-101 ,"5,835.81",
DFID,DFID,15/12/2015,Storage & Distribution costs ,Middle East  Humanitarian & Conflict Division ,PICKFORDS LTD ,201705-101 ,"2,034.00",
DFID,DFID,08/12/2015,Storage & Distribution costs ,Middle East  Humanitarian & Conflict Division ,PICKFORDS LTD ,201705-101 ,"1,956.42",
DFID,DFID,21/12/2015,Storage & Distribution costs ,Asia  Caribbean and Overseas Territories ,PICKFORDS LTD ,202403-101 ,"10,344.21",
DFID,DFID,02/12/2015,Aid Programme - Partnership Programme Arrangements ,Policy Division ,PEOPLE IN AID LTD ,202875-101 ,"51,699.50",
DFID,DFID,08/12/2015,Aid Programme - Accountable Grant Payments ,East and Central Africa ,POPULATION  SERVICES INTERNATIONAL ,202841-104 ,"1,947,592.00",
DFID,DFID,07/12/2015,Aid Programme - Accountable Grant Payments ,East and Central Africa ,POPULATION  SERVICES INTERNATIONAL ,113303-117 ,"519,417.85",
DFID,DFID,07/12/2015,Aid Programme - Accountable Grant Payments ,East and Central Africa ,POPULATION  SERVICES INTERNATIONAL ,113303-118 ,"619,454.00",
DFID,DFID,14/12/2015,Project delivery costs – supplier services ,West and Southern Africa ,POPULATION  SERVICES INTERNATIONAL ,203458-102 ,959.00,
DFID,DFID,14/12/2015,Project delivery costs – supplier services ,West and Southern Africa ,POPULATION  SERVICES INTERNATIONAL ,203458-103 ,"52,815.00",
DFID,DFID,14/12/2015,Project delivery costs – supplier services ,West and Southern Africa ,POPULATION  SERVICES INTERNATIONAL ,203458-104 ,"104,732.00",
DFID,DFID,21/12/2015,Contract & Agency Staff ,Finance and Corporate Performance Division ,MICHAEL PAGE INTERNATIONAL RECRUITMENT LIMITED ,100201-101 ,904.13,
DFID,DFID,21/12/2015,Contract & Agency Staff ,Finance and Corporate Performance Division ,MICHAEL PAGE INTERNATIONAL RECRUITMENT LIMITED ,100201-101 ,649.93,
DFID,DFID,11/12/2015,Contract & Agency Staff ,Finance and Corporate Performance Division ,MICHAEL PAGE INTERNATIONAL RECRUITMENT LIMITED ,100201-101 ,"2,486.50",
DFID,DFID,03/12/2015,Aid Programme - Partnership Programme Arrangements ,Policy Division ,PRACTICAL ACTION LTD ,202646-101 ,"722,765.75",
DFID,DFID,04/12/2015,Aid Programme - Partnership Programme Arrangements ,Policy Division ,PROGRESSIO ,202503-101 ,"506,253.75",
DFID,DFID,01/12/2015,Aid Programme - Accountable Grant Payments ,Policy Division ,PRACTICAL ACTION (UK) ,203559-106 ,"76,701.00",
DFID,DFID,03/12/2015,Aid Programme - Accountable Grant Payments ,Policy Division ,Supplier Name withheld ,203559-121 ,"257,551.56",
DFID,DFID,18/12/2015,Aid Programme - Accountable Grant Payments ,Research and Evidence Division ,Supplier Name withheld ,203705-115 ,"227,308.00",
DFID,DFID,04/12/2015,Aid Programme - Accountable Grant Payments ,Asia  Caribbean and Overseas Territories ,Supplier Name withheld ,203400-103 ,"133,693.00",
DFID,DFID,31/12/2015,Aid Programme - Voluntary contributions ,Regional Directorate ,Supplier Name withheld ,204929-101 ,"1,156,340.00",
DFID,DFID,17/12/2015,Aid Programme - Accountable Grant Payments ,Middle East  Humanitarian & Conflict Division ,Supplier Name withheld ,204540-101 ,"1,731,824.00",
DFID,DFID,17/12/2015,Aid Programme - Accountable Grant Payments ,East and Central Africa ,Supplier Name withheld ,202619-110 ,"358,265.06",
DFID,DFID,30/12/2015,Aid Programme - Partnership Programme Arrangements ,Policy Division ,Supplier Name withheld ,202662-101 ,"2,352,165.00",
DFID,DFID,10/12/2015,Aid Programme - Humanitarian Material Relief Assistance and Services ,East and Central Africa ,Supplier Name withheld ,204852-104 ,"1,500,000.00",
DFID,DFID,15/12/2015,Aid Programme - Accountable Grant Payments ,Western Asia Division ,Supplier Name withheld ,203101-101 ,"160,822.71",
DFID,DFID,15/12/2015,Aid Programme - Accountable Grant Payments ,Middle East  Humanitarian & Conflict Division ,Supplier Name withheld ,203847-101 ,"1,900,124.00",
DFID,DFID,10/12/2015,Project delivery costs – supplier services ,Asia  Caribbean and Overseas Territories ,Social Development Direct Ltd ,203484-101 ,"52,371.98",
DFID,DFID,23/12/2015,Project delivery costs – supplier services ,Asia  Caribbean and Overseas Territories ,Social Development Direct Ltd ,203484-101 ,"63,458.56",
DFID,DFID,07/12/2015,Project delivery costs – supplier services ,Policy Division ,Social Development Direct Ltd ,203245-106 ,"14,082.76",
DFID,DFID,15/12/2015,Aid Programme - Accountable Grant Payments ,Research and Evidence Division ,SCIDEV.NET ,114034-105 ,"200,000.00",
DFID,DFID,02/12/2015,Aid Programme - Partnership Programme Arrangements ,Policy Division ,SIGHT SAVERS INTERNATIONAL ,202546-101 ,"934,669.50",
DFID,DFID,02/12/2015,Aid Programme - Partnership Programme Arrangements ,Policy Division ,RESTLESS DEVELOPMENT ,202545-101 ,"688,859.75",
DFID,DFID,22/12/2015,Project delivery costs – supplier services ,Group Operations ,SODEXHO PASS LTD ,204999-104 ,"1,509.50",
DFID,DFID,09/12/2015,Aid Programme - Accountable Grant Payments ,West and Southern Africa ,Supplier Name withheld ,205122-103 ,"5,000,000.00",
DFID,DFID,10/12/2015,Aid Programme - Accountable Grant Payments ,East and Central Africa ,Supplier Name withheld ,202315-107 ,"407,203.00",
DFID,DFID,03/12/2015,Legal costs ,Economic Development Division ,GOVERNMENT LEGAL DEPARTMENT ,202259-101 ,703.08,
DFID,DFID,17/12/2015,Legal costs ,Finance and Corporate Performance Division ,GOVERNMENT LEGAL DEPARTMENT ,100201-101 ,"2,581.20",
DFID,DFID,17/12/2015,Legal costs ,Finance and Corporate Performance Division ,GOVERNMENT LEGAL DEPARTMENT ,100201-101 ,"1,290.00",
DFID,DFID,17/12/2015,Legal costs ,Finance and Corporate Performance Division ,GOVERNMENT LEGAL DEPARTMENT ,100201-101 ,"1,758.30",
DFID,DFID,17/12/2015,Legal costs ,Policy Division ,GOVERNMENT LEGAL DEPARTMENT ,100045-101 ,872.00,
DFID,DFID,03/12/2015,Legal costs ,Human Resources ,GOVERNMENT LEGAL DEPARTMENT ,100269-136 ,"1,873.68",
DFID,DFID,03/12/2015,Legal costs ,Human Resources ,GOVERNMENT LEGAL DEPARTMENT ,100269-136 ,"3,880.73",
DFID,DFID,17/12/2015,Legal costs ,Human Resources ,GOVERNMENT LEGAL DEPARTMENT ,100269-136 ,934.50,
DFID,DFID,17/12/2015,Legal costs ,Human Resources ,GOVERNMENT LEGAL DEPARTMENT ,100269-136 ,"2,015.20",
DFID,DFID,17/12/2015,Legal costs ,Middle East  Humanitarian & Conflict Division ,GOVERNMENT LEGAL DEPARTMENT ,100296-101 ,578.10,
DFID,DFID,17/12/2015,Legal costs ,Middle East  Humanitarian & Conflict Division ,GOVERNMENT LEGAL DEPARTMENT ,100296-101 ,"6,263.30",
DFID,DFID,17/12/2015,Legal costs ,East and Central Africa ,GOVERNMENT LEGAL DEPARTMENT ,101625-102 ,899.20,
DFID,DFID,03/12/2015,Legal costs ,East and Central Africa ,GOVERNMENT LEGAL DEPARTMENT ,101625-102 ,979.50,
DFID,DFID,03/12/2015,Legal costs ,East and Central Africa ,GOVERNMENT LEGAL DEPARTMENT ,204270-103 ,"1,395.00",
DFID,DFID,17/12/2015,Legal costs ,East and Central Africa ,GOVERNMENT LEGAL DEPARTMENT ,204270-103 ,604.50,
DFID,DFID,09/12/2015,Aid Programme - Voluntary contributions ,East and Central Africa ,UNICEF ,203766-113 ,"13,000,000.00",
DFID,DFID,17/12/2015,Aid Programme - Accountable Grant Payments ,East and Central Africa ,Supplier Name withheld ,202619-109 ,"47,907.75",
DFID,DFID,07/12/2015,Project delivery costs – supplier services ,Policy Division ,TROPICAL HEALTH AND EDUCATION TRUST ,202208-101 ,"5,484.37",
DFID,DFID,07/12/2015,Project delivery costs – supplier services ,Policy Division ,TROPICAL HEALTH AND EDUCATION TRUST ,202208-101 ,"26,608.89",
DFID,DFID,17/12/2015,Project delivery costs – supplier services ,Policy Division ,TROPICAL HEALTH AND EDUCATION TRUST ,202208-101 ,"299,650.00",
DFID,DFID,02/12/2015,Project delivery costs – supplier services ,Policy Division ,TROPICAL HEALTH AND EDUCATION TRUST ,202208-101 ,"83,564.05",
DFID,DFID,02/12/2015,Project delivery costs – supplier services ,Policy Division ,TROPICAL HEALTH AND EDUCATION TRUST ,202208-101 ,"543,760.00",
DFID,DFID,15/12/2015,Project delivery costs – supplier services ,Policy Division ,TRIPLE LINE CONSULTING LTD ,202035-101 ,"165,934.18",
DFID,DFID,15/12/2015,Project delivery costs – supplier services ,Policy Division ,TRIPLE LINE CONSULTING LTD ,202035-102 ,"30,621.30",
DFID,DFID,16/12/2015,Water charges ,Group Operations ,THAMES WATER UTILITIES LTD ,203717-101 ,669.21,
DFID,DFID,18/12/2015,Training Providers/Facilitation Services ,Policy Division ,THRESHOLDS ,202402-107 ,"1,928.40",
DFID,DFID,21/12/2015,Aid Programme - Accountable Grant Payments ,Asia  Caribbean and Overseas Territories ,THE OPEN UNIVERSITY ,203480-101 ,"900,201.26",
DFID,DFID,08/12/2015,Research and development costs - supplier services ,Research and Evidence Division ,University Of Sussex ,114334-101 ,"157,784.34",
DFID,DFID,14/12/2015,Aid Programme - Trust Funds contributions ,Asia  Caribbean and Overseas Territories ,UNDP CONTRIBUTIONS ACCOUNT ,201376-101 ,"60,648.10",
DFID,DFID,04/12/2015,Aid Programme - Voluntary contributions ,East and Central Africa ,UNDP CONTRIBUTIONS ACCOUNT ,202821-101 ,"1,123,382.00",
DFID,DFID,02/12/2015,Aid Programme - Core contributions ,West and Southern Africa ,UNDP CONTRIBUTIONS ACCOUNT ,203824-102 ,"1,278,505.00",
DFID,DFID,03/12/2015,Research and development costs - supplier services ,Research and Evidence Division ,UNIVERSITY OF  OXFORD ,200425-101 ,"90,481.55",
DFID,DFID,03/12/2015,Research and development costs - supplier services ,Research and Evidence Division ,UNIVERSITY OF  OXFORD ,200425-102 ,"32,271.57",
DFID,DFID,16/12/2015,Aid Programme - Trust Funds contributions ,East and Central Africa ,Supplier Name withheld ,113401-101 ,"500,000.00",
DFID,DFID,11/12/2015,Aid Programme - Core contributions ,Middle East  Humanitarian & Conflict Division ,Supplier Name withheld ,205056-102 ,"1,000,000.00",
DFID,DFID,17/12/2015,Aid Programme - Pooled/Basket funding ,East and Central Africa ,Supplier Name withheld ,204437-101 ,"491,012.00",
DFID,DFID,16/12/2015,Aid Programme - Accountable Grant Payments ,Western Asia Division ,Supplier Name withheld ,204948-101 ,"114,344.00",
DFID,DFID,16/12/2015,Aid Programme - Accountable Grant Payments ,Western Asia Division ,Supplier Name withheld ,204948-102 ,"125,656.00",
DFID,DFID,14/12/2015,Aid Programme - Trust Funds contributions ,Asia  Caribbean and Overseas Territories ,Supplier Name withheld ,203180-104 ,"613,388.00",
DFID,DFID,10/12/2015,Research and development costs - supplier services ,Research and Evidence Division ,UNIVERSITY OF LEEDS ,201025-102 ,"400,272.00",
DFID,DFID,22/12/2015,Aid Programme - Core contributions ,Policy Division ,UN WOMEN ,204440-102 ,"2,000,000.00",
DFID,DFID,11/12/2015,Aid Programme - Voluntary contributions ,Western Asia Division ,Supplier Name withheld ,205020-101 ,"800,000.00",
DFID,DFID,18/12/2015,Aid Programme - Humanitarian Material Relief Assistance and Services ,East and Central Africa ,Supplier Name withheld ,205169-101 ,"3,000,000.00",
DFID,DFID,14/12/2015,Aid Programme - Voluntary contributions ,Middle East  Humanitarian & Conflict Division ,Supplier Name withheld ,203118-101 ,"4,500,000.00",
DFID,DFID,14/12/2015,Aid Programme - Voluntary contributions ,Middle East  Humanitarian & Conflict Division ,Supplier Name withheld ,203118-101 ,"3,200,000.00",
DFID,DFID,16/12/2015,Aid Programme - Voluntary contributions ,East and Central Africa ,Supplier Name withheld ,204019-108 ,"3,238,100.00",
DFID,DFID,10/12/2015,Aid Programme - Voluntary contributions ,East and Central Africa ,Supplier Name withheld ,204019-108 ,"680,200.00",
DFID,DFID,18/12/2015,Aid Programme - Voluntary contributions ,East and Central Africa ,Supplier Name withheld ,204019-108 ,"1,150,700.00",
DFID,DFID,24/12/2015,Aid Programme - Voluntary contributions ,West and Southern Africa ,Supplier Name withheld ,202722-108 ,"5,279,987.70",
DFID,DFID,13/12/2015,Aid Programme - Core contributions ,West and Southern Africa ,Supplier Name withheld ,202944-103 ,"1,440,000.00",
DFID,DFID,08/12/2015,Aid Programme - Core contributions ,West and Southern Africa ,Supplier Name withheld ,202944-106 ,"1,560,000.00",
DFID,DFID,17/12/2015,Aid Programme - Voluntary contributions ,West and Southern Africa ,Supplier Name withheld ,202909-108 ,"2,000,000.00",
DFID,DFID,09/12/2015,Aid Programme - Core contributions ,West and Southern Africa ,Supplier Name withheld ,202643-101 ,"2,196,477.22",
DFID,DFID,29/12/2015,Aid Programme - Joint programme contribution ,East and Central Africa ,Supplier Name withheld ,202549-102 ,"1,669,818.00",
DFID,DFID,29/12/2015,Aid Programme - Joint programme contribution ,East and Central Africa ,Supplier Name withheld ,202549-108 ,"1,089,319.00",
DFID,DFID,29/12/2015,Aid Programme - Joint programme contribution ,East and Central Africa ,Supplier Name withheld ,202549-109 ,"168,850.00",
DFID,DFID,03/12/2015,Aid Programme - Accountable Grant Payments ,Economic Development Division ,VOLUNTARY SERVICE OVERSEAS ,203800-102 ,"51,627.00",
DFID,DFID,18/12/2015,Aid Programme - Accountable Grant Payments ,East and Central Africa ,VOLUNTARY SERVICE OVERSEAS ,203459-112 ,"45,860.29",
DFID,DFID,16/12/2015,Data Network - land lines ,Business Solutions Division Level ,VERIZON UK LIMITED ,200002-126 ,"3,317.88",
DFID,DFID,08/12/2015,Aid Programme - Strategic Grant Arrangement payments ,Policy Division ,VSO ,202414-102 ,"5,500,000.00",
DFID,DFID,10/12/2015,Aid Programme - Partnership Programme Arrangements ,Policy Division ,WORLD VISION UNITED KINGDOM ,202642-101 ,"984,441.25",
DFID,DFID,04/12/2015,Aid Programme - Partnership Programme Arrangements ,Policy Division ,WOMANKIND WORLDWIDE (JFS) ,202548-101 ,"140,095.25",
DFID,DFID,07/12/2015,Aid Programme - Partnership Programme Arrangements ,Policy Division ,WWF-UK ,202661-101 ,"772,589.00",
DFID,DFID,08/12/2015,Aid Programme - Accountable Grant Payments ,East and Central Africa ,Supplier Name withheld ,202619-104 ,"235,008.00",
DFID,DFID,08/12/2015,Aid Programme - Accountable Grant Payments ,East and Central Africa ,Supplier Name withheld ,202619-104 ,"70,721.00",
DFID,DFID,02/12/2015,Aid Programme - Accountable Grant Payments ,Economic Development Division ,Supplier Name withheld ,201394-115 ,"750,000.00",
DFID,DFID,11/12/2015,Aid Programme - Accountable Grant Payments ,Policy Division ,WATERAID ,202197-101 ,"41,016.00",
DFID,DFID,11/12/2015,Aid Programme - Accountable Grant Payments ,Policy Division ,WATERAID ,202197-101 ,"98,543.00",
DFID,DFID,08/12/2015,Aid Programme - Accountable Grant Payments ,West and Southern Africa ,WATERAID ,202944-102 ,"23,707.38",
DFID,DFID,11/12/2015,Aid Programme - Accountable Grant Payments ,Asia  Caribbean and Overseas Territories ,WATERAID ,202871-104 ,"465,292.00",
DFID,DFID,01/12/2015,Aid Programme - Accountable Grant Payments ,Policy Division ,WATERAID ,203559-116 ,"149,277.00",
DFID,DFID,08/12/2015,Aid Programme - Accountable Grant Payments ,Policy Division ,WESTMINSTER FOUNDATION FOR DEMOCRACY ,204757-101 ,"385,141.00",
DFID,DFID,30/12/2015,Aid Programme - Accountable Grant Payments ,Asia  Caribbean and Overseas Territories ,BRAC ,201286-103 ,"5,450,176.00",
DFID,DFID,30/12/2015,Aid Programme - Accountable Grant Payments ,Asia  Caribbean and Overseas Territories ,BRAC ,201286-104 ,"5,100,000.00",
DFID,DFID,09/12/2015,Air fares ,Asia  Caribbean and Overseas Territories ,Saimon Overseas Ltd ,101603-101 ,810.86,
DFID,DFID,29/12/2015,Hotels - Accommodation only ,Internal Audit ,Laico Umubano Hotel ,100121-101 ,"3,625.47",
DFID,DFID,17/12/2015,Hotels - Accommodation only ,West and Southern Africa ,Capital Hotel ,203811-106 ,"1,681.15",
DFID,DFID,17/12/2015,Hotels - Accommodation only ,West and Southern Africa ,Capital Hotel ,203811-106 ,"1,901.88",
DFID,DFID,03/12/2015,Hardware - printers ,West and Southern Africa ,Gestetner Limited ,101618-101 ,525.81,
DFID,DFID,22/12/2015,Air fares ,West and Southern Africa ,Mukwa Travel and Tours ,101629-101 ,735.35,
DFID,DFID,02/12/2015,Hotels - Accommodation only ,West and Southern Africa ,InterContinental Hotel ,202345-103 ,888.38,
DFID,DFID,08/12/2015,Hotels - Accommodation only ,West and Southern Africa ,Novotel Accra ,101613-101 ,"1,177.82",
DFID,DFID,21/12/2015,Aid Programme - Accountable Grant Payments ,Asia  Caribbean and Overseas Territories ,PUBLIC AFFAIRS CENTRE ,203484-106 ,"31,847.01",
DFID,DFID,14/12/2015,Aid Programme - Accountable Grant Payments ,Asia  Caribbean and Overseas Territories ,PUBLIC AFFAIRS CENTRE ,203484-106 ,"51,334.46",
DFID,DFID,15/12/2015,Aid Programme - Accountable Grant Payments ,Asia  Caribbean and Overseas Territories ,PUBLIC AFFAIRS CENTRE ,203484-106 ,"12,748.48",
DFID,DFID,03/12/2015,Aid Programme - Accountable Grant Payments ,Asia  Caribbean and Overseas Territories ,PUBLIC AFFAIRS CENTRE ,203484-106 ,"4,306.56",
DFID,DFID,11/12/2015,Project delivery costs – supplier services ,Asia  Caribbean and Overseas Territories ,IPE Global Private Limited ,202867-103 ,"12,212.61",
DFID,DFID,02/12/2015,Project delivery costs – supplier services ,Asia  Caribbean and Overseas Territories ,DELOITTE TOUCHE TOHMATSU INDIA PRIVA ,202927-101 ,"9,557.27",
DFID,DFID,22/12/2015,Project delivery costs – supplier services ,Asia  Caribbean and Overseas Territories ,DELOITTE TOUCHE TOHMATSU INDIA PRIVA ,114168-101 ,"10,567.78",
DFID,DFID,22/12/2015,Project delivery costs – supplier services ,Asia  Caribbean and Overseas Territories ,DELOITTE TOUCHE TOHMATSU INDIA PRIVA ,114168-101 ,"15,851.68",
DFID,DFID,15/12/2015,Project delivery costs – supplier services ,Asia  Caribbean and Overseas Territories ,DELOITTE TOUCHE TOHMATSU INDIA PRIVA ,114168-101 ,"8,552.15",
DFID,DFID,18/12/2015,Project delivery costs – supplier services ,Asia  Caribbean and Overseas Territories ,CENTRE FOR GOOD GOVERNANCE ,203484-101 ,"2,987.62",
DFID,DFID,10/12/2015,Project delivery costs – supplier services ,Asia  Caribbean and Overseas Territories ,CENTRE FOR GOOD GOVERNANCE ,203484-101 ,"8,827.08",
DFID,DFID,23/12/2015,Project delivery costs – supplier services ,Asia  Caribbean and Overseas Territories ,CENTRE FOR GOOD GOVERNANCE ,203484-101 ,"7,966.99",
DFID,DFID,22/12/2015,Project delivery costs – supplier services ,Asia  Caribbean and Overseas Territories ,AVA & ASSOCIATES ,114168-101 ,"1,015.18",
DFID,DFID,18/12/2015,Aid Programme - Accountable Grant Payments ,Research and Evidence Division ,The Population Council ,202344-105 ,"51,217.00",
DFID,DFID,18/12/2015,Aid Programme - Accountable Grant Payments ,West and Southern Africa ,The Population Council ,202344-102 ,"381,761.00",
DFID,DFID,23/12/2015,Project delivery costs – supplier services ,Asia  Caribbean and Overseas Territories ,The Population Council ,114506-101 ,"38,521.00",
DFID,DFID,04/12/2015,Research and development costs - supplier services ,Research and Evidence Division ,Stellenbosch University ,204584-124 ,"2,778.05",
DFID,DFID,16/12/2015,Repairs  Maint  Alter - Property & Constrct. Services ,West and Southern Africa ,Fracham Company ,101622-103 ,531.82,
DFID,DFID,10/12/2015,Repairs  Maint  Alter - Removal & waste disposal services ,West and Southern Africa ,Fracham Company ,101622-105 ,560.45,
DFID,DFID,16/12/2015,Repairs  Maint  Alter - Property & Constrct. Services ,West and Southern Africa ,Fracham Company ,101622-105 ,"1,043.83",
DFID,DFID,16/12/2015,Repairs  Maint  Alter - Removal & waste disposal services ,West and Southern Africa ,Fracham Company ,101622-105 ,558.41,
DFID,DFID,16/12/2015,Repairs  Maint  Alter - Property & Constrct. Services ,West and Southern Africa ,Fracham Company ,100152-105 ,531.82,
DFID,DFID,16/12/2015,Hotels - Accommodation only ,West and Southern Africa ,Supplier Name withheld ,101622-105 ,"1,013.70",
DFID,DFID,29/12/2015,Hotels - Accommodation only ,West and Southern Africa ,Supplier Name withheld ,101622-103 ,965.15,
DFID,DFID,29/12/2015,Hotels - Accommodation only ,West and Southern Africa ,Supplier Name withheld ,204438-101 ,614.19,
DFID,DFID,14/12/2015,Hotels - Accommodation only ,West and Southern Africa ,Supplier Name withheld ,101622-105 ,549.15,
DFID,DFID,14/12/2015,Hotels - Accommodation only ,West and Southern Africa ,Supplier Name withheld ,101622-105 ,509.30,
DFID,DFID,08/12/2015,Cleaning Costs ,West and Southern Africa ,Sparklean Services Nig Ltd ,101622-105 ,"4,362.73",
DFID,DFID,22/12/2015,Repairs  Maint  Alter - Property & Constrct. Services ,West and Southern Africa ,Sparklean Services Nig Ltd ,101622-105 ,843.66,
DFID,DFID,08/12/2015,Cleaning Costs ,West and Southern Africa ,Sparklean Services Nig Ltd ,100152-110 ,"1,224.74",
DFID,DFID,08/12/2015,Auditors Remuneration & Expenses - Cash ,West and Southern Africa ,PKF Professional Services ,114206-104 ,"40,512.13",
DFID,DFID,15/12/2015,Project delivery costs – supplier services ,West and Southern Africa ,PKF Professional Services ,201625-105 ,"6,781.70",
DFID,DFID,07/12/2015,Research and development costs - supplier services ,Research and Evidence Division ,Supplier Name withheld ,201009-101 ,"343,622.53",
DFID,DFID,17/12/2015,Project delivery costs – supplier services ,Policy Division ,Supplier Name withheld ,202921-103 ,"586,967.22",
DFID,DFID,22/12/2015,Project delivery costs – supplier services ,Policy Division ,Supplier Name withheld ,202921-103 ,"298,940.64",
DFID,DFID,02/12/2015,Project delivery costs – supplier services ,Middle East  Humanitarian & Conflict Division ,Supplier Name withheld ,202564-103 ,"198,643.00",
DFID,DFID,09/12/2015,Research and development costs - supplier services ,Research and Evidence Division ,Supplier Name withheld ,203529-101 ,"388,091.25",
DFID,DFID,22/12/2015,Project delivery costs – supplier services ,Policy Division ,Supplier Name withheld ,202948-133 ,"10,000.00",
DFID,DFID,01/12/2015,Aid Programme - Accountable Grant Payments ,Economic Development Division ,ISEAL ALLIANCE ,203448-101 ,"218,566.00",
DFID,DFID,04/12/2015,Training - Course Fees ,PGP Directorate ,CIPFA ,205044-101 ,"2,640.00",
DFID,DFID,16/12/2015,Project delivery costs – supplier services ,Human Resources ,Tinies UK Ltd ,100269-148 ,"1,699.50",
DFID,DFID,09/12/2015,Aid Programme - Humanitarian Material Relief Assistance and Services ,East and Central Africa ,UN OCHA ,202235-101 ,"6,000,000.00",
DFID,DFID,09/12/2015,Aid Programme - Humanitarian Material Relief Assistance and Services ,East and Central Africa ,UN OCHA ,202235-104 ,"333,000.00",
DFID,DFID,15/12/2015,Aid Programme - Accountable Grant Payments ,Western Asia Division ,UN OCHA ,204973-104 ,"700,000.00",
DFID,DFID,10/12/2015,Aid Programme - Voluntary contributions ,Middle East  Humanitarian & Conflict Division ,UN OCHA ,203814-103 ,"5,200,000.00",
DFID,DFID,15/12/2015,Aid Programme - Voluntary contributions ,Middle East  Humanitarian & Conflict Division ,UN OCHA ,204016-105 ,"1,000,000.00",
DFID,DFID,17/12/2015,Aid Programme - Voluntary contributions ,Research and Evidence Division ,FAO ,202931-101 ,"1,300,000.00",
DFID,DFID,04/12/2015,Aid Programme - Voluntary contributions ,Research and Evidence Division ,FAO ,202931-101 ,"650,000.00",
DFID,DFID,16/12/2015,Aid Programme - Humanitarian Material Relief Assistance and Services ,Middle East  Humanitarian & Conflict Division ,FAO ,204511-101 ,"1,000,000.00",
DFID,DFID,17/12/2015,Project delivery costs – supplier services ,Policy Division ,FAO ,204202-104 ,"1,600,000.00",
DFID,DFID,14/12/2015,Aid Programme - Core contributions ,Economic Development Division ,FAO ,204332-101 ,"732,233.00",
DFID,DFID,09/12/2015,Aid Programme - Humanitarian Material Relief Assistance and Services ,East and Central Africa ,FAO ,204852-107 ,"500,000.00",
DFID,DFID,11/12/2015,Aid Programme - Core contributions ,Policy Division ,CMI MICHELSEN INSTITUTE ,203214-101 ,"82,500.00",
DFID,DFID,24/12/2015,Aid Programme - Voluntary contributions ,East and Central Africa ,Supplier Name withheld ,204019-103 ,"2,000,000.00",
DFID,DFID,24/12/2015,Aid Programme - Voluntary contributions ,East and Central Africa ,Supplier Name withheld ,204019-101 ,"11,000,000.00",
DFID,DFID,24/12/2015,Aid Programme - Voluntary contributions ,East and Central Africa ,Supplier Name withheld ,204888-102 ,"1,674,695.00",
DFID,DFID,17/12/2015,Aid Programme - Voluntary contributions ,Asia  Caribbean and Overseas Territories ,Supplier Name withheld ,204196-102 ,"2,215,000.00",
DFID,DFID,31/12/2015,Aid Programme - Humanitarian Material Relief Assistance and Services ,East and Central Africa ,Supplier Name withheld ,204439-106 ,"500,000.00",
DFID,DFID,22/12/2015,Project delivery costs – supplier services ,East and Central Africa ,Supplier Name withheld ,202891-108 ,"247,025.00",
DFID,DFID,22/12/2015,Project delivery costs – supplier services ,East and Central Africa ,Supplier Name withheld ,202891-111 ,"752,975.00",
DFID,DFID,31/12/2015,Aid Programme - Trust Funds contributions ,East and Central Africa ,Supplier Name withheld ,202580-104 ,"466,200.00",
DFID,DFID,17/12/2015,Aid Programme - Accountable Grant Payments ,East and Central Africa ,SOLIDARITES INTERNATIONAL ,204852-105 ,"921,247.54",
DFID,DFID,07/12/2015,Data Network - land lines ,Business Solutions Division Level ,KUBE NETWORKS LTD ,200002-130 ,"1,083.16",
DFID,DFID,14/12/2015,Aid Programme - Joint programme contribution ,East and Central Africa ,GTZ GmBH Eschborn ,204639-101 ,"2,045,000.00",
DFID,DFID,22/12/2015,Aid Programme - Joint programme contribution ,Western Asia Division ,GTZ GmBH Eschborn ,204792-103 ,"500,000.00",
DFID,DFID,31/12/2015,Aid Programme - Humanitarian Material Relief Assistance and Services ,Regional Directorate ,IPA-International Procurement Agency (BV) ,204917-102 ,"251,672.12",
DFID,DFID,31/12/2015,Aid Programme - Humanitarian Material Relief Assistance and Services ,Regional Directorate ,IPA-International Procurement Agency (BV) ,204917-102 ,"15,512.78",
DFID,DFID,31/12/2015,Aid Programme - Humanitarian Material Relief Assistance and Services ,Regional Directorate ,IPA-International Procurement Agency (BV) ,204917-102 ,"286,404.57",
DFID,DFID,31/12/2015,Aid Programme - Humanitarian Material Relief Assistance and Services ,Regional Directorate ,IPA-International Procurement Agency (BV) ,204917-102 ,"625,017.15",
DFID,DFID,31/12/2015,DFID Purchased Relief Supplies ,East and Central Africa ,IPA-International Procurement Agency (BV) ,203109-107 ,"1,178.57",
DFID,DFID,31/12/2015,DFID Purchased Relief Supplies ,East and Central Africa ,IPA-International Procurement Agency (BV) ,203109-107 ,"39,951.68",
DFID,DFID,31/12/2015,DFID Purchased Relief Supplies ,East and Central Africa ,IPA-International Procurement Agency (BV) ,203109-107 ,"108,896.26",
DFID,DFID,03/12/2015,DFID Purchased Relief Supplies ,Policy Division ,IPA-International Procurement Agency (BV) ,201724-144 ,"12,171.47",
DFID,DFID,16/12/2015,Project delivery costs – supplier services ,West and Southern Africa ,ABT ASSOCIATES INC ,104229-101 ,"797,466.75",
DFID,DFID,22/12/2015,Project delivery costs – supplier services ,West and Southern Africa ,ABT ASSOCIATES INC ,104229-101 ,"801,744.86",
DFID,DFID,31/12/2015,Project delivery costs – supplier services ,Policy Division ,KPMG EAST AFRICA LTD ,201724-102 ,"135,756.00",
DFID,DFID,21/12/2015,Project delivery costs – supplier services ,Policy Division ,KPMG EAST AFRICA LTD ,202921-102 ,"427,357.20",
DFID,DFID,09/12/2015,Research and development costs - supplier services ,Research and Evidence Division ,LONDON SCHOOL OF ECONOMICS AND POLITICAL SCIENCE ,201006-101 ,"113,086.02",
DFID,DFID,09/12/2015,Research and development costs - supplier services ,Research and Evidence Division ,LONDON SCHOOL OF ECONOMICS AND POLITICAL SCIENCE ,201006-101 ,"346,295.11",
DFID,DFID,01/12/2015,Aid Programme - Accountable Grant Payments ,East and Central Africa ,LONDON SCHOOL OF ECONOMICS AND POLITICAL SCIENCE ,204803-103 ,"22,081.46",
DFID,DFID,15/12/2015,Project delivery costs – supplier services ,Economic Development Division ,LONDON SCHOOL OF ECONOMICS AND POLITICAL SCIENCE ,203286-101 ,"2,503,420.21",
DFID,DFID,16/12/2015,Project delivery costs – supplier services ,Research and Evidence Division ,LONDON SCHOOL OF ECONOMICS AND POLITICAL SCIENCE ,203286-103 ,"974,564.21",
DFID,DFID,11/12/2015,Aid Programme - Voluntary contributions ,East and Central Africa ,United Nations Economic Commission ,204624-102 ,"1,223,000.00",
DFID,DFID,07/12/2015,Aid Programme - Voluntary contributions ,East and Central Africa ,United Nations Economic Commission ,204458-105 ,"615,000.00",
DFID,DFID,11/12/2015,Project delivery costs – supplier services ,West and Southern Africa ,UPPER QUARTILE ,203816-104 ,"61,117.83",
DFID,DFID,16/12/2015,Project delivery costs – supplier services ,West and Southern Africa ,UPPER QUARTILE ,201625-107 ,"137,331.00",
DFID,DFID,17/12/2015,Oil - Other Utilities ,West and Southern Africa ,Total Nigeria PLC ,100152-110 ,951.89,
DFID,DFID,17/12/2015,Oil - Other Utilities ,West and Southern Africa ,Total Nigeria PLC ,101622-105 ,"16,287.08",
DFID,DFID,11/12/2015,Hostile Environment Training ,Finance and Corporate Performance Division ,Safeguard ,202437-101 ,948.72,
DFID,DFID,16/12/2015,Facilities Management payments ,West and Southern Africa ,Raju's Electricals ,101629-101 ,946.41,
DFID,DFID,16/12/2015,Facilities Management payments ,West and Southern Africa ,Raju's Electricals ,101629-101 ,736.20,
DFID,DFID,21/12/2015,Facilities Management payments ,West and Southern Africa ,Raju's Electricals ,101629-101 ,"1,124.36",
DFID,DFID,17/12/2015,Facilities Management payments ,West and Southern Africa ,Hema Trading ,101629-101 ,"1,531.82",
DFID,DFID,14/12/2015,Facilities Management payments ,West and Southern Africa ,Hema Trading ,101629-101 ,609.23,
DFID,DFID,23/12/2015,Oil - Other Utilities ,West and Southern Africa ,Ibrahim Shour General Auto Spares ,101629-101 ,526.60,
DFID,DFID,21/12/2015,Project delivery costs – supplier services ,Regional Directorate ,The Country Lodge Complex ,204902-105 ,"2,389.56",
DFID,DFID,22/12/2015,Facilities Management payments ,West and Southern Africa ,Reliance Insurance Trust Cooperation ,101629-101 ,"2,194.83",
DFID,DFID,22/12/2015,Facilities Management payments ,West and Southern Africa ,Reliance Insurance Trust Cooperation ,100214-101 ,940.64,
DFID,DFID,21/12/2015,Project delivery costs – supplier services ,Regional Directorate ,Sierra Light House Hotel & Restauran ,204902-105 ,765.89,
DFID,DFID,08/12/2015,Project delivery costs – supplier services ,Regional Directorate ,Sierra Light House Hotel & Restauran ,204902-105 ,636.86,
DFID,DFID,08/12/2015,Project delivery costs – supplier services ,Regional Directorate ,Sierra Light House Hotel & Restauran ,204902-105 ,636.86,
DFID,DFID,23/12/2015,Project delivery costs – supplier services ,West and Southern Africa ,British High Commission ,100214-101 ,965.43,
DFID,DFID,23/12/2015,Project delivery costs – supplier services ,West and Southern Africa ,British High Commission ,100214-101 ,"1,316.49",
DFID,DFID,23/12/2015,Vehicle Petrol & Oil ,West and Southern Africa ,British High Commission ,100214-101 ,595.05,
DFID,DFID,23/12/2015,Project delivery costs – supplier services ,West and Southern Africa ,British High Commission ,101629-101 ,"4,855.23",
DFID,DFID,23/12/2015,Vehicle Petrol & Oil ,West and Southern Africa ,British High Commission ,101629-101 ,892.58,
DFID,DFID,08/12/2015,Project delivery costs – supplier services ,Asia  Caribbean and Overseas Territories ,SAMBODHI RESEARCH AND ,203455-101 ,"19,353.52",
DFID,DFID,17/12/2015,Aid Programme - Accountable Grant Payments ,Policy Division ,UNITED NATIONS FOUNDATION ,204202-101 ,"461,282.00",
DFID,DFID,04/12/2015,Aid Programme - Accountable Grant Payments ,Policy Division ,UNITED NATIONS FOUNDATION ,204202-103 ,"147,194.00",
DFID,DFID,18/12/2015,Aid Programme - Voluntary contributions ,Middle East  Humanitarian & Conflict Division ,Supplier Name withheld ,205073-101 ,"1,000,000.00",
DFID,DFID,01/12/2015,Aid Programme - Accountable Grant Payments ,Western Asia Division ,Supplier Name withheld ,204973-106 ,"250,000.00",
DFID,DFID,15/12/2015,Aid Programme - Core contributions ,East and Central Africa ,Supplier Name withheld ,203024-102 ,"2,000,000.00",
DFID,DFID,11/12/2015,Aid Programme - Voluntary contributions ,East and Central Africa ,Supplier Name withheld ,202959-103 ,"1,700,000.00",
DFID,DFID,14/12/2015,Aid Programme - Voluntary contributions ,West and Southern Africa ,Supplier Name withheld ,202342-103 ,"462,478.73",
DFID,DFID,09/12/2015,Aid Programme - Core contributions ,West and Southern Africa ,Supplier Name withheld ,202668-101 ,"2,900,000.00",
DFID,DFID,17/12/2015,Project delivery costs – supplier services ,West and Southern Africa ,Cambridge  Education Limited ,104200-101 ,"1,131,718.68",
DFID,DFID,14/12/2015,Project delivery costs – supplier services ,West and Southern Africa ,Cambridge  Education Limited ,104200-101 ,"297,347.09",
DFID,DFID,15/12/2015,Aid Programme - Voluntary contributions ,East and Central Africa ,Supplier Name withheld ,204019-102 ,"450,000.00",
DFID,DFID,15/12/2015,Aid Programme - Voluntary contributions ,East and Central Africa ,Supplier Name withheld ,204019-109 ,"550,000.00",
DFID,DFID,31/12/2015,Aid Programme - Accountable Grant Payments ,Western Asia Division ,Supplier Name withheld ,204973-105 ,"500,000.00",
DFID,DFID,10/12/2015,Aid Programme - Voluntary contributions ,Middle East  Humanitarian & Conflict Division ,Supplier Name withheld ,204401-101 ,"2,186,513.00",
DFID,DFID,16/12/2015,Project delivery costs – supplier services ,East and Central Africa ,KPMG LLP ,203109-101 ,"43,200.00",
DFID,DFID,14/12/2015,Project delivery costs – supplier services ,Economic Development Division ,KPMG LLP ,202647-101 ,"302,368.00",
DFID,DFID,15/12/2015,Project delivery costs – supplier services ,Economic Development Division ,KPMG LLP ,202647-101 ,"68,299.20",
DFID,DFID,15/12/2015,Project delivery costs – supplier services ,Economic Development Division ,KPMG LLP ,202647-101 ,"68,299.20",
DFID,DFID,03/12/2015,Project delivery costs – supplier services ,Economic Development Division ,KPMG LLP ,202647-101 ,"68,299.20",
DFID,DFID,23/12/2015,Project delivery costs – supplier services ,Asia  Caribbean and Overseas Territories ,FAMILY HEALTH INTERNATIONAL ,113707-101 ,"355,708.00",
DFID,DFID,14/12/2015,Project delivery costs – supplier services ,Asia  Caribbean and Overseas Territories ,FAMILY HEALTH INTERNATIONAL ,113707-101 ,"273,772.96",
DFID,DFID,14/12/2015,Project delivery costs – supplier services ,Asia  Caribbean and Overseas Territories ,FAMILY HEALTH INTERNATIONAL ,113707-101 ,"270,000.00",
DFID,DFID,17/12/2015,Project delivery costs – supplier services ,Asia  Caribbean and Overseas Territories ,FAMILY HEALTH INTERNATIONAL ,113707-101 ,"217,754.40",
DFID,DFID,16/12/2015,Project delivery costs – supplier services ,Asia  Caribbean and Overseas Territories ,FAMILY HEALTH INTERNATIONAL ,113707-101 ,"254,500.00",
DFID,DFID,16/12/2015,Project delivery costs – supplier services ,Asia  Caribbean and Overseas Territories ,FAMILY HEALTH INTERNATIONAL ,113707-101 ,"279,055.84",
DFID,DFID,16/12/2015,Project delivery costs – supplier services ,Asia  Caribbean and Overseas Territories ,FAMILY HEALTH INTERNATIONAL ,113707-101 ,"359,898.85",
DFID,DFID,16/12/2015,Project delivery costs – supplier services ,Asia  Caribbean and Overseas Territories ,FAMILY HEALTH INTERNATIONAL ,113707-101 ,"304,500.00",
DFID,DFID,04/12/2015,Project delivery costs – supplier services ,Asia  Caribbean and Overseas Territories ,FAMILY HEALTH INTERNATIONAL ,203484-101 ,"32,506.00",
DFID,DFID,17/12/2015,Project delivery costs – supplier services ,Asia  Caribbean and Overseas Territories ,FAMILY HEALTH INTERNATIONAL ,203484-101 ,"16,253.00",
DFID,DFID,31/12/2015,Aid Programme - Voluntary contributions ,Policy Division ,Supplier Name withheld ,203148-103 ,"377,190.22",
DFID,DFID,17/12/2015,Aid Programme - Voluntary contributions ,Policy Division ,Supplier Name withheld ,204731-102 ,"500,000.00",
DFID,DFID,21/12/2015,Aid Programme - Voluntary contributions ,East and Central Africa ,Supplier Name withheld ,113303-105 ,"748,838.00",
DFID,DFID,07/12/2015,Aid Programme - Voluntary contributions ,Policy Division ,Supplier Name withheld ,202918-101 ,"1,500,000.00",
DFID,DFID,07/12/2015,Aid Programme - Pooled/Basket funding ,Research and Evidence Division ,Supplier Name withheld ,201900-104 ,"86,800.00",
DFID,DFID,18/12/2015,Aid Programme - Accountable Grant Payments ,Finance and Corporate Performance Division ,KEYSTONE ACCOUNTABILITY ,203316-105 ,"27,150.00",
DFID,DFID,17/12/2015,Subscriptions ,Communications Division ,THE PRESS ASSOCIATION ,100197-101 ,601.61,
DFID,DFID,17/12/2015,Project delivery costs – supplier services ,West and Southern Africa ,GENESIS ANALYTICS (PTY) LTD ,204230-102 ,"12,351.16",
DFID,DFID,21/12/2015,Aid Programme - Humanitarian Material Relief Assistance and Services ,Regional Directorate ,IOM ,204902-112 ,"77,610.00",
DFID,DFID,15/12/2015,Aid Programme - Voluntary contributions ,East and Central Africa ,IOM ,204019-112 ,"2,233,000.00",
DFID,DFID,11/12/2015,Aid Programme - Voluntary contributions ,East and Central Africa ,IOM ,204019-112 ,"1,320,000.00",
DFID,DFID,11/12/2015,Aid Programme - Voluntary contributions ,East and Central Africa ,IOM ,204019-102 ,"378,000.00",
DFID,DFID,24/12/2015,Project delivery costs – supplier services ,Asia  Caribbean and Overseas Territories ,IPE Global Pvt. Ltd. ,107891-102 ,"11,450.00",
DFID,DFID,30/12/2015,Project delivery costs – supplier services ,Asia  Caribbean and Overseas Territories ,IPE Global Pvt. Ltd. ,107891-102 ,"8,950.02",
DFID,DFID,16/12/2015,Project delivery costs – supplier services ,Asia  Caribbean and Overseas Territories ,IPE Global Pvt. Ltd. ,107891-102 ,"8,043.63",
DFID,DFID,17/12/2015,Project delivery costs – supplier services ,Asia  Caribbean and Overseas Territories ,IPE Global Pvt. Ltd. ,107891-102 ,"5,581.88",
DFID,DFID,09/12/2015,Project delivery costs – supplier services ,Asia  Caribbean and Overseas Territories ,IPE Global Pvt. Ltd. ,107891-102 ,"8,950.02",
DFID,DFID,29/12/2015,Project delivery costs – supplier services ,Asia  Caribbean and Overseas Territories ,IPE Global Pvt. Ltd. ,114040-101 ,"51,769.34",
DFID,DFID,17/12/2015,Project delivery costs – supplier services ,Asia  Caribbean and Overseas Territories ,IPE Global Pvt. Ltd. ,114040-101 ,"128,530.83",
DFID,DFID,17/12/2015,Project delivery costs – supplier services ,Asia  Caribbean and Overseas Territories ,IPE Global Pvt. Ltd. ,114040-101 ,"42,843.61",
DFID,DFID,17/12/2015,Project delivery costs – supplier services ,Asia  Caribbean and Overseas Territories ,IPE Global Pvt. Ltd. ,114040-101 ,"64,265.42",
DFID,DFID,09/12/2015,Project delivery costs – supplier services ,Asia  Caribbean and Overseas Territories ,IPE Global Pvt. Ltd. ,114040-101 ,"103,181.62",
DFID,DFID,09/12/2015,Project delivery costs – supplier services ,Asia  Caribbean and Overseas Territories ,IPE Global Pvt. Ltd. ,114040-101 ,"37,406.75",
DFID,DFID,15/12/2015,Project delivery costs – supplier services ,Asia  Caribbean and Overseas Territories ,IPE Global Pvt. Ltd. ,114040-101 ,"128,530.83",
DFID,DFID,15/12/2015,Project delivery costs – supplier services ,Asia  Caribbean and Overseas Territories ,IPE Global Pvt. Ltd. ,114040-101 ,"107,109.03",
DFID,DFID,16/12/2015,Project delivery costs – supplier services ,Asia  Caribbean and Overseas Territories ,IPE Global Pvt. Ltd. ,114040-101 ,"85,687.22",
DFID,DFID,16/12/2015,Project delivery costs – supplier services ,Asia  Caribbean and Overseas Territories ,IPE Global Pvt. Ltd. ,114040-101 ,"85,687.22",
DFID,DFID,16/12/2015,Project delivery costs – supplier services ,Asia  Caribbean and Overseas Territories ,IPE Global Pvt. Ltd. ,114040-101 ,"64,265.42",
DFID,DFID,29/12/2015,Project delivery costs – supplier services ,Asia  Caribbean and Overseas Territories ,IPE Global Pvt. Ltd. ,114040-101 ,"1,459.88",
DFID,DFID,17/12/2015,Project delivery costs – supplier services ,Asia  Caribbean and Overseas Territories ,IPE Global Pvt. Ltd. ,202765-102 ,"105,183.15",
DFID,DFID,29/12/2015,Project delivery costs – supplier services ,Asia  Caribbean and Overseas Territories ,IPE Global Pvt. Ltd. ,203217-101 ,"51,677.86",
DFID,DFID,29/12/2015,Project delivery costs – supplier services ,Asia  Caribbean and Overseas Territories ,IPE Global Pvt. Ltd. ,203217-101 ,"51,677.86",
DFID,DFID,22/12/2015,Project delivery costs – supplier services ,Asia  Caribbean and Overseas Territories ,IPE Global Pvt. Ltd. ,203217-101 ,"41,382.39",
DFID,DFID,22/12/2015,Project delivery costs – supplier services ,Asia  Caribbean and Overseas Territories ,IPE Global Pvt. Ltd. ,203217-101 ,"3,125.91",
DFID,DFID,22/12/2015,Project delivery costs – supplier services ,Asia  Caribbean and Overseas Territories ,IPE Global Pvt. Ltd. ,203217-101 ,"57,200.31",
DFID,DFID,22/12/2015,Project delivery costs – supplier services ,Asia  Caribbean and Overseas Territories ,IPE Global Pvt. Ltd. ,203217-101 ,"66,941.28",
DFID,DFID,29/12/2015,Project delivery costs – supplier services ,Asia  Caribbean and Overseas Territories ,IPE Global Pvt. Ltd. ,203217-101 ,"51,677.86",
DFID,DFID,29/12/2015,Project delivery costs – supplier services ,Asia  Caribbean and Overseas Territories ,IPE Global Pvt. Ltd. ,203217-101 ,"88,407.74",
DFID,DFID,16/12/2015,Project delivery costs – supplier services ,Asia  Caribbean and Overseas Territories ,IPE Global Pvt. Ltd. ,203217-101 ,"51,677.86",
DFID,DFID,16/12/2015,Project delivery costs – supplier services ,Asia  Caribbean and Overseas Territories ,IPE Global Pvt. Ltd. ,203217-101 ,"88,407.74",
DFID,DFID,16/12/2015,Project delivery costs – supplier services ,Asia  Caribbean and Overseas Territories ,IPE Global Pvt. Ltd. ,203217-101 ,"88,407.74",
DFID,DFID,16/12/2015,Project delivery costs – supplier services ,Asia  Caribbean and Overseas Territories ,IPE Global Pvt. Ltd. ,203217-101 ,"88,407.74",
DFID,DFID,16/12/2015,Project delivery costs – supplier services ,Asia  Caribbean and Overseas Territories ,IPE Global Pvt. Ltd. ,203217-101 ,"88,407.74",
DFID,DFID,08/12/2015,Repairs  Maint  Alter - Removal & waste disposal services ,Group Operations ,BYWATERS ,203717-101 ,"3,338.71",
DFID,DFID,07/12/2015,Aid Programme - Partnership Programme Arrangements ,Policy Division ,TRANSPARENCY INTERNAT ,202505-101 ,"843,586.00",
DFID,DFID,31/12/2015,Aid Programme - Voluntary contributions ,Western Asia Division ,THE UN OFFICE on DRUGS AND CRIME ,113331-104 ,"600,000.00",
DFID,DFID,14/12/2015,Facilities Management payments ,West and Southern Africa ,Simon A K Turay ,101629-101 ,571.69,
DFID,DFID,02/12/2015,Project delivery costs – supplier services ,West and Southern Africa ,Pacific Hotels and Conferences ,203824-101 ,"1,371.66",
DFID,DFID,10/12/2015,Contract & Agency Staff ,Group Operations ,Michael Page Int. Recruitment Ltd ,100270-106 ,"2,157.30",
DFID,DFID,16/12/2015,Contract & Agency Staff ,Group Operations ,Michael Page Int. Recruitment Ltd ,100270-106 ,719.10,
DFID,DFID,11/12/2015,Aid Programme - Voluntary contributions ,Western Asia Division ,Supplier Name withheld ,203904-103 ,"2,500,000.00",
DFID,DFID,17/12/2015,Aid Programme - Voluntary contributions ,West and Southern Africa ,Supplier Name withheld ,205161-102 ,"1,500,000.00",
DFID,DFID,17/12/2015,Aid Programme - Voluntary contributions ,West and Southern Africa ,Supplier Name withheld ,204883-101 ,"29,000.00",
DFID,DFID,21/12/2015,Aid Programme - Humanitarian Material Relief Assistance and Services ,East and Central Africa ,Supplier Name withheld ,204439-105 ,"1,500,000.00",
DFID,DFID,30/12/2015,Aid Programme - Voluntary contributions ,West and Southern Africa ,Supplier Name withheld ,202909-103 ,"3,500,000.00",
DFID,DFID,04/12/2015,Aid Programme - Partnership Programme Arrangements ,Policy Division ,Fairtrade Labelling Organizations International e.V. ,201718-101 ,"750,000.00",
DFID,DFID,21/12/2015,Aid Programme - Accountable Grant Payments ,East and Central Africa ,Supplier Name withheld ,204400-104 ,"758,448.00",
DFID,DFID,01/12/2015,Aid Programme - Accountable Grant Payments ,Regional Directorate ,Supplier Name withheld ,204896-102 ,"1,240,298.00",
DFID,DFID,31/12/2015,Aid Programme - Accountable Grant Payments ,Regional Directorate ,Supplier Name withheld ,204967-101 ,"1,914,091.00",
DFID,DFID,10/12/2015,Project delivery costs – supplier services ,Policy Division ,Crown Agents Bank ,201724-128 ,"121,301.00",
DFID,DFID,16/12/2015,Project delivery costs – supplier services ,Policy Division ,Crown Agents Bank ,201724-129 ,"63,786.84",
DFID,DFID,07/12/2015,Project delivery costs – supplier services ,Middle East  Humanitarian & Conflict Division ,Crown Agents Bank ,201828-101 ,"39,536.41",
DFID,DFID,09/12/2015,Project delivery costs – supplier services ,Middle East  Humanitarian & Conflict Division ,Crown Agents Bank ,201828-101 ,"39,034.50",
DFID,DFID,16/12/2015,Project delivery costs – supplier services ,Asia  Caribbean and Overseas Territories ,Crown Agents Bank ,201645-105 ,"600,988.65",
DFID,DFID,29/12/2015,Project delivery costs – supplier services ,East and Central Africa ,Crown Agents Bank ,202619-101 ,"38,473.92",
DFID,DFID,09/12/2015,Project delivery costs – supplier services ,West and Southern Africa ,Crown Agents Bank ,200469-110 ,"202,615.35",
DFID,DFID,02/12/2015,Project delivery costs – supplier services ,West and Southern Africa ,Crown Agents Bank ,200469-110 ,"722,125.48",
DFID,DFID,01/12/2015,Aid Programme - Core contributions ,Research and Evidence Division ,Medicines for Malaria Venture ,204066-101 ,"2,000,000.00",
DFID,DFID,01/12/2015,Aid Programme - Strategic Grant Arrangement payments ,Research and Evidence Division ,WELLCOME TRUST ,204571-109 ,"201,832.00",
DFID,DFID,09/12/2015,Aid Programme - Core contributions ,Research and Evidence Division ,WELLCOME TRUST ,201267-103 ,"1,500,000.00",
DFID,DFID,22/12/2015,Vehicle Repairs & Maintenance ,West and Southern Africa ,United Nassar Motors ,100214-101 ,876.19,
DFID,DFID,22/12/2015,Vehicle Repairs & Maintenance ,West and Southern Africa ,United Nassar Motors ,101629-101 ,"2,044.43",
DFID,DFID,23/12/2015,Vehicle Repairs & Maintenance ,West and Southern Africa ,United Nassar Motors ,101629-101 ,"1,132.98",
DFID,DFID,23/12/2015,Vehicle Repairs & Maintenance ,West and Southern Africa ,United Nassar Motors ,101629-101 ,750.64,
DFID,DFID,08/12/2015,Vehicle Repairs & Maintenance ,West and Southern Africa ,United Nassar Motors ,101629-101 ,897.34,
DFID,DFID,09/12/2015,Project delivery costs – supplier services ,Regional Directorate ,United Nassar Motors ,204902-105 ,542.18,
DFID,DFID,09/12/2015,Project delivery costs – supplier services ,Regional Directorate ,United Nassar Motors ,204902-105 ,620.54,
DFID,DFID,09/12/2015,Project delivery costs – supplier services ,Regional Directorate ,United Nassar Motors ,204902-105 ,860.29,
DFID,DFID,09/12/2015,Project delivery costs – supplier services ,Regional Directorate ,United Nassar Motors ,204902-105 ,"1,056.16",
DFID,DFID,31/12/2015,Aid Programme - Accountable Grant Payments ,Western Asia Division ,WORLD HEALTH ORGANISATION (WHO) ,204973-102 ,"1,000,000.00",
DFID,DFID,08/12/2015,Aid Programme - Core contributions ,Research and Evidence Division ,BILL & MELINDA GATES FOUNDATION (USD) ,204420-101 ,"465,232.87",
DFID,DFID,21/12/2015,Aid Programme - Joint programme contribution ,Policy Division ,BILL & MELINDA GATES FOUNDATION (USD) ,203324-102 ,"1,048,338.25",
DFID,DFID,15/12/2015,Aid Programme - Accountable Grant Payments ,Policy Division ,BILL & MELINDA GATES FOUNDATION (USD) ,202918-104 ,"992,550.00",
DFID,DFID,07/12/2015,Aid Programme - Core contributions ,Research and Evidence Division ,BILL & MELINDA GATES FOUNDATION (USD) ,202044-101 ,"1,114,880.00",
DFID,DFID,17/12/2015,Aid Programme - Accountable Grant Payments ,Economic Development Division ,Consumer Unity & Trust Society ,203299-101 ,"132,064.00",
DFID,DFID,08/12/2015,Hotels - Accommodation only ,East and Central Africa ,Southern Sun Hotels(T) Ltd (USD) ,204334-102 ,565.32,
DFID,DFID,04/12/2015,Aid Programme - Accountable Grant Payments ,East and Central Africa ,Southern Africa Trust ,202501-104 ,"357,874.59",
DFID,DFID,16/12/2015,Aid Programme - Accountable Grant Payments ,Economic Development Division , WORLD RESOURCES INSTITUTE ,204949-101 ,"782,956.00",
DFID,DFID,10/12/2015,Aid Programme - Accountable Grant Payments ,Middle East  Humanitarian & Conflict Division ,Carnegie Endowment for International Peace ,203436-101 ,"142,149.00",
DFID,DFID,03/12/2015,Aid Programme - Accountable Grant Payments ,Policy Division ,Carnegie Endowment for International Peace ,203673-101 ,"138,422.00",
DFID,DFID,17/12/2015,Project delivery costs – supplier services ,East and Central Africa ,BMB  MOTT  MACDONALD ,202511-102 ,"139,025.27",
DFID,DFID,17/12/2015,Project delivery costs – supplier services ,East and Central Africa ,BMB  MOTT  MACDONALD ,202511-102 ,"944,794.77",
DFID,DFID,09/12/2015,Aid Programme - Voluntary contributions ,Policy Division ,IUCN - THE WORLD CONSERVATION UNION ,203034-112 ,"960,500.00",
DFID,DFID,07/12/2015,Aid Programme - Accountable Grant Payments ,Policy Division ,ENVIRONMENTAL INVESTIGATION AGENCY (EIA) ,201724-115 ,"48,162.00",
DFID,DFID,16/12/2015,Aid Programme - Accountable Grant Payments ,Asia  Caribbean and Overseas Territories ,Lucy Faithful Foundation Trading Ltd ,203885-101 ,"13,870.08",
DFID,DFID,08/12/2015,Aid Programme - Core contributions ,Policy Division ,UNCCD (United Nations Convention to Combat Desertification) ,113735-103 ,"282,093.99",
DFID,DFID,09/12/2015,Aid Programme - Core contributions ,Research and Evidence Division ,INTERNATIONAL DEVELOPMENT RESEARCH CENTRE ,204321-101 ,"1,017,811.00",
DFID,DFID,16/12/2015,Storage & Distribution costs ,West and Southern Africa ,Conote Services Ltd ,101622-105 ,847.58,
DFID,DFID,16/12/2015,Storage & Distribution costs ,West and Southern Africa ,Conote Services Ltd ,101622-105 ,648.15,
DFID,DFID,02/12/2015,Aid Programme - Trust Funds contributions ,Asia  Caribbean and Overseas Territories ,UNOPS ,201239-103 ,"11,500,000.00",
DFID,DFID,02/12/2015,Aid Programme - Trust Funds contributions ,Asia  Caribbean and Overseas Territories ,UNOPS ,201239-104 ,"8,000,000.00",
DFID,DFID,21/12/2015,Aid Programme - Voluntary contributions ,Asia  Caribbean and Overseas Territories ,UNOPS ,204661-101 ,"5,000,000.00",
DFID,DFID,15/12/2015,Aid Programme - Voluntary contributions ,Middle East  Humanitarian & Conflict Division ,UNOPS ,204016-106 ,"1,065,000.00",
DFID,DFID,10/12/2015,Auditors Remuneration & Expenses - Cash ,East and Central Africa ,Crowe Clark Whitehill ,202596-105 ,"3,492.00",
DFID,DFID,10/12/2015,Auditors Remuneration & Expenses - Cash ,East and Central Africa ,Crowe Clark Whitehill ,202900-102 ,"1,812.00",
DFID,DFID,10/12/2015,Aid Programme - Accountable Grant Payments ,West and Southern Africa ,Banja La Mtsogolo ,201095-101 ,"170,400.00",
DFID,DFID,23/12/2015,Aid Programme - Accountable Grant Payments ,Economic Development Division ,ECDPM GBP ,204500-104 ,"31,986.41",
DFID,DFID,07/12/2015,Fund monies to be managed and dispersed by the supplier ,Research and Evidence Division ,CARDNO EMERGING MARKETS (UK) LTD ,203048-101 ,"100,902.00",
DFID,DFID,21/12/2015,Fund monies to be managed and dispersed by the supplier ,Research and Evidence Division ,CARDNO EMERGING MARKETS (UK) LTD ,203048-101 ,"162,955.87",
DFID,DFID,22/12/2015,Project delivery costs – supplier services ,Economic Development Division ,CARDNO EMERGING MARKETS (UK) LTD ,203535-102 ,"94,838.87",
DFID,DFID,16/12/2015,Project delivery costs – supplier services ,Asia  Caribbean and Overseas Territories ,CARDNO EMERGING MARKETS (UK) LTD ,203535-105 ,"13,775.67",
DFID,DFID,10/12/2015,Project delivery costs – supplier services ,East and Central Africa ,CARDNO EMERGING MARKETS (UK) LTD ,202551-102 ,"367,434.02",
DFID,DFID,14/12/2015,Aid Programme - Core contributions ,East and Central Africa , USAID ,204788-106 ,"900,000.00",
DFID,DFID,17/12/2015,Project delivery costs – supplier services ,Asia  Caribbean and Overseas Territories ,DELOITTE TOUCHE TOHAMATSU INDIA PRIVATE LTD (DTTIPL) ,202736-102 ,"86,849.00",
DFID,DFID,17/12/2015,Project delivery costs – supplier services ,Asia  Caribbean and Overseas Territories ,DELOITTE TOUCHE TOHAMATSU INDIA PRIVATE LTD (DTTIPL) ,202736-102 ,"85,009.00",
DFID,DFID,17/12/2015,Project delivery costs – supplier services ,Asia  Caribbean and Overseas Territories ,DELOITTE TOUCHE TOHAMATSU INDIA PRIVATE LTD (DTTIPL) ,202736-102 ,"48,457.00",
DFID,DFID,01/12/2015,Aid Programme - Accountable Grant Payments ,Research and Evidence Division ,GLOBAL DEVELOPMENT NETWORK (3ie) ,200135-104 ,"136,935.00",
DFID,DFID,04/12/2015,Aid Programme - Accountable Grant Payments ,Research and Evidence Division ,GLOBAL DEVELOPMENT NETWORK (3ie) ,203705-109 ,"79,821.00",
DFID,DFID,01/12/2015,Project delivery costs – supplier services ,West and Southern Africa ,ADAM SMITH INTERNATIONAL ,201139-101 ,"158,997.22",
DFID,DFID,16/12/2015,Project delivery costs – supplier services ,West and Southern Africa ,ADAM SMITH INTERNATIONAL ,201139-101 ,"138,154.32",
DFID,DFID,03/12/2015,Project delivery costs – supplier services ,Middle East  Humanitarian & Conflict Division ,ADAM SMITH INTERNATIONAL ,202241-103 ,"3,976.11",
DFID,DFID,03/12/2015,Project delivery costs – supplier services ,Middle East  Humanitarian & Conflict Division ,ADAM SMITH INTERNATIONAL ,202241-103 ,"19,579.00",
DFID,DFID,03/12/2015,Project delivery costs – supplier services ,Middle East  Humanitarian & Conflict Division ,ADAM SMITH INTERNATIONAL ,202241-103 ,"23,438.51",
DFID,DFID,21/12/2015,Aid Programme - Accountable Grant Payments ,East and Central Africa ,NATIONAL DEMOCRATIC INSTITUTE (NDI) ,204437-102 ,"171,858.00",
DFID,DFID,04/12/2015,Aid Programme - Core contributions ,Research and Evidence Division ,THE WORLD VEGETABLE CENTER (AVRDC) ,202748-101 ,"760,000.00",
DFID,DFID,21/12/2015,Project delivery costs – supplier services ,West and Southern Africa ,EFFECTIVE DEVELOPMENT GROUP (EDG) ,113961-105 ,"12,000.00",
DFID,DFID,21/12/2015,Project delivery costs – supplier services ,West and Southern Africa ,EFFECTIVE DEVELOPMENT GROUP (EDG) ,113961-105 ,"154,501.00",
DFID,DFID,21/12/2015,Project delivery costs – supplier services ,West and Southern Africa ,EFFECTIVE DEVELOPMENT GROUP (EDG) ,113961-105 ,"2,557.58",
DFID,DFID,17/12/2015,Project delivery costs – supplier services ,Economic Development Division ,LION'S HEAD GLOBAL PARTNERS ,203809-107 ,"21,180.00",
DFID,DFID,30/12/2015,Project delivery costs – supplier services ,East and Central Africa ,LION'S HEAD GLOBAL PARTNERS ,205123-102 ,"35,856.00",
DFID,DFID,04/12/2015,Aid Programme - Partnership Programme Arrangements ,Policy Division ,AVOCATS SANS FRONTIERES ,202739-101 ,"362,612.75",
DFID,DFID,29/12/2015,Aid Programme - Voluntary contributions ,Middle East  Humanitarian & Conflict Division ,EU-AFRICA INFRASTRUCTURE FUND ,204783-101 ,"4,000,000.00",
DFID,DFID,08/12/2015,Aid Programme - Accountable Grant Payments ,Asia  Caribbean and Overseas Territories ,Supplier Name withheld ,203400-105 ,"43,067.51",
DFID,DFID,01/12/2015,Hotels - Accommodation only ,Western Asia Division ,PEARL CONTINENTAL HOTEL LAHORE ,101624-101 ,613.08,
DFID,DFID,14/12/2015,Project delivery costs – supplier services ,Policy Division ,VIVID ECONOMICS LIMITED ,202948-128 ,"87,035.10",
DFID,DFID,14/12/2015,Hotels - Accommodation only ,West and Southern Africa ,Supplier Name withheld ,101622-104 ,817.27,
DFID,DFID,14/12/2015,Hotels - Accommodation only ,West and Southern Africa ,Supplier Name withheld ,101622-105 ,583.77,
DFID,DFID,07/12/2015,Aid Programme - Voluntary contributions ,Economic Development Division ,UN- HABITAT ,204250-107 ,"100,000.00",
DFID,DFID,15/12/2015,Project delivery costs – supplier services ,Regional Directorate ,McKinsey & Co  Inc UK ,204967-102 ,"145,000.00",
DFID,DFID,15/12/2015,Project delivery costs – supplier services ,Regional Directorate ,McKinsey & Co  Inc UK ,204967-102 ,"290,000.00",
DFID,DFID,15/12/2015,Project delivery costs – supplier services ,Western Asia Division ,McKinsey & Co  Inc UK ,202697-109 ,"124,650.00",
DFID,DFID,11/12/2015,Aid Programme - Refugee Relief Payments ,East and Central Africa ,Supplier Name withheld ,205064-102 ,"1,150,000.00",
DFID,DFID,03/12/2015,Aid Programme - Accountable Grant Payments ,Middle East  Humanitarian & Conflict Division ,Supplier Name withheld ,203847-104 ,"1,270,400.00",
DFID,DFID,09/12/2015,Aid Programme - Voluntary contributions ,Regional Directorate ,The World Bank (Tanzania) ,204967-104 ,"873,366.00",
DFID,DFID,11/12/2015,Hotels - Accommodation only ,Business Solutions Division Level ,Elgon Terrace Hotel Limited ,203329-104 ,558.22,
DFID,DFID,03/12/2015,Aid Programme - Accountable Grant Payments ,Policy Division ,Global Canopy Programme ,201724-114 ,"42,558.02",
DFID,DFID,21/12/2015,Aid Programme - Accountable Grant Payments ,Policy Division ,Global Canopy Programme ,201724-114 ,"61,569.59",
DFID,DFID,23/12/2015,Aid Programme - Joint programme contribution ,West and Southern Africa ,Ministry of Foreign Affairs of the Republic of Finland ,202536-102 ,"5,400,000.00",
DFID,DFID,11/12/2015,Project delivery costs – supplier services ,East and Central Africa ,Futures Group Europe ,202547-102 ,"280,318.00",
DFID,DFID,21/12/2015,Project delivery costs – supplier services ,East and Central Africa ,Futures Group Europe ,202547-102 ,"374,869.30",
DFID,DFID,10/12/2015,Project delivery costs – supplier services ,West and Southern Africa ,Futures Group Europe ,202819-102 ,"369,226.16",
DFID,DFID,21/12/2015,Project delivery costs – supplier services ,Asia  Caribbean and Overseas Territories ,Futures Group Europe ,203455-101 ,"70,000.00",
DFID,DFID,22/12/2015,Project delivery costs – supplier services ,Asia  Caribbean and Overseas Territories ,Futures Group Europe ,203455-101 ,"194,143.68",
DFID,DFID,21/12/2015,Project delivery costs – supplier services ,Asia  Caribbean and Overseas Territories ,Futures Group Europe ,203455-101 ,"70,000.00",
DFID,DFID,21/12/2015,Project delivery costs – supplier services ,Asia  Caribbean and Overseas Territories ,Futures Group Europe ,203455-101 ,"65,000.00",
DFID,DFID,21/12/2015,Project delivery costs – supplier services ,Asia  Caribbean and Overseas Territories ,Futures Group Europe ,203455-101 ,"56,631.00",
DFID,DFID,16/12/2015,Project delivery costs – supplier services ,West and Southern Africa ,Futures Group Europe ,202992-101 ,"1,163,689.00",
DFID,DFID,15/12/2015,Aid Programme - Trust Funds contributions ,West and Southern Africa ,International Monetary Fund (GBP) ,104187-101 ,"150,000.00",
DFID,DFID,03/12/2015,Aid Programme - Trust Funds contributions ,West and Southern Africa ,Basel Institute On Governance ,200469-117 ,"61,464.48",
DFID,DFID,30/12/2015,Aid Programme - Joint programme contribution ,Asia  Caribbean and Overseas Territories ,The World Bank (EFO) ,202215-101 ,"46,088.00",
DFID,DFID,16/12/2015,Project delivery costs – supplier services ,West and Southern Africa ,The World Bank (EFO) ,203824-101 ,"85,000.00",
DFID,DFID,03/12/2015,Project delivery costs – supplier services ,East and Central Africa ,Montrose International ,203308-108 ,"301,296.00",
DFID,DFID,22/12/2015,Project delivery costs – supplier services ,East and Central Africa ,Montrose International ,202513-105 ,"179,563.20",
DFID,DFID,23/12/2015,Auditors Assurance Service ,West and Southern Africa ,Baker Tilly Nigeria ,104229-101 ,"28,157.02",
DFID,DFID,29/12/2015,Office Equipment - Purchases ,Policy Division ,Senator International  ,100274-111 ,766.80,
DFID,DFID,03/12/2015,Aid Programme - Accountable Grant Payments ,East and Central Africa ,Ifakara Health Institute ,204000-101 ,"500,000.00",
DFID,DFID,31/12/2015,Aid Programme - Accountable Grant Payments ,Policy Division ,IIED  ,202834-101 ,"938,845.00",
DFID,DFID,10/12/2015,Aid Programme - Accountable Grant Payments ,Asia  Caribbean and Overseas Territories ,Bal Raksha Bharat -Save the Children ,200754-108 ,"36,681.69",
DFID,DFID,18/12/2015,Aid Programme - Accountable Grant Payments ,Asia  Caribbean and Overseas Territories ,Bal Raksha Bharat -Save the Children ,200754-108 ,"38,995.28",
DFID,DFID,21/12/2015,Aid Programme - Accountable Grant Payments ,Asia  Caribbean and Overseas Territories ,Bal Raksha Bharat -Save the Children ,200754-108 ,"22,431.92",
DFID,DFID,02/12/2015,Aid Programme - Partnership Programme Arrangements ,Policy Division ,Development Initiatives Poverty Research Ltd ,202828-101 ,"97,334.00",
DFID,DFID,08/12/2015,Air fares ,East and Central Africa ,Bon Voyage Travel Centre Ltd(USD) ,101634-101 ,729.44,
DFID,DFID,17/12/2015,Project delivery costs – supplier services ,East and Central Africa ,Bon Voyage Travel Centre Ltd(USD) ,113401-105 ,585.50,
DFID,DFID,08/12/2015,Air fares ,East and Central Africa ,Bon Voyage Travel Centre Ltd(USD) ,203596-101 ,649.87,
DFID,DFID,08/12/2015,Air fares ,East and Central Africa ,Bon Voyage Travel Centre Ltd(Tsh) ,101634-101 ,614.15,
DFID,DFID,08/12/2015,Air fares ,East and Central Africa ,Bon Voyage Travel Centre Ltd(Tsh) ,101634-101 ,742.42,
DFID,DFID,07/12/2015,Aid Programme - Core contributions ,Research and Evidence Division ,UNU-Wider ,204152-101 ,"800,000.00",
DFID,DFID,02/12/2015,Research and development costs - supplier services ,Research and Evidence Division ,Tim Leyland ,204823-101 ,"2,765.48",
DFID,DFID,03/12/2015,Aid Programme - Core contributions ,Research and Evidence Division ,AERAS Global TB Vaccine Foundation ,204136-101 ,"800,000.00",
DFID,DFID,21/12/2015,Project delivery costs – supplier services ,Asia  Caribbean and Overseas Territories ,ICLEI South Asia ,107891-102 ,"20,391.91",
DFID,DFID,07/12/2015,Project delivery costs – supplier services ,East and Central Africa ,Anthony Hughes (US $) ,204362-101 ,"3,375.25",
DFID,DFID,04/12/2015,Project delivery costs – supplier services ,Asia  Caribbean and Overseas Territories ,Landell Mills Ltd ,202787-102 ,"39,000.00",
DFID,DFID,03/12/2015,Project delivery costs – supplier services ,Asia  Caribbean and Overseas Territories ,Landell Mills Ltd ,202787-102 ,"126,553.35",
DFID,DFID,15/12/2015,Project delivery costs – supplier services ,Asia  Caribbean and Overseas Territories ,Landell Mills Ltd ,202787-102 ,"86,732.73",
DFID,DFID,15/12/2015,Aid Programme - Challenge Fund payments ,Western Asia Division ,Supplier Name withheld ,200898-116 ,"203,234.00",
DFID,DFID,15/12/2015,Aid Programme - Challenge Fund payments ,Western Asia Division ,Supplier Name withheld ,200898-116 ,"105,812.33",
DFID,DFID,30/12/2015,Aid Programme - Core contributions ,Economic Development Division ,SG HAMBROS BANK & TRUST LTD (USD) ,203232-122 ,"2,500,000.00",
DFID,DFID,10/12/2015,Project delivery costs – supplier services ,Group Operations ,Cabinet Office RM Shared Services ,204999-101 ,"69,686.40",Annual costs for the administration of DFID staff pensions for the period   1 April 15 to 31 March 16 
DFID,DFID,02/12/2015,Auditors Assurance Service ,East and Central Africa ,Mazars Certified Public Accountants (K) ,202549-107 ,"2,281.65",
DFID,DFID,18/12/2015,Project delivery costs – supplier services ,Human Resources ,BIRCHES GROUP LLC ,100269-135 ,"2,575.87",
DFID,DFID,31/12/2015,Project delivery costs – supplier services ,Human Resources ,BIRCHES GROUP LLC ,100269-135 ,"2,543.92",
DFID,DFID,18/12/2015,Aid Programme - Accountable Grant Payments ,Policy Division ,WORLD RESOURCES INSTITUTE ,201724-147 ,"552,889.00",
DFID,DFID,23/12/2015,Aid Programme - Accountable Grant Payments ,East and Central Africa ,Supplier Name withheld ,204019-107 ,"14,620.30",
DFID,DFID,31/12/2015,Aid Programme - Humanitarian Material Relief Assistance and Services ,East and Central Africa ,Supplier Name withheld ,203072-102 ,"12,629.85",
DFID,DFID,22/12/2015,Aid Programme - Accountable Grant Payments ,Western Asia Division ,Supplier Name withheld ,204973-103 ,"1,250,000.00",
DFID,DFID,23/12/2015,Project delivery costs – supplier services ,Asia  Caribbean and Overseas Territories ,SIDBI MUMBAI ,114293-103 ,"201,673.28",
DFID,DFID,23/12/2015,Project delivery costs – supplier services ,Asia  Caribbean and Overseas Territories ,SIDBI MUMBAI ,114293-103 ,"252,091.60",
DFID,DFID,22/12/2015,Project delivery costs – supplier services ,Asia  Caribbean and Overseas Territories ,SIDBI MUMBAI ,114293-103 ,"105,610.77",
DFID,DFID,01/12/2015,Project delivery costs – supplier services ,Asia  Caribbean and Overseas Territories ,SIDBI MUMBAI ,114293-103 ,"76,438.08",
DFID,DFID,01/12/2015,Project delivery costs – supplier services ,Asia  Caribbean and Overseas Territories ,SIDBI MUMBAI ,114293-103 ,"100,050.33",
DFID,DFID,01/12/2015,Project delivery costs – supplier services ,Asia  Caribbean and Overseas Territories ,SIDBI MUMBAI ,114293-103 ,"250,125.81",
DFID,DFID,01/12/2015,Project delivery costs – supplier services ,Asia  Caribbean and Overseas Territories ,SIDBI MUMBAI ,114293-103 ,"34,597.62",
DFID,DFID,01/12/2015,Project delivery costs – supplier services ,Asia  Caribbean and Overseas Territories ,SIDBI MUMBAI ,114293-103 ,"198,903.84",
DFID,DFID,01/12/2015,Project delivery costs – supplier services ,Asia  Caribbean and Overseas Territories ,SIDBI MUMBAI ,114293-103 ,"12,997.19",
DFID,DFID,21/12/2015,Project delivery costs – supplier services ,Asia  Caribbean and Overseas Territories ,SIDBI MUMBAI ,114293-103 ,"51,533.71",
DFID,DFID,22/12/2015,Project delivery costs – supplier services ,Asia  Caribbean and Overseas Territories ,SIDBI MUMBAI ,114293-103 ,"53,867.48",
DFID,DFID,22/12/2015,Project delivery costs – supplier services ,Asia  Caribbean and Overseas Territories ,SIDBI MUMBAI ,114293-103 ,"85,612.73",
DFID,DFID,18/12/2015,Project delivery costs – supplier services ,Asia  Caribbean and Overseas Territories ,SIDBI MUMBAI ,114293-103 ,"41,458.79",
DFID,DFID,18/12/2015,Project delivery costs – supplier services ,Asia  Caribbean and Overseas Territories ,SIDBI MUMBAI ,114293-103 ,"98,911.38",
DFID,DFID,17/12/2015,Project delivery costs – supplier services ,Asia  Caribbean and Overseas Territories ,SIDBI MUMBAI ,114293-103 ,"31,890.93",
DFID,DFID,09/12/2015,Research and development costs - supplier services ,Research and Evidence Division ,Department of Management Studies Indian Institute of Technology Madras ,204806-102 ,"11,826.00",
DFID,DFID,30/12/2015,Aid Programme - Accountable Grant Payments ,East and Central Africa ,TRADEMARK EAST AFRICA ,204362-102 ,"1,000,000.00",
DFID,DFID,30/12/2015,Aid Programme - Accountable Grant Payments ,East and Central Africa ,TRADEMARK EAST AFRICA ,204362-103 ,"3,500,000.00",
DFID,DFID,30/12/2015,Research and development costs - supplier services ,Research and Evidence Division ,Humanitarian Outcomes Limited ,203704-105 ,"132,556.00",
DFID,DFID,23/12/2015,Aid Programme - Accountable Grant Payments ,Research and Evidence Division ,MASSACHUSETTS INSTITUTE OF TECHNOLOGY ,204291-101 ,"236,478.40",
DFID,DFID,15/12/2015,Aid Programme - Accountable Grant Payments ,Policy Division ,Clinton Health Access Initiative ,204457-101 ,"421,471.00",
DFID,DFID,11/12/2015,Aid Programme - Accountable Grant Payments ,Policy Division ,Clinton Health Access Initiative ,204457-101 ,"283,343.00",
DFID,DFID,09/12/2015,Aid Programme - Accountable Grant Payments ,West and Southern Africa ,Action Against Hunger - USA ,202909-106 ,"535,000.06",
DFID,DFID,14/12/2015,Aid Programme - Accountable Grant Payments ,Asia  Caribbean and Overseas Territories ,NATIONAL INSTITUTE FOR HEALTH  AND CLINICAL EXCELLENCE ,203224-107 ,"43,325.00",
DFID,DFID,14/12/2015,Aid Programme - Accountable Grant Payments ,Asia  Caribbean and Overseas Territories ,NATIONAL INSTITUTE FOR HEALTH  AND CLINICAL EXCELLENCE ,203224-107 ,"42,891.00",
DFID,DFID,23/12/2015,Aid Programme - Accountable Grant Payments ,Asia  Caribbean and Overseas Territories ,The Asia Foundation (GBP) ,204623-101 ,"186,959.00",
DFID,DFID,01/12/2015,Aid Programme - Accountable Grant Payments ,Asia  Caribbean and Overseas Territories ,The Asia Foundation (GBP) ,204623-101 ,"89,809.00",
DFID,DFID,16/12/2015,Project delivery costs – supplier services ,Asia  Caribbean and Overseas Territories ,Pricewaterhousecoopers Pvt. Ltd. ,203484-101 ,"12,576.41",
DFID,DFID,16/12/2015,Project delivery costs – supplier services ,Asia  Caribbean and Overseas Territories ,Pricewaterhousecoopers Pvt. Ltd. ,203484-101 ,"6,986.90",
DFID,DFID,16/12/2015,Hotels - Accommodation only ,West and Southern Africa ,Supplier Name withheld ,101622-105 ,"2,219.38",
DFID,DFID,21/12/2015,Aid Programme - Accountable Grant Payments ,Asia  Caribbean and Overseas Territories ,OBSERVER RESEARCH FOUNDATION ,202765-105 ,"7,367.69",
DFID,DFID,21/12/2015,Aid Programme - Accountable Grant Payments ,Asia  Caribbean and Overseas Territories ,OBSERVER RESEARCH FOUNDATION ,202765-110 ,"30,000.00",
DFID,DFID,21/12/2015,Aid Programme - Accountable Grant Payments ,Asia  Caribbean and Overseas Territories ,OBSERVER RESEARCH FOUNDATION ,202765-110 ,"10,000.00",
DFID,DFID,21/12/2015,Aid Programme - Accountable Grant Payments ,Asia  Caribbean and Overseas Territories ,OBSERVER RESEARCH FOUNDATION ,202765-110 ,"10,000.00",
DFID,DFID,04/12/2015,Oil - Other Utilities ,West and Southern Africa ,NP (SL) Ltd ,100214-101 ,"1,957.23",
DFID,DFID,04/12/2015,Oil - Other Utilities ,West and Southern Africa ,NP (SL) Ltd ,101629-101 ,"2,935.84",
DFID,DFID,22/12/2015,Aid Programme - Accountable Grant Payments ,West and Southern Africa ,Paralegal Advisory Service Institute ,202559-102 ,"93,164.72",
DFID,DFID,15/12/2015,Aid Programme - Accountable Grant Payments ,West and Southern Africa ,Oxfam Novib ,204883-104 ,"200,000.00",
DFID,DFID,15/12/2015,Aid Programme - Accountable Grant Payments ,Regional Directorate ,Supplier Name withheld ,204838-114 ,"159,667.00",
DFID,DFID,07/12/2015,Project delivery costs – supplier services ,East and Central Africa ,Supplier Name withheld ,204439-103 ,"2,996.00",
DFID,DFID,04/12/2015,Aid Programme - Partnership Programme Arrangements ,Policy Division ,Supplier Name withheld ,202688-101 ,"635,785.25",
DFID,DFID,17/12/2015,Aid Programme - Accountable Grant Payments ,West and Southern Africa ,Supplier Name withheld ,202909-112 ,"467,926.00",
DFID,DFID,21/12/2015,Aid Programme - Accountable Grant Payments ,Asia  Caribbean and Overseas Territories ,ACCESS HEALTH INTERNATIONAL ,203224-102 ,"121,801.00",
DFID,DFID,02/12/2015,Research and development costs - supplier services ,Research and Evidence Division ,University of Edinburgh - Research Into Results Ltd ,204326-101 ,"281,617.86",
DFID,DFID,02/12/2015,Air fares ,Western Asia Division ,Gerry's Travel Agency Private Limited ,101624-101 ,826.10,
DFID,DFID,14/12/2015,Aid Programme - Core contributions ,West and Southern Africa ,THE WORLD BANK ,203627-109 ,"68,000.00",
DFID,DFID,10/12/2015,Project delivery costs – supplier services ,Policy Division ,iMEDIA ASSOCIATES LTD ,202629-102 ,"27,940.32",
DFID,DFID,21/12/2015,Aid Programme - Accountable Grant Payments ,East and Central Africa ,AgDevCo ,204270-108 ,"78,000.00",
DFID,DFID,21/12/2015,Aid Programme - Accountable Grant Payments ,West and Southern Africa ,AgDevCo ,204270-109 ,"62,500.00",
DFID,DFID,21/12/2015,Aid Programme - Accountable Grant Payments ,East and Central Africa ,AgDevCo ,204270-110 ,"114,062.50",
DFID,DFID,21/12/2015,Aid Programme - Accountable Grant Payments ,West and Southern Africa ,AgDevCo ,204270-117 ,"62,500.00",
DFID,DFID,21/12/2015,Aid Programme - Accountable Grant Payments ,East and Central Africa ,AgDevCo ,204270-118 ,"78,000.00",
DFID,DFID,21/12/2015,Aid Programme - Accountable Grant Payments ,East and Central Africa ,AgDevCo ,204270-119 ,"114,062.50",
DFID,DFID,21/12/2015,Aid Programme - Accountable Grant Payments ,West and Southern Africa ,AgDevCo ,204270-122 ,"3,079.50",
DFID,DFID,21/12/2015,Aid Programme - Accountable Grant Payments ,West and Southern Africa ,AgDevCo ,204270-123 ,"3,079.50",
DFID,DFID,10/12/2015,Aid Programme - Accountable Grant Payments ,Policy Division ,Triple Line Crown Agents JV ,202035-102 ,"97,172.71",
DFID,DFID,14/12/2015,Aid Programme - Accountable Grant Payments ,Policy Division ,Triple Line Crown Agents JV ,202035-101 ,"308,953.59",
DFID,DFID,10/12/2015,Aid Programme - Accountable Grant Payments ,Policy Division ,Triple Line Crown Agents JV ,202035-101 ,"123,445.05",
DFID,DFID,10/12/2015,Aid Programme - Accountable Grant Payments ,Policy Division ,Triple Line Crown Agents JV ,202035-101 ,"123,461.28",
DFID,DFID,10/12/2015,Aid Programme - Accountable Grant Payments ,Policy Division ,Triple Line Crown Agents JV ,202035-101 ,"13,116.47",
DFID,DFID,17/12/2015,Project delivery costs – supplier services ,East and Central Africa ,Triple Line Crown Agents JV ,203220-102 ,"29,600.60",
DFID,DFID,17/12/2015,Project delivery costs – supplier services ,East and Central Africa ,Triple Line Crown Agents JV ,203220-102 ,"63,493.00",
DFID,DFID,09/12/2015,Aid Programme - Accountable Grant Payments ,Asia  Caribbean and Overseas Territories ,Institute for Financial Management and Research. ,114506-103 ,"33,109.16",
DFID,DFID,03/12/2015,Project delivery costs – supplier services ,Asia  Caribbean and Overseas Territories ,IMC Worldwide Ltd. ,202927-110 ,"185,760.00",
DFID,DFID,11/12/2015,Project delivery costs – supplier services ,West and Southern Africa ,DAI Europe ,203000-102 ,"73,874.91",
DFID,DFID,22/12/2015,Project delivery costs – supplier services ,West and Southern Africa ,DAI Europe ,203922-101 ,"98,664.53",
DFID,DFID,18/12/2015,Project delivery costs – supplier services ,East and Central Africa ,DAI Europe ,203986-102 ,"111,130.74",
DFID,DFID,01/12/2015,Project delivery costs – supplier services ,East and Central Africa ,DAI Europe ,203986-102 ,"170,560.61",
DFID,DFID,21/12/2015,Project delivery costs – supplier services ,Middle East  Humanitarian & Conflict Division ,DAI Europe ,204325-102 ,"91,395.00",
DFID,DFID,21/12/2015,Project delivery costs – supplier services ,Middle East  Humanitarian & Conflict Division ,DAI Europe ,204325-102 ,"18,247.84",
DFID,DFID,16/12/2015,Project delivery costs – supplier services ,West and Southern Africa ,DAI Europe ,202585-102 ,"456,792.00",
DFID,DFID,09/12/2015,Project delivery costs – supplier services ,East and Central Africa ,DAI Europe ,202596-105 ,"176,475.51",
DFID,DFID,09/12/2015,Project delivery costs – supplier services ,East and Central Africa ,DAI Europe ,202596-105 ,"312,500.00",
DFID,DFID,09/12/2015,Project delivery costs – supplier services ,East and Central Africa ,DAI Europe ,202596-105 ,"111,475.51",
DFID,DFID,09/12/2015,Project delivery costs – supplier services ,East and Central Africa ,DAI Europe ,202596-105 ,"55,946.75",
DFID,DFID,16/12/2015,Project delivery costs – supplier services ,East and Central Africa ,DAI Europe ,202580-102 ,"498,551.00",
DFID,DFID,04/12/2015,Project delivery costs – supplier services ,East and Central Africa ,DAI Europe ,202580-102 ,"125,000.00",
DFID,DFID,04/12/2015,Project delivery costs – supplier services ,East and Central Africa ,DAI Europe ,202580-102 ,"159,759.29",
DFID,DFID,17/12/2015,Project delivery costs – supplier services ,East and Central Africa ,DAI Europe ,202580-102 ,"370,000.00",
DFID,DFID,17/12/2015,Project delivery costs – supplier services ,East and Central Africa ,DAI Europe ,202580-102 ,"1,415,057.60",
DFID,DFID,09/12/2015,Fund monies to be managed and dispersed by the supplier ,Middle East  Humanitarian & Conflict Division ,DAI Europe ,201828-101 ,"305,049.17",
DFID,DFID,15/12/2015,Project delivery costs – supplier services ,West and Southern Africa ,DAI Europe ,201857-102 ,"29,718.46",
DFID,DFID,15/12/2015,Project delivery costs – supplier services ,West and Southern Africa ,DAI Europe ,201857-102 ,"52,766.06",
DFID,DFID,15/12/2015,Project delivery costs – supplier services ,West and Southern Africa ,DAI Europe ,201980-102 ,"120,239.43",
DFID,DFID,17/12/2015,Project delivery costs – supplier services ,West and Southern Africa ,DAI Europe ,201018-102 ,"299,353.67",
DFID,DFID,15/12/2015,Project delivery costs – supplier services ,West and Southern Africa ,KOSI Corporation ,203628-104 ,"26,560.17",
DFID,DFID,14/12/2015,Project delivery costs – supplier services ,Policy Division ,Sightsavers ,203146-103 ,"140,000.00",
DFID,DFID,08/12/2015,Project delivery costs – supplier services ,West and Southern Africa ,Abt Associates ,202342-102 ,"77,773.71",
DFID,DFID,21/12/2015,Project delivery costs – supplier services ,Asia  Caribbean and Overseas Territories ,MSI ,201518-103 ,"786,998.00",
DFID,DFID,10/12/2015,Project delivery costs – supplier services ,Policy Division ,PATH ,202674-101 ,"1,309.82",
DFID,DFID,10/12/2015,Project delivery costs – supplier services ,Policy Division ,PATH ,202674-101 ,"105,508.99",
DFID,DFID,10/12/2015,Project delivery costs – supplier services ,Policy Division ,PATH ,202674-101 ,"16,993.81",
DFID,DFID,10/12/2015,Project delivery costs – supplier services ,Policy Division ,PATH ,202674-101 ,"32,372.00",
DFID,DFID,10/12/2015,Project delivery costs – supplier services ,Policy Division ,PATH ,202674-101 ,"4,265.99",
DFID,DFID,10/12/2015,Project delivery costs – supplier services ,Policy Division ,PATH ,202674-101 ,"32,372.00",
DFID,DFID,10/12/2015,Project delivery costs – supplier services ,Policy Division ,PATH ,202674-101 ,"32,372.00",
DFID,DFID,10/12/2015,Project delivery costs – supplier services ,Policy Division ,PATH ,202674-101 ,"12,829.12",
DFID,DFID,08/12/2015,Project delivery costs – supplier services ,Policy Division ,PATH ,202674-101 ,"7,666.40",
DFID,DFID,08/12/2015,Project delivery costs – supplier services ,Policy Division ,PATH ,202674-101 ,"8,356.50",
DFID,DFID,08/12/2015,Project delivery costs – supplier services ,Policy Division ,PATH ,202674-101 ,"27,807.00",
DFID,DFID,17/12/2015,Project delivery costs – supplier services ,Policy Division ,PATH ,202676-101 ,"71,428.80",
DFID,DFID,17/12/2015,Project delivery costs – supplier services ,Policy Division ,PATH ,202676-101 ,"89,969.36",
DFID,DFID,08/12/2015,Project delivery costs – supplier services ,Policy Division ,PATH ,202676-102 ,"42,356.36",
DFID,DFID,10/12/2015,Project delivery costs – supplier services ,Asia  Caribbean and Overseas Territories ,PATH ,202975-101 ,"141,716.31",
DFID,DFID,17/12/2015,Project delivery costs – supplier services ,Policy Division ,WYG International ,203571-102 ,"64,603.74",
DFID,DFID,01/12/2015,Project delivery costs – supplier services ,Policy Division ,WYG International ,203571-102 ,"275,321.59",
DFID,DFID,29/12/2015,Research and development costs - supplier services ,Research and Evidence Division ,WYG International ,204563-101 ,"21,469.20",
DFID,DFID,21/12/2015,Project delivery costs – supplier services ,East and Central Africa ,LTS International Ltd. ,203152-102 ,"41,181.60",
DFID,DFID,21/12/2015,Project delivery costs – supplier services ,East and Central Africa ,LTS International Ltd. ,203152-102 ,"19,688.40",
DFID,DFID,10/12/2015,Aid Programme - Voluntary contributions ,Policy Division ,International Planned Parenthood Federation ,203925-101 ,"439,446.00",
DFID,DFID,22/12/2015,Vehicle Repairs & Maintenance ,West and Southern Africa ,De Bright Auto Link Nig Ltd ,101622-105 ,"1,849.31",
DFID,DFID,01/12/2015,Project delivery costs – supplier services ,Economic Development Division ,GDSI UK LIMITED ,203286-102 ,"207,212.00",
DFID,DFID,03/12/2015,Project delivery costs – supplier services ,Research and Evidence Division ,PricewaterhouseCoopers Pvt.Ltd ,203200-104 ,"37,722.00",
DFID,DFID,29/12/2015,Project delivery costs – supplier services ,Asia  Caribbean and Overseas Territories ,PricewaterhouseCoopers Pvt.Ltd ,203908-101 ,"187,497.00",
DFID,DFID,03/12/2015,Project delivery costs – supplier services ,Asia  Caribbean and Overseas Territories ,PricewaterhouseCoopers Pvt.Ltd ,203757-101 ,"137,211.00",
DFID,DFID,21/12/2015,Project delivery costs – supplier services ,Asia  Caribbean and Overseas Territories ,PricewaterhouseCoopers Pvt.Ltd ,204237-101 ,"25,591.00",
DFID,DFID,11/12/2015,Project delivery costs – supplier services ,Asia  Caribbean and Overseas Territories ,PricewaterhouseCoopers Pvt.Ltd ,107891-102 ,"147,705.00",
DFID,DFID,16/12/2015,Project delivery costs – supplier services ,Asia  Caribbean and Overseas Territories ,PricewaterhouseCoopers Pvt.Ltd ,107891-102 ,"147,705.00",
DFID,DFID,17/12/2015,Project delivery costs – supplier services ,Asia  Caribbean and Overseas Territories ,PricewaterhouseCoopers Pvt.Ltd ,107891-102 ,"136,255.00",
DFID,DFID,17/12/2015,Project delivery costs – supplier services ,Asia  Caribbean and Overseas Territories ,PricewaterhouseCoopers Pvt.Ltd ,202865-101 ,"116,369.00",
DFID,DFID,11/12/2015,Project delivery costs – supplier services ,Asia  Caribbean and Overseas Territories ,PricewaterhouseCoopers Pvt.Ltd ,200599-101 ,"22,900.00",
DFID,DFID,29/12/2015,Project delivery costs – supplier services ,Asia  Caribbean and Overseas Territories ,PricewaterhouseCoopers Pvt.Ltd ,200599-101 ,"68,700.00",
DFID,DFID,29/12/2015,Project delivery costs – supplier services ,Asia  Caribbean and Overseas Territories ,PricewaterhouseCoopers Pvt.Ltd ,200599-101 ,"45,800.00",
DFID,DFID,24/12/2015,Project delivery costs – supplier services ,Asia  Caribbean and Overseas Territories ,PricewaterhouseCoopers Pvt.Ltd ,200599-101 ,"45,800.00",
DFID,DFID,24/12/2015,Project delivery costs – supplier services ,Asia  Caribbean and Overseas Territories ,PricewaterhouseCoopers Pvt.Ltd ,200599-101 ,"68,700.00",
DFID,DFID,24/12/2015,Project delivery costs – supplier services ,Asia  Caribbean and Overseas Territories ,PricewaterhouseCoopers Pvt.Ltd ,200599-101 ,"57,250.00",
DFID,DFID,16/12/2015,Project delivery costs – supplier services ,Asia  Caribbean and Overseas Territories ,PricewaterhouseCoopers Pvt.Ltd ,200599-101 ,"45,800.00",
DFID,DFID,16/12/2015,Project delivery costs – supplier services ,Asia  Caribbean and Overseas Territories ,PricewaterhouseCoopers Pvt.Ltd ,200599-101 ,"91,600.00",
DFID,DFID,11/12/2015,Project delivery costs – supplier services ,Asia  Caribbean and Overseas Territories ,PricewaterhouseCoopers Pvt.Ltd ,200599-101 ,"91,600.00",
DFID,DFID,11/12/2015,Project delivery costs – supplier services ,Asia  Caribbean and Overseas Territories ,PricewaterhouseCoopers Pvt.Ltd ,200599-101 ,"68,700.00",
DFID,DFID,11/12/2015,Project delivery costs – supplier services ,Asia  Caribbean and Overseas Territories ,PricewaterhouseCoopers Pvt.Ltd ,200599-101 ,"45,800.00",
DFID,DFID,11/12/2015,Project delivery costs – supplier services ,Asia  Caribbean and Overseas Territories ,PricewaterhouseCoopers Pvt.Ltd ,200599-101 ,"45,800.00",
DFID,DFID,11/12/2015,Project delivery costs – supplier services ,Asia  Caribbean and Overseas Territories ,PricewaterhouseCoopers Pvt.Ltd ,200599-101 ,"22,900.00",
DFID,DFID,21/12/2015,Project delivery costs – supplier services ,Asia  Caribbean and Overseas Territories ,PricewaterhouseCoopers Pvt.Ltd ,200599-101 ,"22,900.00",
DFID,DFID,21/12/2015,Project delivery costs – supplier services ,Asia  Caribbean and Overseas Territories ,PricewaterhouseCoopers Pvt.Ltd ,200599-101 ,"45,800.00",
DFID,DFID,21/12/2015,Project delivery costs – supplier services ,Asia  Caribbean and Overseas Territories ,PricewaterhouseCoopers Pvt.Ltd ,200599-101 ,"45,800.00",
DFID,DFID,07/12/2015,Project delivery costs – supplier services ,Asia  Caribbean and Overseas Territories ,PricewaterhouseCoopers Pvt.Ltd ,200599-101 ,"89,367.00",
DFID,DFID,15/12/2015,Research and development costs - supplier services ,Research and Evidence Division ,Pratham Education Foundation ,204806-102 ,"18,045.00",
DFID,DFID,22/12/2015,Repairs  Maint  Alter - Property & Constrct. Services ,West and Southern Africa ,Lilleker Bros (Nigeria) Ltd ,101622-105 ,"1,975.00",
DFID,DFID,22/12/2015,Repairs  Maint  Alter - Property & Constrct. Services ,West and Southern Africa ,Lilleker Bros (Nigeria) Ltd ,101622-105 ,"1,938.55",
DFID,DFID,22/12/2015,Repairs  Maint  Alter - Property & Constrct. Services ,West and Southern Africa ,Lilleker Bros (Nigeria) Ltd ,101622-105 ,"1,243.88",
DFID,DFID,02/12/2015,Taxi costs ,Business Solutions Division Level ,d&m taxis ,200001-101 ,540.00,
DFID,DFID,31/12/2015,Aid Programme - Accountable Grant Payments ,Research and Evidence Division ,Forschungsinstitut zur Zukunft der Arbeit GmbH ,202568-101 ,"686,378.00",
DFID,DFID,04/12/2015,Aid Programme - Partnership Programme Arrangements ,Policy Division ,GENDER LINKS ,202576-101 ,"156,215.00",
DFID,DFID,15/12/2015,Project delivery costs – supplier services ,Research and Evidence Division ,PricewaterhouseCoopers Limited (KENYA3) ,204153-105 ,"12,033.84",
DFID,DFID,16/12/2015,Aid Programme - Accountable Grant Payments ,East and Central Africa ,Act! (Act.Change.Transform) ,203574-111 ,"225,901.00",
DFID,DFID,08/12/2015,Aid Programme - Accountable Grant Payments ,Economic Development Division ,Landesa ,204252-108 ,"149,656.00",
DFID,DFID,22/12/2015,Project delivery costs – supplier services ,West and Southern Africa ,Oyeleye Abiodun ,204438-101 ,"2,298.14",
DFID,DFID,23/12/2015,Aid Programme - Core contributions ,Middle East  Humanitarian & Conflict Division ,MPTF Office PBF ,201064-103 ,"4,000,000.00",
DFID,DFID,17/12/2015,Research and development costs - supplier services ,Research and Evidence Division ,University of Cape Town (UCT) ,201446-101 ,"249,377.53",
DFID,DFID,10/12/2015,Aid Programme - Accountable Grant Payments ,Policy Division ,Micronutrient Initiative ,204954-101 ,"283,343.00",
DFID,DFID,04/12/2015,Aid Programme - Partnership Programme Arrangements ,Policy Division ,The Global Alliance for Improved Nutrition ,202780-101 ,"787,449.00",
DFID,DFID,14/12/2015,Research and development costs - supplier services ,Research and Evidence Division ,JHU Bloomberg School of Public Health ,201888-101 ,"420,569.00",
DFID,DFID,14/12/2015,Research and development costs - supplier services ,Research and Evidence Division ,JHU Bloomberg School of Public Health ,201888-103 ,"30,865.00",
DFID,DFID,16/12/2015,Subscriptions ,Communications Division ,Durrants lTD ,100197-101 ,"1,555.87",
DFID,DFID,13/12/2015,Subscriptions ,Communications Division ,Durrants lTD ,100197-101 ,773.68,
DFID,DFID,13/12/2015,Subscriptions ,Communications Division ,Durrants lTD ,100197-101 ,655.05,
DFID,DFID,13/12/2015,Subscriptions ,Communications Division ,Durrants lTD ,100197-101 ,525.80,
DFID,DFID,21/12/2015,Project delivery costs – supplier services ,West and Southern Africa ,Charles Kendall & Partners ,202214-103 ,"8,830.16",
DFID,DFID,15/12/2015,Printer Consumables ,West and Southern Africa ,Formats Projects Services Limited ,101622-107 ,"2,994.72",
DFID,DFID,08/12/2015,Further Education costs ,Global Funds ,University College London (UCL) ,100098-101 ,"1,020.00",
DFID,DFID,15/12/2015,Aid Programme - Core contributions ,Economic Development Division ,Global Green Growth Institute ,204248-102 ,"3,000,000.00",
DFID,DFID,01/12/2015,Aid Programme - Accountable Grant Payments ,Policy Division ,Proforest Initiative ,201724-141 ,"223,706.00",
DFID,DFID,21/12/2015,Project delivery costs – supplier services ,Research and Evidence Division ,Tilburg University - TiSEM ,202818-101 ,"267,885.00",
DFID,DFID,21/12/2015,Project delivery costs – supplier services ,Research and Evidence Division ,Tilburg University - TiSEM ,202818-101 ,"62,778.00",
DFID,DFID,22/12/2015,Aid Programme - Voluntary contributions ,Policy Division ,Deutsche Gesellschaft fuer Internationale Zusammenarbeit (GIZ) GmbH ,202884-104 ,"4,744,314.00",
DFID,DFID,01/12/2015,Aid Programme - Core contributions ,Middle East  Humanitarian & Conflict Division ,Deutsche Gesellschaft fuer Internationale Zusammenarbeit (GIZ) GmbH ,205051-101 ,"900,000.00",
DFID,DFID,29/12/2015,Aid Programme - Joint programme contribution ,East and Central Africa ,Deutsche Gesellschaft fuer Internationale Zusammenarbeit (GIZ) GmbH ,203598-102 ,"1,415,335.64",
DFID,DFID,11/12/2015,Project delivery costs – supplier services ,Policy Division ,Bloomberg Finance L.P. ,204020-102 ,"1,233,682.80",
DFID,DFID,21/12/2015,Project delivery costs – supplier services ,Policy Division ,SNV Netherlands Development Organisation ,203572-101 ,"1,813,251.00",
DFID,DFID,14/12/2015,Vehicle Repairs & Maintenance ,West and Southern Africa ,Cerra Automotive (SL) Ltd ,101629-101 ,612.23,
DFID,DFID,29/12/2015,Project delivery costs – supplier services ,Asia  Caribbean and Overseas Territories ,Deloitte Touche Tohmatsu India Private Limited ,203224-101 ,"62,263.38",
DFID,DFID,30/12/2015,Project delivery costs – supplier services ,Asia  Caribbean and Overseas Territories ,Deloitte Touche Tohmatsu India Private Limited ,203224-101 ,"12,831.84",
DFID,DFID,21/12/2015,Project delivery costs – supplier services ,Asia  Caribbean and Overseas Territories ,Deloitte Touche Tohmatsu India Private Limited ,203224-101 ,"57,480.15",
DFID,DFID,21/12/2015,Project delivery costs – supplier services ,Asia  Caribbean and Overseas Territories ,Deloitte Touche Tohmatsu India Private Limited ,203224-101 ,"84,945.26",
DFID,DFID,03/12/2015,Project delivery costs – supplier services ,Asia  Caribbean and Overseas Territories ,Deloitte Touche Tohmatsu India Private Limited ,203224-101 ,"86,796.18",
DFID,DFID,03/12/2015,Project delivery costs – supplier services ,Asia  Caribbean and Overseas Territories ,Deloitte Touche Tohmatsu India Private Limited ,203224-101 ,"41,624.19",
DFID,DFID,03/12/2015,Project delivery costs – supplier services ,Asia  Caribbean and Overseas Territories ,Deloitte Touche Tohmatsu India Private Limited ,203224-101 ,"44,132.88",
DFID,DFID,01/12/2015,Project delivery costs – supplier services ,Asia  Caribbean and Overseas Territories ,Deloitte Touche Tohmatsu India Private Limited ,203224-101 ,"60,535.01",
DFID,DFID,01/12/2015,Project delivery costs – supplier services ,Asia  Caribbean and Overseas Territories ,Deloitte Touche Tohmatsu India Private Limited ,203224-101 ,"91,452.30",
DFID,DFID,16/12/2015,Project delivery costs – supplier services ,Asia  Caribbean and Overseas Territories ,Deloitte Touche Tohmatsu India Private Limited ,203224-101 ,"82,964.41",
DFID,DFID,30/12/2015,Aid Programme - Accountable Grant Payments ,Asia  Caribbean and Overseas Territories ,Jhpiego ,203224-104 ,"424,657.90",
DFID,DFID,15/12/2015,Aid Programme - Pooled/Basket funding ,Research and Evidence Division ,Biotechnology & Biological Sciences Research Council ,202749-101 ,"685,413.07",
DFID,DFID,15/12/2015,Aid Programme - Core contributions ,Research and Evidence Division ,Biotechnology & Biological Sciences Research Council ,202038-101 ,"352,655.46",
DFID,DFID,01/12/2015,Aid Programme - Accountable Grant Payments ,East and Central Africa ,Helen Keller International-Tanzania ,202480-101 ,"30,039.12",
DFID,DFID,30/12/2015,Aid Programme - Accountable Grant Payments ,East and Central Africa ,Helen Keller International-Tanzania ,202480-101 ,"52,872.23",
DFID,DFID,30/12/2015,Aid Programme - Accountable Grant Payments ,Asia  Caribbean and Overseas Territories ,The Energy and Resources Institute (TERI) ,200754-101 ,"149,850.52",
DFID,DFID,30/12/2015,Aid Programme - Accountable Grant Payments ,Asia  Caribbean and Overseas Territories ,The Energy and Resources Institute (TERI) ,200754-104 ,"133,723.45",
DFID,DFID,31/12/2015,Aid Programme - Accountable Grant Payments ,Research and Evidence Division ,International Union Against Tuberculosis and Lung Disease ,202506-103 ,"216,003.04",
DFID,DFID,01/12/2015,Hostile Environment Training ,Policy Division ,Pilgrims Group ,202419-101 ,706.80,
DFID,DFID,01/12/2015,Hostile Environment Training ,Policy Division ,Pilgrims Group ,202419-101 ,"1,030.34",
DFID,DFID,17/12/2015,Hostile Environment Training ,Western Asia Division ,Pilgrims Group ,101624-101 ,"1,255.34",
DFID,DFID,01/12/2015,Hostile Environment Training ,Western Asia Division ,Supplier Name withheld ,101601-110 ,"1,030.34",
DFID,DFID,09/12/2015,Hostile Environment Training ,Western Asia Division ,Supplier Name withheld ,101601-110 ,514.00,
DFID,DFID,17/12/2015,Hostile Environment Training ,Internal Audit ,Pilgrims Group ,100121-101 ,"1,255.34",
DFID,DFID,03/12/2015,Hostile Environment Training ,Middle East  Humanitarian & Conflict Division ,Pilgrims Group ,204084-101 ,"1,030.34",
DFID,DFID,29/12/2015,Aid Programme - Accountable Grant Payments ,Regional Directorate ,Supplier Name withheld ,204890-112 ,"9,923.72",
DFID,DFID,21/12/2015,Project delivery costs – supplier services ,Asia  Caribbean and Overseas Territories ,Jones Lang LaSalle Property Consultants India Private Limited ,202736-102 ,"10,317.16",
DFID,DFID,21/12/2015,Project delivery costs – supplier services ,Asia  Caribbean and Overseas Territories ,Jones Lang LaSalle Property Consultants India Private Limited ,202736-102 ,"10,317.16",
DFID,DFID,03/12/2015,Training Providers/Facilitation Services ,Group Operations ,St John Ambulance CTD ,203717-101 ,950.00,
DFID,DFID,31/12/2015,Aid Programme - Accountable Grant Payments ,Economic Development Division ,Rights and Resources Institute ,204252-102 ,"260,535.69",
DFID,DFID,22/12/2015,Project delivery costs – supplier services ,West and Southern Africa ,Olawale A. Okusi ,204438-101 ,"2,446.62",
DFID,DFID,21/12/2015,Aid Programme - Trust Funds contributions ,Asia  Caribbean and Overseas Territories ,International Labour Organization ,203857-101 ,"900,000.00",
DFID,DFID,07/12/2015,Aid Programme - Partnership Programme Arrangements ,Policy Division ,Islamic Relief Worldwide ,203105-101 ,"110,182.22",
DFID,DFID,31/12/2015,Project delivery costs – supplier services ,East and Central Africa ,Chr. Michelsen Institute ,202770-104 ,"35,987.10",
DFID,DFID,22/12/2015,Project delivery costs – supplier services ,East and Central Africa ,M&C Saatchi World Services  ,202913-101 ,"18,500.00",
DFID,DFID,22/12/2015,Project delivery costs – supplier services ,East and Central Africa ,M&C Saatchi World Services  ,202913-101 ,"37,626.25",
DFID,DFID,01/12/2015,Aid Programme - Core contributions ,West and Southern Africa ,US Agency for Int'l Dev ,204910-101 ,"500,000.00",
DFID,DFID,30/12/2015,Aid Programme - Trust Funds contributions ,Economic Development Division ,IFC ,202935-102 ,"4,158,332.97",
DFID,DFID,15/12/2015,Aid Programme - Accountable Grant Payments ,Policy Division ,AAUK ,202197-101 ,"70,802.00",
DFID,DFID,30/12/2015,Training Providers/Facilitation Services ,Business Solutions Division Level ,Emergn ,200001-101 ,"1,386.28",
DFID,DFID,21/12/2015,Aid Programme - Accountable Grant Payments ,Research and Evidence Division ,Guttmacher Institute ,204356-101 ,"788,877.00",
DFID,DFID,17/12/2015,Project delivery costs – supplier services ,Asia  Caribbean and Overseas Territories ,Meghraj Capital Advisors Private Limited ,203484-101 ,"17,034.81",
DFID,DFID,07/12/2015,Project delivery costs – supplier services ,Asia  Caribbean and Overseas Territories ,Meghraj Capital Advisors Private Limited ,107891-102 ,"7,009.86",
DFID,DFID,22/12/2015,Project delivery costs – supplier services ,Asia  Caribbean and Overseas Territories ,Meghraj Capital Advisors Private Limited ,107891-102 ,"18,029.49",
DFID,DFID,11/12/2015,Aid Programme - Other Financial Aid to Government ,Asia  Caribbean and Overseas Territories ,St Helena Department of Finance ,203140-101 ,"512,985.00",
DFID,DFID,11/12/2015,Aid Programme - Other Financial Aid to Government ,Asia  Caribbean and Overseas Territories ,St Helena Department of Finance ,203140-102 ,"373,502.00",
DFID,DFID,18/12/2015,Aid Programme - Other Financial Aid to Government ,Asia  Caribbean and Overseas Territories ,St Helena Department of Finance ,203140-102 ,"93,908.00",
DFID,DFID,14/12/2015,Project delivery costs – supplier services ,Western Asia Division ,Pearson PLC ,202488-104 ,"7,045.43",
DFID,DFID,14/12/2015,Project delivery costs – supplier services ,Western Asia Division ,Pearson PLC ,202697-109 ,"2,995.89",
DFID,DFID,30/12/2015,Postage Costs ,Group Operations ,Royal Mail Courier Services Ltd ,201157-101 ,750.00,
DFID,DFID,17/12/2015,Legal costs ,West and Southern Africa ,Marriott Davies Yapp LLP ,203161-105 ,"2,910.00",
DFID,DFID,17/12/2015,Legal costs ,West and Southern Africa ,Marriott Davies Yapp LLP ,203161-105 ,"3,268.73",
DFID,DFID,03/12/2015,Legal costs ,West and Southern Africa ,Marriott Davies Yapp LLP ,203161-105 ,"2,760.00",
DFID,DFID,02/12/2015,Aid Programme - Other Financial Aid to Government ,Asia  Caribbean and Overseas Territories ,Supplier Name withheld ,200952-103 ,"362,600.00",
DFID,DFID,02/12/2015,Aid Programme - Other Financial Aid to Government ,Asia  Caribbean and Overseas Territories ,Supplier Name withheld ,200952-105 ,"103,808.00",
DFID,DFID,17/12/2015,Aid Programme - Other Financial Aid to Government ,East and Central Africa ,Ministry of Health  Government of Ethiopia Health Sector Development Programme ,204964-101 ,"25,466,000.00",
DFID,DFID,17/12/2015,Aid Programme - Other Financial Aid to Government ,East and Central Africa ,Ministry of Health  Government of Ethiopia Health Sector Development Programme ,204964-105 ,"4,494,000.00",
DFID,DFID,02/12/2015,Contract & Agency Staff ,Group Operations ,Anderson Knight Ltd ,100270-105 ,719.72,
